Workbook

Sheet Data (hidden)
B1: 1 | C1: 2 | D1: 3 | E1: 4 | F1: 5 | G1: 6 | H1: 7 | I1: 8 | J1: 9 | K1: 10 | L1: 11 | M1: 12 | N1: 13 | O1: 14 | P1: 15 | Q1: 16 | R1: 17 | S1: 18 | T1: 19 | U1: 20 | V1: 21
E2: Clients | L2: Expenditure | R2: Expenditure withOUT overheads | V2: 65+ Pops
C3: Local Authority | D3: Year | E3: LS 65+ CH | F3: CH_ALL | G3: CH_FPC | H3: CH_FNC | I3: HC - 65+ | J3: HC_FPC | K3: HC_AvHrs | L3: CareHomes | M3: CH_FPC | N3: CH_FNC | O3: CH_FPNC | P3: Homecare | Q3: HC_FPC | R3: CH_FPC | S3: CH_FNC | T3: CH_FPNC | U3: HC_FPC
B4: =C4&D4 -> Aberdeen City2007-08 | C4: Aberdeen City | D4: 2007-08 | E4: 1590 | F4: 510 | G4: 500 | H4: 360 | I4: 1,980 | J4: 1,810 | K4: 13,800 | L4: 27,098 | M4: 3,381 | N4: 1,187 | O4: 4,568 | P4: 13,303 | Q4: 9,912 | R4: 3,268 | S4: 1,148 | T4: 4,416 | U4: 9,502 | V4: 32,165
B5: Aberdeenshire2007-08 | C5: Aberdeenshire | D5: 2007-08 | E5: 1360 | F5: 470 | G5: 460 | H5: 350 | I5: 2,100 | J5: 1,920 | K5: 11,300 | L5: 23,567 | M5: 3,873 | N5: 1,302 | O5: 5,175 | P5: 12,133 | Q5: 10,857 | R5: 3,604 | S5: 1,212 | T5: 4,816 | U5: 10,105 | V5: 37,339
B6: Angus2007-08 | C6: Angus | D6: 2007-08 | E6: 680 | F6: 300 | G6: 300 | H6: 120 | I6: 1,610 | J6: 810 | K6: 3,300 | L6: 14,749 | M6: 2,158 | N6: 384 | O6: 2,542 | P6: 6,994 | Q6: 2,483 | R6: 2,043 | S6: 364 | T6: 2,407 | U6: 2,351 | V6: 21,312
B7: Argyll & Bute2007-08 | C7: Argyll & Bute | D7: 2007-08 | E7: 790 | F7: 220 | G7: 220 | H7: 70 | I7: 740 | J7: 560 | K7: 5,300 | L7: 12,578 | M7: 1,926 | N7: 260 | O7: 2,186 | P7: 7,359 | Q7: 6,397 | R7: 1,673 | S7: 225 | T7: 1,898 | U7: 5,473 | V7: 18,267
B8: Clackmannanshire2007-08 | C8: Clackmannanshire | D8: 2007-08 | E8: 250 | F8: 50 | G8: 50 | H8: 40 | I8: 590 | J8: 500 | K8: 3,900 | L8: 3,857 | M8: 399 | N8: 151 | O8: 550 | P8: 1,786 | Q8: 2,478 | R8: 369 | S8: 140 | T8: 509 | U8: 2,294 | V8: 7,533
B9: Dumfries & Galloway2007-08 | C9: Dumfries & Galloway | D9: 2007-08 | E9: 870 | F9: 320 | G9: 320 | H9: 240 | I9: 1,710 | J9: 1,500 | K9: 11,500 | L9: 10,332 | M9: 2,160 | N9: 671 | O9: 2,831 | P9: 12,972 | Q9: 10,684 | R9: 1,988 | S9: 617 | T9: 2,605 | U9: 9,829 | V9: 31,016
B10: Dundee City2007-08 | C10: Dundee City | D10: 2007-08 | E10: 880 | F10: 240 | G10: 230 | H10: 120 | I10: 1,920 | J10: 830 | K10: 6,200 | L10: 16,817 | M10: 1,866 | N10: 438 | O10: 2,304 | P10: 11,078 | Q10: 7,440 | R10: 1,770 | S10: 416 | T10: 2,186 | U10: 6,678 | V10: 25,239
B11: East Ayrshire2007-08 | C11: East Ayrshire | D11: 2007-08 | E11: 690 | F11: 180 | G11: 180 | H11: 130 | I11: 1,590 | J11: 1,400 | K11: 11,800 | L11: 12,379 | M11: 1,393 | N11: 455 | O11: 1,848 | P11: 9,612 | Q11: 8,702 | R11: 1,282 | S11: 418 | T11: 1,700 | U11: 6,766 | V11: 20,125
B12: East Dunbartonshire2007-08 | C12: East Dunbartonshire | D12: 2007-08 | E12: 560 | F12: 300 | G12: 300 | H12: 230 | I12: 1,070 | J12: 860 | K12: 5,500 | L12: 5,146 | M12: 2,703 | N12: 973 | O12: 3,676 | P12: 7,632 | Q12: 4,166 | R12: 2,455 | S12: 884 | T12: 3,339 | U12: 3,677 | V12: 18,833
B13: East Lothian2007-08 | C13: East Lothian | D13: 2007-08 | E13: 590 | F13: 180 | G13: 170 | H13: 140 | I13: 1,110 | J13: 900 | K13: 7,700 | L13: 9,676 | M13: 1,411 | N13: 502 | O13: 1,913 | P13: 5,728 | Q13: 6,628 | R13: 1,293 | S13: 460 | T13: 1,753 | U13: 6,024 | V13: 16,661
B14: East Renfrewshire2007-08 | C14: East Renfrewshire | D14: 2007-08 | E14: 530 | F14: 250 | G14: 250 | H14: 180 | I14: 830 | J14: 670 | K14: 4,700 | L14: 5,843 | M14: 2,015 | N14: 598 | O14: 2,613 | P14: 5,144 | Q14: 4,178 | R14: 1,951 | S14: 579 | T14: 2,530 | U14: 4,045 | V14: 15,377
B15: Edinburgh, City of2007-08 | C15: Edinburgh, City of | D15: 2007-08 | E15: 2950 | F15: 1390 | G15: 1,370 | H15: 1,000 | I15: 3,810 | J15: 2,950 | K15: 26,100 | L15: 58,348 | M15: 13,083 | N15: 4,138 | O15: 17,221 | P15: 31,515 | Q15: 28,330 | R15: 12,037 | S15: 3,807 | T15: 15,844 | U15: 26,064 | V15: 67,571
B16: Eilean Siar2007-08 | C16: Eilean Siar | D16: 2007-08 | E16: 190 | F16: 30 | G16: 30 | H16: 10 | I16: 500 | J16: 430 | K16: 3,700 | L16: 5,881 | M16: 182 | N16: 38 | O16: 220 | P16: 4,221 | Q16: 3,394 | R16: 158 | S16: 33 | T16: 191 | U16: 2,715 | V16: 5,548
B17: Falkirk2007-08 | C17: Falkirk | D17: 2007-08 | E17: 740 | F17: 150 | G17: 150 | H17: 130 | I17: 1,780 | J17: 1,250 | K17: 7,700 | L17: 12,084 | M17: 1,356 | N17: 511 | O17: 1,867 | P17: 11,095 | Q17: 5,394 | R17: 1,279 | S17: 482 | T17: 1,761 | U17: 5,089 | V17: 23,880
B18: Fife2007-08 | C18: Fife | D18: 2007-08 | E18: 2190 | F18: 750 | G18: 750 | H18: 400 | I18: 5,060 | J18: 3,180 | K18: 16,600 | L18: 34,707 | M18: 6,003 | N18: 1,460 | O18: 7,463 | P18: 18,680 | Q18: 13,893 | R18: 5,433 | S18: 1,321 | T18: 6,754 | U18: 12,087 | V18: 60,068
B19: Glasgow City2007-08 | C19: Glasgow City | D19: 2007-08 | E19: 4430 | F19: 690 | G19: 680 | H19: 410 | I19: 6,990 | J19: 5,270 | K19: 35,400 | L19: 74,439 | M19: 6,494 | N19: 1,531 | O19: 8,025 | P19: 48,035 | Q19: 44,348 | R19: 4,506 | S19: 1,290 | T19: 5,796 | U19: 40,294 | V19: 83,851
B20: Highland2007-08 | C20: Highland | D20: 2007-08 | E20: 1440 | F20: 430 | G20: 420 | H20: 130 | I20: 1,840 | J20: 1,480 | K20: 8,600 | L20: 25,185 | M20: 4,038 | N20: 564 | O20: 4,602 | P20: 12,798 | Q20: 8,335 | R20: 3,197 | S20: 446 | T20: 3,643 | U20: 6,613 | V20: 39,182
B21: Inverclyde2007-08 | C21: Inverclyde | D21: 2007-08 | E21: 580 | F21: 170 | G21: 170 | H21: 140 | I21: 1,120 | J21: 1,070 | K21: 8,900 | L21: 10,864 | M21: 1,395 | N21: 501 | O21: 1,896 | P21: 6,786 | Q21: 5,534 | R21: 1,290 | S21: 463 | T21: 1,753 | U21: 4,898 | V21: 14,254
B22: Midlothian2007-08 | C22: Midlothian | D22: 2007-08 | E22: 490 | F22: 100 | G22: 100 | H22: 70 | I22: 850 | J22: 550 | K22: 4,400 | L22: 7,947 | M22: 819 | N22: 267 | O22: 1,086 | P22: 4,566 | Q22: 3,749 | R22: 750 | S22: 245 | T22: 995 | U22: 3,408 | V22: 12,782
B23: Moray2007-08 | C23: Moray | D23: 2007-08 | E23: 480 | F23: 180 | G23: 180 | H23: 130 | I23: 1,120 | J23: 760 | K23: 5,400 | L23: 7,399 | M23: 1,493 | N23: 499 | O23: 1,992 | P23: 6,058 | Q23: 5,500 | R23: 1,285 | S23: 430 | T23: 1,715 | U23: 4,735 | V23: 15,741
B24: North Ayrshire2007-08 | C24: North Ayrshire | D24: 2007-08 | E24: 800 | F24: 260 | G24: 260 | H24: 170 | I24: 1,380 | J24: 1,230 | K24: 5,700 | L24: 15,751 | M24: 2,213 | N24: 642 | O24: 2,855 | P24: 4,356 | Q24: 4,952 | R24: 1,973 | S24: 573 | T24: 2,546 | U24: 4,417 | V24: 24,077
B25: North Lanarkshire2007-08 | C25: North Lanarkshire | D25: 2007-08 | E25: 1450 | F25: 210 | G25: 210 | H25: 160 | I25: 3,200 | J25: 2,320 | K25: 17,700 | L25: 30,571 | M25: 1,685 | N25: 575 | O25: 2,260 | P25: 24,003 | Q25: 12,381 | R25: 1,560 | S25: 532 | T25: 2,092 | U25: 9,781 | V25: 47,640
B26: Orkney Islands2007-08 | C26: Orkney Islands | D26: 2007-08 | E26: 100 | F26: 30 | G26: 30 | H26: 0 | I26: 250 | J26: 170 | K26: 1,000 | L26: 3,339 | M26: 250 | N26: 7 | O26: 257 | P26: 1,145 | Q26: 759 | R26: 231 | S26: 6 | T26: 237 | U26: 703 | V26: 3,789
B27: Perth & Kinross2007-08 | C27: Perth & Kinross | D27: 2007-08 | E27: 1060 | F27: 430 | G27: 420 | H27: 190 | I27: 1,080 | J27: 1,000 | K27: 7,300 | L27: 17,464 | M27: 4,057 | N27: 937 | O27: 4,994 | P27: 9,869 | Q27: 7,033 | R27: 3,834 | S27: 885 | T27: 4,719 | U27: 6,314 | V27: 27,401
B28: Renfrewshire2007-08 | C28: Renfrewshire | D28: 2007-08 | E28: 1060 | F28: 240 | G28: 240 | H28: 190 | I28: 1,490 | J28: 1,110 | K28: 5,800 | L28: 17,670 | M28: 1,935 | N28: 679 | O28: 2,614 | P28: 6,176 | Q28: 3,833 | R28: 1,773 | S28: 622 | T28: 2,395 | U28: 3,383 | V28: 27,887
B29: Scottish Borders2007-08 | C29: Scottish Borders | D29: 2007-08 | E29: 720 | F29: 260 | G29: 260 | H29: 110 | I29: 1,100 | J29: 1,040 | K29: 5,700 | L29: 11,437 | M29: 2,273 | N29: 422 | O29: 2,695 | P29: 6,407 | Q29: 4,561 | R29: 2,021 | S29: 375 | T29: 2,396 | U29: 4,055 | V29: 21,925
B30: Shetland Islands2007-08 | C30: Shetland Islands | D30: 2007-08 | E30: 110 | F30: 0 | G30: 0 | H30: 0 | I30: 400 | J30: 210 | K30: 1,900 | L30: 4,170 | M30: 0 | N30: 0 | O30: 0 | P30: 1,886 | Q30: 1,797 | R30: 0 | S30: 0 | T30: 0 | U30: 1,633 | V30: 3,455
B31: South Ayrshire2007-08 | C31: South Ayrshire | D31: 2007-08 | E31: 810 | F31: 360 | G31: 360 | H31: 280 | I31: 1,560 | J31: 1,440 | K31: 14,000 | L31: 14,799 | M31: 2,987 | N31: 1,056 | O31: 4,043 | P31: 9,391 | Q31: 11,142 | R31: 2,797 | S31: 989 | T31: 3,786 | U31: 9,523 | V31: 22,834
B32: South Lanarkshire2007-08 | C32: South Lanarkshire | D32: 2007-08 | E32: 1680 | F32: 480 | G32: 470 | H32: 330 | I32: 2,990 | J32: 2,600 | K32: 23,400 | L32: 30,758 | M32: 3,822 | N32: 1,222 | O32: 5,044 | P32: 20,628 | Q32: 15,416 | R32: 3,434 | S32: 1,097 | T32: 4,531 | U32: 13,796 | V32: 49,806
B33: Stirling2007-08 | C33: Stirling | D33: 2007-08 | E33: 520 | F33: 210 | G33: 210 | H33: 140 | I33: 800 | J33: 450 | K33: 2,200 | L33: 9,196 | M33: 1,937 | N33: 645 | O33: 2,582 | P33: 5,216 | Q33: 3,163 | R33: 1,754 | S33: 583 | T33: 2,337 | U33: 2,857 | V33: 14,491
B34: =C34&D34 -> West Dunbartonshire2007-08 | C34: West Dunbartonshire | D34: 2007-08 | E34: 510 | F34: 90 | G34: 90 | H34: 40 | I34: 1,610 | J34: 1,010 | K34: 7,000 | L34: 10,268 | M34: 692 | N34: 164 | O34: 856 | P34: 1,333 | Q34: 4,753 | R34: 641 | S34: 152 | T34: 793 | U34: 4,401 | V34: 14,625
B35: West Lothian2007-08 | C35: West Lothian | D35: 2007-08 | E35: 630 | F35: 130 | G35: 130 | H35: 110 | I35: 1,190 | J35: 1,000 | K35: 6,000 | L35: 11,969 | M35: 1,024 | N35: 412 | O35: 1,436 | P35: 7,557 | Q35: 5,268 | R35: 931 | S35: 374 | T35: 1,305 | U35: 4,650 | V35: 21,331
B36: Scotland2007-08 | C36: Scotland | D36: 2007-08 | E36: 31730 | F36: 9590 | G36: 9,510 | H36: 6,130 | I36: 55,340 | J36: 42,260 | K36: 299,400 | L36: 556,288 | M36: 81,023 | N36: 23,191 | O36: 104,214 | P36: 335,462 | Q36: 267,460 | R36: 72,580 | S36: 21,168 | T36: 93,748 | U36: 238,160 | V36: 846,005
B37: Aberdeen City2008-09 | C37: Aberdeen City | D37: 2008-09 | E37: 1540 | F37: 460 | G37: 450 | H37: 320 | I37: 1,610 | J37: 1,620 | K37: 12,300 | L37: 26,002 | M37: 3,314 | N37: 1,081 | O37: 4,395 | P37: 13,816 | Q37: 9,475 | R37: 3,184 | S37: 1,039 | T37: 4,223 | U37: 9,013 | V37: 32,096
B38: Aberdeenshire2008-09 | C38: Aberdeenshire | D38: 2008-09 | E38: 1380 | F38: 490 | G38: 490 | H38: 360 | I38: 2,200 | J38: 2,000 | K38: 12,100 | L38: 24,196 | M38: 4,329 | N38: 1,415 | O38: 5,744 | P38: 13,577 | Q38: 11,060 | R38: 4,043 | S38: 1,321 | T38: 5,364 | U38: 10,329 | V38: 38,307
B39: Angus2008-09 | C39: Angus | D39: 2008-09 | E39: 620 | F39: 320 | G39: 320 | H39: 140 | I39: 1,580 | J39: 820 | K39: 3,300 | L39: 15,375 | M39: 2,311 | N39: 397 | O39: 2,708 | P39: 7,003 | Q39: 2,652 | R39: 2,062 | S39: 354 | T39: 2,416 | U39: 2,366 | V39: 21,817
B40: Argyll & Bute2008-09 | C40: Argyll & Bute | D40: 2008-09 | E40: 770 | F40: 220 | G40: 220 | H40: 70 | I40: 690 | J40: 640 | K40: 6,500 | L40: 13,106 | M40: 1,596 | N40: 383 | O40: 1,979 | P40: 8,056 | Q40: 6,918 | R40: 1,467 | S40: 352 | T40: 1,819 | U40: 6,342 | V40: 18,527
B41: Clackmannanshire2008-09 | C41: Clackmannanshire | D41: 2008-09 | E41: 240 | F41: 60 | G41: 60 | H41: 50 | I41: 580 | J41: 510 | K41: 3,500 | L41: 4,180 | M41: 475 | N41: 192 | O41: 667 | P41: 2,822 | Q41: 2,082 | R41: 441 | S41: 178 | T41: 619 | U41: 1,928 | V41: 7,679
B42: Dumfries & Galloway2008-09 | C42: Dumfries & Galloway | D42: 2008-09 | E42: 900 | F42: 360 | G42: 360 | H42: 290 | I42: 1,680 | J42: 1,730 | K42: 17,900 | L42: 10,219 | M42: 2,698 | N42: 967 | O42: 3,665 | P42: 14,268 | Q42: 10,600 | R42: 2,482 | S42: 890 | T42: 3,372 | U42: 9,752 | V42: 31,669
B43: Dundee City2008-09 | C43: Dundee City | D43: 2008-09 | E43: 960 | F43: 250 | G43: 250 | H43: 130 | I43: 1,960 | J43: 890 | K43: 6,800 | L43: 18,039 | M43: 2,194 | N43: 554 | O43: 2,748 | P43: 12,323 | Q43: 6,828 | R43: 2,081 | S43: 526 | T43: 2,607 | U43: 6,156 | V43: 25,085
B44: East Ayrshire2008-09 | C44: East Ayrshire | D44: 2008-09 | E44: 700 | F44: 180 | G44: 180 | H44: 130 | I44: 1,590 | J44: 1,500 | K44: 12,200 | L44: 14,150 | M44: 1,499 | N44: 486 | O44: 1,985 | P44: 11,377 | Q44: 8,792 | R44: 1,379 | S44: 447 | T44: 1,826 | U44: 6,832 | V44: 20,395
B45: East Dunbartonshire2008-09 | C45: East Dunbartonshire | D45: 2008-09 | E45: 590 | F45: 320 | G45: 320 | H45: 250 | I45: 1,090 | J45: 900 | K45: 5,500 | L45: 5,175 | M45: 2,700 | N45: 976 | O45: 3,676 | P45: 8,400 | Q45: 5,134 | R45: 2,453 | S45: 886 | T45: 3,339 | U45: 4,532 | V45: 19,223
B46: East Lothian2008-09 | C46: East Lothian | D46: 2008-09 | E46: 570 | F46: 160 | G46: 150 | H46: 120 | I46: 1,090 | J46: 910 | K46: 7,700 | L46: 11,536 | M46: 1,572 | N46: 587 | O46: 2,159 | P46: 7,976 | Q46: 8,175 | R46: 1,440 | S46: 538 | T46: 1,978 | U46: 7,430 | V46: 16,921
B47: East Renfrewshire2008-09 | C47: East Renfrewshire | D47: 2008-09 | E47: 530 | F47: 260 | G47: 260 | H47: 170 | I47: 830 | J47: 690 | K47: 5,000 | L47: 8,872 | M47: 1,934 | N47: 710 | O47: 2,644 | P47: 5,313 | Q47: 4,419 | R47: 1,867 | S47: 685 | T47: 2,552 | U47: 4,265 | V47: 15,595
B48: Edinburgh, City of2008-09 | C48: Edinburgh, City of | D48: 2008-09 | E48: 2840 | F48: 1380 | G48: 1,370 | H48: 1,000 | I48: 3,760 | J48: 2,930 | K48: 25,000 | L48: 58,400 | M48: 10,920 | N48: 3,540 | O48: 14,460 | P48: 29,078 | Q48: 22,836 | R48: 10,047 | S48: 3,256 | T48: 13,303 | U48: 21,009 | V48: 67,695
B49: Eilean Siar2008-09 | C49: Eilean Siar | D49: 2008-09 | E49: 190 | F49: 30 | G49: 30 | H49: 10 | I49: 490 | J49: 450 | K49: 3,800 | L49: 6,446 | M49: 286 | N49: 74 | O49: 360 | P49: 4,696 | Q49: 3,939 | R49: 249 | S49: 64 | T49: 313 | U49: 3,151 | V49: 5,675
B50: Falkirk2008-09 | C50: Falkirk | D50: 2008-09 | E50: 760 | F50: 150 | G50: 150 | H50: 140 | I50: 1,820 | J50: 1,340 | K50: 8,800 | L50: 12,868 | M50: 1,484 | N50: 575 | O50: 2,059 | P50: 12,677 | Q50: 7,764 | R50: 1,400 | S50: 542 | T50: 1,942 | U50: 7,325 | V50: 24,272
B51: Fife2008-09 | C51: Fife | D51: 2008-09 | E51: 2130 | F51: 740 | G51: 730 | H51: 370 | I51: 4,590 | J51: 3,430 | K51: 18,600 | L51: 36,066 | M51: 5,978 | N51: 1,420 | O51: 7,398 | P51: 19,605 | Q51: 17,463 | R51: 5,410 | S51: 1,285 | T51: 6,695 | U51: 15,193 | V51: 61,067
B52: Glasgow City2008-09 | C52: Glasgow City | D52: 2008-09 | E52: 4300 | F52: 700 | G52: 690 | H52: 420 | I52: 6,950 | J52: 5,150 | K52: 41,700 | L52: 82,676 | M52: 8,969 | N52: 1,751 | O52: 10,720 | P52: 53,124 | Q52: 40,150 | R52: 5,500 | S52: 1,476 | T52: 6,976 | U52: 36,480 | V52: 83,255
B53: Highland2008-09 | C53: Highland | D53: 2008-09 | E53: 1450 | F53: 400 | G53: 400 | H53: 110 | I53: 1,840 | J53: 1,710 | K53: 9,300 | L53: 25,858 | M53: 3,571 | N53: 452 | O53: 4,023 | P53: 13,140 | Q53: 8,963 | R53: 3,020 | S53: 382 | T53: 3,402 | U53: 7,579 | V53: 40,335
B54: Inverclyde2008-09 | C54: Inverclyde | D54: 2008-09 | E54: 600 | F54: 170 | G54: 170 | H54: 140 | I54: 1,140 | J54: 1,170 | K54: 12,800 | L54: 11,426 | M54: 1,409 | N54: 517 | O54: 1,926 | P54: 7,826 | Q54: 5,819 | R54: 1,303 | S54: 478 | T54: 1,781 | U54: 5,150 | V54: 14,384
B55: Midlothian2008-09 | C55: Midlothian | D55: 2008-09 | E55: 460 | F55: 90 | G55: 90 | H55: 70 | I55: 820 | J55: 640 | K55: 5,400 | L55: 7,571 | M55: 755 | N55: 255 | O55: 1,010 | P55: 5,831 | Q55: 4,205 | R55: 691 | S55: 234 | T55: 925 | U55: 3,822 | V55: 13,027
B56: Moray2008-09 | C56: Moray | D56: 2008-09 | E56: 500 | F56: 190 | G56: 190 | H56: 120 | I56: 1,050 | J56: 780 | K56: 5,600 | L56: 7,706 | M56: 1,683 | N56: 487 | O56: 2,170 | P56: 6,771 | Q56: 5,732 | R56: 1,405 | S56: 406 | T56: 1,811 | U56: 4,783 | V56: 16,194
B57: North Ayrshire2008-09 | C57: North Ayrshire | D57: 2008-09 | E57: 820 | F57: 290 | G57: 290 | H57: 190 | I57: 1,490 | J57: 1,410 | K57: 9,800 | L57: 15,968 | M57: 2,378 | N57: 713 | O57: 3,091 | P57: 11,059 | Q57: 8,223 | R57: 2,170 | S57: 651 | T57: 2,821 | U57: 7,505 | V57: 24,529
B58: North Lanarkshire2008-09 | C58: North Lanarkshire | D58: 2008-09 | E58: 1450 | F58: 240 | G58: 240 | H58: 200 | I58: 3,140 | J58: 2,400 | K58: 19,800 | L58: 39,242 | M58: 1,709 | N58: 637 | O58: 2,346 | P58: 30,518 | Q58: 14,103 | R58: 1,582 | S58: 590 | T58: 2,172 | U58: 11,141 | V58: 48,407
B59: Orkney Islands2008-09 | C59: Orkney Islands | D59: 2008-09 | E59: 110 | F59: 30 | G59: 30 | H59: 0 | I59: 240 | J59: 210 | K59: 1,100 | L59: 4,207 | M59: 267 | N59: 4 | O59: 271 | P59: 1,795 | Q59: 1,137 | R59: 248 | S59: 3 | T59: 251 | U59: 1,053 | V59: 3,904
B60: Perth & Kinross2008-09 | C60: Perth & Kinross | D60: 2008-09 | E60: 1040 | F60: 430 | G60: 420 | H60: 200 | I60: 1,110 | J60: 1,050 | K60: 7,700 | L60: 18,832 | M60: 3,584 | N60: 801 | O60: 4,385 | P60: 10,674 | Q60: 7,515 | R60: 3,387 | S60: 757 | T60: 4,144 | U60: 6,764 | V60: 27,973
B61: Renfrewshire2008-09 | C61: Renfrewshire | D61: 2008-09 | E61: 1030 | F61: 240 | G61: 240 | H61: 190 | I61: 1,520 | J61: 1,190 | K61: 6,400 | L61: 18,218 | M61: 2,015 | N61: 720 | O61: 2,735 | P61: 7,948 | Q61: 4,152 | R61: 1,846 | S61: 660 | T61: 2,506 | U61: 3,665 | V61: 28,295
B62: Scottish Borders2008-09 | C62: Scottish Borders | D62: 2008-09 | E62: 720 | F62: 270 | G62: 260 | H62: 110 | I62: 1,220 | J62: 1,050 | K62: 5,800 | L62: 12,899 | M62: 2,397 | N62: 466 | O62: 2,863 | P62: 7,296 | Q62: 4,931 | R62: 2,131 | S62: 414 | T62: 2,545 | U62: 4,384 | V62: 22,460
B63: Shetland Islands2008-09 | C63: Shetland Islands | D63: 2008-09 | E63: 110 | F63: 0 | G63: 0 | H63: 0 | I63: 420 | J63: 220 | K63: 2,200 | L63: 5,268 | M63: 0 | N63: 0 | O63: 0 | P63: 1,902 | Q63: 1,913 | R63: 0 | S63: 0 | T63: 0 | U63: 1,739 | V63: 3,585
B64: South Ayrshire2008-09 | C64: South Ayrshire | D64: 2008-09 | E64: 810 | F64: 340 | G64: 340 | H64: 270 | I64: 1,650 | J64: 1,540 | K64: 14,900 | L64: 16,866 | M64: 2,878 | N64: 1,059 | O64: 3,937 | P64: 11,383 | Q64: 12,066 | R64: 2,690 | S64: 990 | T64: 3,680 | U64: 10,316 | V64: 23,254
B65: South Lanarkshire2008-09 | C65: South Lanarkshire | D65: 2008-09 | E65: 1720 | F65: 460 | G65: 450 | H65: 330 | I65: 3,130 | J65: 2,700 | K65: 24,900 | L65: 33,138 | M65: 3,872 | N65: 1,275 | O65: 5,147 | P65: 22,318 | Q65: 16,232 | R65: 3,391 | S65: 1,117 | T65: 4,508 | U65: 14,216 | V65: 50,596
B66: Stirling2008-09 | C66: Stirling | D66: 2008-09 | E66: 520 | F66: 200 | G66: 200 | H66: 140 | I66: 710 | J66: 470 | K66: 2,600 | L66: 9,694 | M66: 1,915 | N66: 607 | O66: 2,522 | P66: 5,495 | Q66: 3,095 | R66: 1,737 | S66: 551 | T66: 2,288 | U66: 2,807 | V66: 14,803
B67: West Dunbartonshire2008-09 | C67: West Dunbartonshire | D67: 2008-09 | E67: 510 | F67: 90 | G67: 90 | H67: 50 | I67: 1,510 | J67: 1,020 | K67: 7,200 | L67: 14,119 | M67: 696 | N67: 162 | O67: 858 | P67: 1,833 | Q67: 5,057 | R67: 644 | S67: 150 | T67: 794 | U67: 4,682 | V67: 14,665
B68: West Lothian2008-09 | C68: West Lothian | D68: 2008-09 | E68: 650 | F68: 140 | G68: 140 | H68: 110 | I68: 1,250 | J68: 1,130 | K68: 6,800 | L68: 13,642 | M68: 937 | N68: 377 | O68: 1,314 | P68: 7,916 | Q68: 5,446 | R68: 851 | S68: 343 | T68: 1,194 | U68: 4,807 | V68: 22,057
B69: Scotland2008-09 | C69: Scotland | D69: 2008-09 | E69: 31530 | F69: 9640 | G69: 9,580 | H69: 6,180 | I69: 54,720 | J69: 44,200 | K69: 333,100 | L69: 601,960 | M69: 82,325 | N69: 23,640 | O69: 105,965 | P69: 377,816 | Q69: 276,876 | R69: 72,601 | S69: 21,565 | T69: 94,166 | U69: 246,516 | V69: 857,746
B70: Aberdeen City2009-10 | C70: Aberdeen City | D70: 2009-10 | E70: 1530 | F70: 450 | G70: 440 | H70: 300 | I70: 1,720 | J70: 1,710 | K70: 12,200 | L70: 28,290 | M70: 3,611 | N70: 1,100 | O70: 4,711 | P70: 12,914 | Q70: 9,678 | R70: 3,454 | S70: 1,052 | T70: 4,506 | U70: 9,135 | V70: 32,071
B71: Aberdeenshire2009-10 | C71: Aberdeenshire | D71: 2009-10 | E71: 1360 | F71: 460 | G71: 460 | H71: 330 | I71: 2,070 | J71: 1,810 | K71: 9,300 | L71: 27,513 | M71: 4,394 | N71: 1,326 | O71: 5,720 | P71: 13,901 | Q71: 10,490 | R71: 3,984 | S71: 1,202 | T71: 5,186 | U71: 9,510 | V71: 39,227
B72: Angus2009-10 | C72: Angus | D72: 2009-10 | E72: 780 | F72: 260 | G72: 260 | H72: 110 | I72: 1,520 | J72: 870 | K72: 4,000 | L72: 17,705 | M72: 2,417 | N72: 434 | O72: 2,851 | P72: 7,307 | Q72: 3,498 | R72: 2,153 | S72: 387 | T72: 2,540 | U72: 3,068 | V72: 22,293
B73: Argyll & Bute2009-10 | C73: Argyll & Bute | D73: 2009-10 | E73: 690 | F73: 200 | G73: 200 | H73: 70 | I73: 750 | J73: 720 | K73: 7,100 | L73: 13,398 | M73: 1,749 | N73: 230 | O73: 1,979 | P73: 9,482 | Q73: 7,811 | R73: 1,622 | S73: 214 | T73: 1,836 | U73: 7,194 | V73: 18,800
B74: Clackmannanshire2009-10 | C74: Clackmannanshire | D74: 2009-10 | E74: 230 | F74: 60 | G74: 60 | H74: 50 | I74: 560 | J74: 490 | K74: 3,300 | L74: 4,486 | M74: 507 | N74: 202 | O74: 709 | P74: 2,803 | Q74: 2,515 | R74: 470 | S74: 187 | T74: 657 | U74: 2,329 | V74: 7,839
B75: Dumfries & Galloway2009-10 | C75: Dumfries & Galloway | D75: 2009-10 | E75: 910 | F75: 370 | G75: 370 | H75: 300 | I75: 1,900 | J75: 1,870 | K75: 20,200 | L75: 10,405 | M75: 3,137 | N75: 1,150 | O75: 4,287 | P75: 15,485 | Q75: 12,766 | R75: 2,886 | S75: 1,058 | T75: 3,944 | U75: 11,745 | V75: 32,284
B76: Dundee City2009-10 | C76: Dundee City | D76: 2009-10 | E76: 990 | F76: 280 | G76: 280 | H76: 150 | I76: 1,930 | J76: 1,010 | K76: 8,200 | L76: 18,796 | M76: 2,288 | N76: 584 | O76: 2,872 | P76: 13,371 | Q76: 6,937 | R76: 2,137 | S76: 545 | T76: 2,682 | U76: 6,271 | V76: 24,909
B77: East Ayrshire2009-10 | C77: East Ayrshire | D77: 2009-10 | E77: 710 | F77: 180 | G77: 180 | H77: 120 | I77: 1,500 | J77: 1,460 | K77: 10,200 | L77: 15,761 | M77: 1,521 | N77: 467 | O77: 1,988 | P77: 11,155 | Q77: 8,716 | R77: 1,399 | S77: 430 | T77: 1,829 | U77: 6,814 | V77: 20,732
B78: East Dunbartonshire2009-10 | C78: East Dunbartonshire | D78: 2009-10 | E78: 610 | F78: 330 | G78: 330 | H78: 250 | I78: 1,110 | J78: 1,010 | K78: 6,100 | L78: 5,789 | M78: 2,798 | N78: 983 | O78: 3,781 | P78: 8,382 | Q78: 4,437 | R78: 2,542 | S78: 892 | T78: 3,434 | U78: 3,916 | V78: 19,707
B79: East Lothian2009-10 | C79: East Lothian | D79: 2009-10 | E79: 570 | F79: 160 | G79: 160 | H79: 130 | I79: 1,100 | J79: 920 | K79: 7,200 | L79: 11,421 | M79: 1,320 | N79: 599 | O79: 1,919 | P79: 6,393 | Q79: 6,529 | R79: 1,209 | S79: 549 | T79: 1,758 | U79: 5,934 | V79: 17,292
B80: East Renfrewshire2009-10 | C80: East Renfrewshire | D80: 2009-10 | E80: 520 | F80: 260 | G80: 260 | H80: 160 | I80: 830 | J80: 770 | K80: 7,100 | L80: 8,821 | M80: 1,779 | N80: 792 | O80: 2,571 | P80: 5,590 | Q80: 4,727 | R80: 1,717 | S80: 764 | T80: 2,481 | U80: 4,562 | V80: 15,922
B81: Edinburgh, City of2009-10 | C81: Edinburgh, City of | D81: 2009-10 | E81: 2870 | F81: 1360 | G81: 1,340 | H81: 970 | I81: 3,800 | J81: 3,380 | K81: 27,900 | L81: 56,911 | M81: 9,784 | N81: 3,413 | O81: 13,197 | P81: 30,356 | Q81: 21,137 | R81: 9,002 | S81: 3,140 | T81: 12,142 | U81: 19,446 | V81: 67,972
B82: Eilean Siar2009-10 | C82: Eilean Siar | D82: 2009-10 | E82: 190 | F82: 40 | G82: 40 | H82: 20 | I82: 480 | J82: 460 | K82: 4,300 | L82: 5,948 | M82: 335 | N82: 76 | O82: 411 | P82: 4,964 | Q82: 4,268 | R82: 291 | S82: 66 | T82: 357 | U82: 3,414 | V82: 5,791
B83: Falkirk2009-10 | C83: Falkirk | D83: 2009-10 | E83: 760 | F83: 150 | G83: 150 | H83: 140 | I83: 1,880 | J83: 1,570 | K83: 10,900 | L83: 13,755 | M83: 1,372 | N83: 562 | O83: 1,934 | P83: 13,397 | Q83: 8,247 | R83: 1,292 | S83: 529 | T83: 1,821 | U83: 7,767 | V83: 24,658
B84: Fife2009-10 | C84: Fife | D84: 2009-10 | E84: 2150 | F84: 730 | G84: 730 | H84: 370 | I84: 3,610 | J84: 2,850 | K84: 15,400 | L84: 38,337 | M84: 6,740 | N84: 963 | O84: 7,703 | P84: 20,431 | Q84: 21,234 | R84: 6,100 | S84: 871 | T84: 6,971 | U84: 18,454 | V84: 62,178
B85: Glasgow City2009-10 | C85: Glasgow City | D85: 2009-10 | E85: 4180 | F85: 710 | G85: 700 | H85: 410 | I85: 6,850 | J85: 6,060 | K85: 51,500 | L85: 82,398 | M85: 9,882 | N85: 1,792 | O85: 11,674 | P85: 55,528 | Q85: 54,737 | R85: 5,774 | S85: 1,510 | T85: 7,284 | U85: 49,734 | V85: 82,724
B86: Highland2009-10 | C86: Highland | D86: 2009-10 | E86: 1510 | F86: 410 | G86: 400 | H86: 110 | I86: 1,810 | J86: 1,640 | K86: 10,200 | L86: 28,982 | M86: 3,947 | N86: 476 | O86: 4,423 | P86: 14,727 | Q86: 11,945 | R86: 3,182 | S86: 384 | T86: 3,566 | U86: 9,633 | V86: 41,510
B87: Inverclyde2009-10 | C87: Inverclyde | D87: 2009-10 | E87: 560 | F87: 170 | G87: 170 | H87: 140 | I87: 1,150 | J87: 1,090 | K87: 10,000 | L87: 11,995 | M87: 1,423 | N87: 540 | O87: 1,963 | P87: 10,404 | Q87: 8,164 | R87: 1,318 | S87: 500 | T87: 1,818 | U87: 7,225 | V87: 14,566
B88: Midlothian2009-10 | C88: Midlothian | D88: 2009-10 | E88: 440 | F88: 80 | G88: 80 | H88: 60 | I88: 730 | J88: 610 | K88: 4,800 | L88: 7,658 | M88: 681 | N88: 238 | O88: 919 | P88: 5,419 | Q88: 5,392 | R88: 624 | S88: 218 | T88: 842 | U88: 4,901 | V88: 13,337
B89: Moray2009-10 | C89: Moray | D89: 2009-10 | E89: 510 | F89: 180 | G89: 180 | H89: 90 | I89: 980 | J89: 800 | K89: 6,700 | L89: 7,630 | M89: 1,785 | N89: 410 | O89: 2,195 | P89: 7,407 | Q89: 5,897 | R89: 1,452 | S89: 333 | T89: 1,785 | U89: 4,796 | V89: 16,593
B90: North Ayrshire2009-10 | C90: North Ayrshire | D90: 2009-10 | E90: 830 | F90: 310 | G90: 310 | H90: 200 | I90: 1,300 | J90: 1,230 | K90: 9,100 | L90: 17,002 | M90: 2,632 | N90: 767 | O90: 3,399 | P90: 8,786 | Q90: 9,216 | R90: 2,427 | S90: 707 | T90: 3,134 | U90: 8,497 | V90: 25,037
B91: North Lanarkshire2009-10 | C91: North Lanarkshire | D91: 2009-10 | E91: 1430 | F91: 220 | G91: 220 | H91: 180 | I91: 3,010 | J91: 2,660 | K91: 25,900 | L91: 39,600 | M91: 1,612 | N91: 616 | O91: 2,228 | P91: 33,891 | Q91: 20,205 | R91: 1,493 | S91: 570 | T91: 2,063 | U91: 15,962 | V91: 49,324
B92: Orkney Islands2009-10 | C92: Orkney Islands | D92: 2009-10 | E92: 110 | F92: 30 | G92: 30 | H92: 0 | I92: 260 | J92: 250 | K92: 1,300 | L92: 4,621 | M92: 249 | N92: 5 | O92: 254 | P92: 1,935 | Q92: 1,673 | R92: 230 | S92: 5 | T92: 235 | U92: 1,549 | V92: 4,032
B93: Perth & Kinross2009-10 | C93: Perth & Kinross | D93: 2009-10 | E93: 990 | F93: 370 | G93: 370 | H93: 160 | I93: 1,390 | J93: 1,260 | K93: 8,600 | L93: 18,612 | M93: 3,579 | N93: 766 | O93: 4,345 | P93: 10,638 | Q93: 7,420 | R93: 3,382 | S93: 724 | T93: 4,106 | U93: 6,679 | V93: 28,454
B94: Renfrewshire2009-10 | C94: Renfrewshire | D94: 2009-10 | E94: 1030 | F94: 230 | G94: 230 | H94: 180 | I94: 1,530 | J94: 1,370 | K94: 7,200 | L94: 19,779 | M94: 1,998 | N94: 718 | O94: 2,716 | P94: 9,791 | Q94: 5,788 | R94: 1,830 | S94: 658 | T94: 2,488 | U94: 5,109 | V94: 28,793
B95: Scottish Borders2009-10 | C95: Scottish Borders | D95: 2009-10 | E95: 700 | F95: 250 | G95: 250 | H95: 110 | I95: 1,200 | J95: 1,160 | K95: 8,800 | L95: 13,344 | M95: 2,363 | N95: 471 | O95: 2,834 | P95: 10,590 | Q95: 5,957 | R95: 2,101 | S95: 419 | T95: 2,520 | U95: 5,296 | V95: 23,040
B96: Shetland Islands2009-10 | C96: Shetland Islands | D96: 2009-10 | E96: 110 | F96: 0 | G96: 0 | H96: 0 | I96: 410 | J96: 230 | K96: 2,400 | L96: 6,909 | M96: 0 | N96: 0 | O96: 0 | P96: 2,586 | Q96: 2,083 | R96: 0 | S96: 0 | T96: 0 | U96: 1,894 | V96: 3,681
B97: South Ayrshire2009-10 | C97: South Ayrshire | D97: 2009-10 | E97: 820 | F97: 340 | G97: 340 | H97: 280 | I97: 1,670 | J97: 1,630 | K97: 15,400 | L97: 16,143 | M97: 3,030 | N97: 1,148 | O97: 4,178 | P97: 12,051 | Q97: 12,871 | R97: 2,794 | S97: 1,059 | T97: 3,853 | U97: 11,024 | V97: 23,641
B98: =C98&D98 -> South Lanarkshire2009-10 | C98: South Lanarkshire | D98: 2009-10 | E98: 1760 | F98: 440 | G98: 440 | H98: 320 | I98: 3,130 | J98: 2,840 | K98: 26,900 | L98: 33,543 | M98: 3,905 | N98: 1,358 | O98: 5,263 | P98: 21,920 | Q98: 15,280 | R98: 3,515 | S98: 1,222 | T98: 4,737 | U98: 13,787 | V98: 51,552
B99: Stirling2009-10 | C99: Stirling | D99: 2009-10 | E99: 520 | F99: 190 | G99: 190 | H99: 130 | I99: 810 | J99: 630 | K99: 4,400 | L99: 10,029 | M99: 1,760 | N99: 567 | O99: 2,327 | P99: 6,272 | Q99: 3,556 | R99: 1,605 | S99: 516 | T99: 2,121 | U99: 3,240 | V99: 15,144
B100: West Dunbartonshire2009-10 | C100: West Dunbartonshire | D100: 2009-10 | E100: 480 | F100: 80 | G100: 80 | H100: 40 | I100: 1,410 | J100: 1,100 | K100: 7,400 | L100: 15,261 | M100: 655 | N100: 192 | O100: 847 | P100: 1,981 | Q100: 7,248 | R100: 618 | S100: 181 | T100: 799 | U100: 6,711 | V100: 14,761
B101: West Lothian2009-10 | C101: West Lothian | D101: 2009-10 | E101: 620 | F101: 100 | G101: 100 | H101: 90 | I101: 1,270 | J101: 1,230 | K101: 7,600 | L101: 14,042 | M101: 1,030 | N101: 410 | O101: 1,440 | P101: 8,666 | Q101: 5,936 | R101: 935 | S101: 373 | T101: 1,308 | U101: 5,240 | V101: 22,693
B102: Scotland2009-10 | C102: Scotland | D102: 2009-10 | E102: 31470 | F102: 9380 | G102: 9,330 | H102: 5,960 | I102: 53,660 | J102: 46,660 | K102: 361,700 | L102: 624,884 | M102: 84,283 | N102: 23,355 | O102: 107,638 | P102: 398,523 | Q102: 316,358 | R102: 73,538 | S102: 21,265 | T102: 94,803 | U102: 280,836 | V102: 870,557
B103: Aberdeen City2010-11 | C103: Aberdeen City | D103: 2010-11 | E103: 1540 | F103: 460 | G103: 460 | H103: 310 | I103: 1,740 | J103: 1,740 | K103: 12,900 | L103: 28,577 | M103: 3,689 | N103: 1,143 | O103: 4,832 | P103: 13,108 | Q103: 9,819 | R103: 3,534 | S103: 1,101 | T103: 4,635 | U103: 9,329 | V103: 31,983
B104: Aberdeenshire2010-11 | C104: Aberdeenshire | D104: 2010-11 | E104: 1350 | F104: 470 | G104: 460 | H104: 330 | I104: 1,860 | J104: 1,790 | K104: 8,200 | L104: 27,022 | M104: 2,990 | N104: 806 | O104: 3,796 | P104: 13,173 | Q104: 12,036 | R104: 2,732 | S104: 737 | T104: 3,469 | U104: 10,997 | V104: 40,062
B105: Angus2010-11 | C105: Angus | D105: 2010-11 | E105: 840 | F105: 260 | G105: 260 | H105: 110 | I105: 1,460 | J105: 860 | K105: 4,100 | L105: 16,093 | M105: 2,320 | N105: 439 | O105: 2,759 | P105: 6,319 | Q105: 4,323 | R105: 2,173 | S105: 411 | T105: 2,584 | U105: 3,609 | V105: 22,708
B106: Argyll & Bute2010-11 | C106: Argyll & Bute | D106: 2010-11 | E106: 600 | F106: 200 | G106: 200 | H106: 80 | I106: 770 | J106: 750 | K106: 7,400 | L106: 13,922 | M106: 1,663 | N106: 300 | O106: 1,963 | P106: 10,840 | Q106: 9,631 | R106: 1,563 | S106: 282 | T106: 1,845 | U106: 8,842 | V106: 19,111
B107: Clackmannanshire2010-11 | C107: Clackmannanshire | D107: 2010-11 | E107: 230 | F107: 50 | G107: 50 | H107: 40 | I107: 560 | J107: 530 | K107: 3,600 | L107: 5,077 | M107: 417 | N107: 174 | O107: 591 | P107: 2,579 | Q107: 3,040 | R107: 389 | S107: 162 | T107: 551 | U107: 2,830 | V107: 8,078
B108: Dumfries & Galloway2010-11 | C108: Dumfries & Galloway | D108: 2010-11 | E108: 880 | F108: 370 | G108: 370 | H108: 300 | I108: 1,880 | J108: 1,860 | K108: 19,800 | L108: 9,300 | M108: 3,464 | N108: 1,281 | O108: 4,745 | P108: 16,134 | Q108: 13,403 | R108: 3,207 | S108: 1,187 | T108: 4,394 | U108: 12,410 | V108: 32,712
B109: Dundee City2010-11 | C109: Dundee City | D109: 2010-11 | E109: 960 | F109: 280 | G109: 280 | H109: 150 | I109: 1,880 | J109: 980 | K109: 7,600 | L109: 19,001 | M109: 2,342 | N109: 595 | O109: 2,937 | P109: 13,707 | Q109: 7,163 | R109: 2,194 | S109: 556 | T109: 2,750 | U109: 6,573 | V109: 24,812
B110: East Ayrshire2010-11 | C110: East Ayrshire | D110: 2010-11 | E110: 740 | F110: 180 | G110: 180 | H110: 120 | I110: 1,480 | J110: 1,460 | K110: 9,500 | L110: 16,331 | M110: 1,532 | N110: 478 | O110: 2,010 | P110: 10,682 | Q110: 7,779 | R110: 1,419 | S110: 442 | T110: 1,861 | U110: 6,095 | V110: 21,144
B111: East Dunbartonshire2010-11 | C111: East Dunbartonshire | D111: 2010-11 | E111: 580 | F111: 310 | G111: 300 | H111: 230 | I111: 1,060 | J111: 1,010 | K111: 6,200 | L111: 6,414 | M111: 2,616 | N111: 923 | O111: 3,539 | P111: 8,524 | Q111: 4,553 | R111: 2,491 | S111: 879 | T111: 3,370 | U111: 4,223 | V111: 20,164
B112: East Lothian2010-11 | C112: East Lothian | D112: 2010-11 | E112: 600 | F112: 180 | G112: 180 | H112: 150 | I112: 1,140 | J112: 980 | K112: 7,500 | L112: 12,543 | M112: 1,674 | N112: 621 | O112: 2,295 | P112: 7,551 | Q112: 8,048 | R112: 1,534 | S112: 569 | T112: 2,103 | U112: 7,315 | V112: 17,522
B113: East Renfrewshire2010-11 | C113: East Renfrewshire | D113: 2010-11 | E113: 510 | F113: 250 | G113: 250 | H113: 160 | I113: 860 | J113: 840 | K113: 7,300 | L113: 9,350 | M113: 2,060 | N113: 595 | O113: 2,655 | P113: 5,441 | Q113: 5,412 | R113: 1,948 | S113: 562 | T113: 2,510 | U113: 5,333 | V113: 16,166
B114: Edinburgh, City of2010-11 | C114: Edinburgh, City of | D114: 2010-11 | E114: 2870 | F114: 1340 | G114: 1,330 | H114: 950 | I114: 3,620 | J114: 3,370 | K114: 29,600 | L114: 54,344 | M114: 9,889 | N114: 3,424 | O114: 13,313 | P114: 31,563 | Q114: 30,648 | R114: 9,098 | S114: 3,150 | T114: 12,248 | U114: 28,196 | V114: 68,374
B115: Eilean Siar2010-11 | C115: Eilean Siar | D115: 2010-11 | E115: 190 | F115: 40 | G115: 40 | H115: 20 | I115: 450 | J115: 430 | K115: 3,800 | L115: 5,968 | M115: 438 | N115: 72 | O115: 510 | P115: 5,520 | Q115: 4,274 | R115: 381 | S115: 63 | T115: 444 | U115: 3,419 | V115: 5,884
B116: Falkirk2010-11 | C116: Falkirk | D116: 2010-11 | E116: 780 | F116: 140 | G116: 140 | H116: 130 | I116: 1,770 | J116: 1,570 | K116: 11,600 | L116: 13,075 | M116: 1,313 | N116: 552 | O116: 1,865 | P116: 13,126 | Q116: 8,860 | R116: 1,238 | S116: 521 | T116: 1,759 | U116: 8,359 | V116: 25,138
B117: Fife2010-11 | C117: Fife | D117: 2010-11 | E117: 2170 | F117: 830 | G117: 830 | H117: 420 | I117: 3,200 | J117: 2,920 | K117: 18,900 | L117: 41,174 | M117: 7,183 | N117: 1,000 | O117: 8,183 | P117: 21,905 | Q117: 19,698 | R117: 6,531 | S117: 909 | T117: 7,440 | U117: 17,777 | V117: 63,308
B118: Glasgow City2010-11 | C118: Glasgow City | D118: 2010-11 | E118: 4000 | F118: 700 | G118: 700 | H118: 390 | I118: 6,360 | J118: 6,070 | K118: 56,400 | L118: 80,543 | M118: 10,154 | N118: 1,752 | O118: 11,906 | P118: 56,552 | Q118: 60,412 | R118: 5,725 | S118: 1,477 | T118: 7,202 | U118: 54,890 | V118: 82,366
B119: Highland2010-11 | C119: Highland | D119: 2010-11 | E119: 1510 | F119: 420 | G119: 420 | H119: 110 | I119: 1,740 | J119: 1,610 | K119: 10,500 | L119: 29,971 | M119: 4,078 | N119: 496 | O119: 4,574 | P119: 15,229 | Q119: 12,352 | R119: 3,370 | S119: 412 | T119: 3,782 | U119: 10,035 | V119: 42,376
B120: Inverclyde2010-11 | C120: Inverclyde | D120: 2010-11 | E120: 610 | F120: 160 | G120: 160 | H120: 130 | I120: 1,110 | J120: 1,060 | K120: 9,100 | L120: 11,131 | M120: 1,436 | N120: 529 | O120: 1,965 | P120: 9,535 | Q120: 8,800 | R120: 1,305 | S120: 481 | T120: 1,786 | U120: 7,925 | V120: 14,672
B121: Midlothian2010-11 | C121: Midlothian | D121: 2010-11 | E121: 400 | F121: 70 | G121: 60 | H121: 50 | I121: 760 | J121: 680 | K121: 5,300 | L121: 7,307 | M121: 595 | N121: 209 | O121: 804 | P121: 5,694 | Q121: 4,443 | R121: 577 | S121: 202 | T121: 779 | U121: 4,301 | V121: 13,702
B122: Moray2010-11 | C122: Moray | D122: 2010-11 | E122: 510 | F122: 170 | G122: 170 | H122: 70 | I122: 1,030 | J122: 880 | K122: 7,200 | L122: 7,525 | M122: 1,914 | N122: 376 | O122: 2,290 | P122: 7,428 | Q122: 6,218 | R122: 1,569 | S122: 307 | T122: 1,876 | U122: 5,096 | V122: 17,008
B123: North Ayrshire2010-11 | C123: North Ayrshire | D123: 2010-11 | E123: 880 | F123: 330 | G123: 330 | H123: 220 | I123: 1,330 | J123: 1,310 | K123: 9,600 | L123: 17,670 | M123: 2,910 | N123: 849 | O123: 3,759 | P123: 10,512 | Q123: 9,001 | R123: 2,672 | S123: 780 | T123: 3,452 | U123: 8,264 | V123: 25,539
B124: North Lanarkshire2010-11 | C124: North Lanarkshire | D124: 2010-11 | E124: 1400 | F124: 220 | G124: 220 | H124: 180 | I124: 2,840 | J124: 2,600 | K124: 23,300 | L124: 41,202 | M124: 1,891 | N124: 711 | O124: 2,602 | P124: 34,274 | Q124: 17,268 | R124: 1,751 | S124: 658 | T124: 2,409 | U124: 13,642 | V124: 49,956
B125: Orkney Islands2010-11 | C125: Orkney Islands | D125: 2010-11 | E125: 100 | F125: 30 | G125: 30 | H125: 0 | I125: 230 | J125: 220 | K125: 1,100 | L125: 4,727 | M125: 243 | N125: 4 | O125: 247 | P125: 1,882 | Q125: 1,682 | R125: 225 | S125: 4 | T125: 229 | U125: 1,558 | V125: 4,157
B126: Perth & Kinross2010-11 | C126: Perth & Kinross | D126: 2010-11 | E126: 850 | F126: 360 | G126: 360 | H126: 150 | I126: 1,390 | J126: 1,320 | K126: 9,300 | L126: 17,834 | M126: 3,035 | N126: 595 | O126: 3,630 | P126: 12,240 | Q126: 11,372 | R126: 2,837 | S126: 556 | T126: 3,393 | U126: 10,457 | V126: 29,072
B127: Renfrewshire2010-11 | C127: Renfrewshire | D127: 2010-11 | E127: 1020 | F127: 240 | G127: 240 | H127: 190 | I127: 1,290 | J127: 1,200 | K127: 6,900 | L127: 18,533 | M127: 2,124 | N127: 776 | O127: 2,900 | P127: 9,942 | Q127: 6,104 | R127: 1,916 | S127: 699 | T127: 2,615 | U127: 5,476 | V127: 29,101
B128: Scottish Borders2010-11 | C128: Scottish Borders | D128: 2010-11 | E128: 700 | F128: 280 | G128: 280 | H128: 120 | I128: 1,210 | J128: 1,190 | K128: 8,200 | L128: 11,649 | M128: 2,483 | N128: 508 | O128: 2,991 | P128: 8,573 | Q128: 6,010 | R128: 2,239 | S128: 458 | T128: 2,697 | U128: 5,391 | V128: 23,481
B129: Shetland Islands2010-11 | C129: Shetland Islands | D129: 2010-11 | E129: 110 | F129: 0 | G129: 0 | H129: 0 | I129: 450 | J129: 260 | K129: 2,800 | L129: 9,106 | M129: 0 | N129: 0 | O129: 0 | P129: 3,008 | Q129: 2,304 | R129: 0 | S129: 0 | T129: 0 | U129: 2,067 | V129: 3,739
B130: South Ayrshire2010-11 | C130: South Ayrshire | D130: 2010-11 | E130: 840 | F130: 380 | G130: 380 | H130: 320 | I130: 1,770 | J130: 1,740 | K130: 16,100 | L130: 16,049 | M130: 3,461 | N130: 1,371 | O130: 4,832 | P130: 11,818 | Q130: 12,880 | R130: 3,188 | S130: 1,262 | T130: 4,450 | U130: 10,841 | V130: 23,993
B131: South Lanarkshire2010-11 | C131: South Lanarkshire | D131: 2010-11 | E131: 1710 | F131: 490 | G131: 480 | H131: 320 | I131: 3,060 | J131: 2,790 | K131: 26,700 | L131: 34,892 | M131: 3,713 | N131: 1,335 | O131: 5,048 | P131: 22,629 | Q131: 16,751 | R131: 3,307 | S131: 1,191 | T131: 4,498 | U131: 14,977 | V131: 52,311
B132: Stirling2010-11 | C132: Stirling | D132: 2010-11 | E132: 470 | F132: 160 | G132: 160 | H132: 110 | I132: 800 | J132: 640 | K132: 5,700 | L132: 10,884 | M132: 1,835 | N132: 575 | O132: 2,410 | P132: 6,255 | Q132: 4,323 | R132: 1,619 | S132: 508 | T132: 2,127 | U132: 3,815 | V132: 15,335
B133: West Dunbartonshire2010-11 | C133: West Dunbartonshire | D133: 2010-11 | E133: 480 | F133: 80 | G133: 80 | H133: 30 | I133: 1,350 | J133: 1,070 | K133: 7,300 | L133: 14,974 | M133: 704 | N133: 123 | O133: 827 | P133: 1,944 | Q133: 7,159 | R133: 652 | S133: 114 | T133: 766 | U133: 6,629 | V133: 14,861
B134: West Lothian2010-11 | C134: West Lothian | D134: 2010-11 | E134: 620 | F134: 120 | G134: 120 | H134: 100 | I134: 1,300 | J134: 1,280 | K134: 8,200 | L134: 14,646 | M134: 1,177 | N134: 479 | O134: 1,656 | P134: 9,050 | Q134: 6,032 | R134: 1,140 | S134: 464 | T134: 1,604 | U134: 5,731 | V134: 23,387
B135: Scotland2010-11 | C135: Scotland | D135: 2010-11 | E135: 31020 | F135: 9550 | G135: 9,490 | H135: 6,000 | I135: 51,730 | J135: 46,950 | K135: 371,900 | L135: 626,834 | M135: 85,343 | N135: 23,091 | O135: 108,434 | P135: 406,737 | Q135: 341,798 | R135: 74,524 | S135: 21,104 | T135: 95,628 | U135: 306,402 | V135: 882,222
B136: Aberdeen City2011-12 | C136: Aberdeen City | D136: 2011-12 | E136: 1440 | F136: 530 | G136: 530 | H136: 380 | I136: 1,780 | J136: 1,780 | K136: 13,500 | L136: 32,261 | M136: 3,616 | N136: 1,145 | O136: 4,761 | P136: 13,061 | Q136: 10,278 | R136: 3,476 | S136: 1,107 | T136: 4,583 | U136: 9,814 | V136: 33,606
B137: Aberdeenshire2011-12 | C137: Aberdeenshire | D137: 2011-12 | E137: 1350 | F137: 480 | G137: 470 | H137: 320 | I137: 1,830 | J137: 1,660 | K137: 13,100 | L137: 30,945 | M137: 2,752 | N137: 702 | O137: 3,454 | P137: 14,917 | Q137: 11,790 | R137: 2,515 | S137: 641 | T137: 3,156 | U137: 10,772 | V137: 43,322
B138: Angus2011-12 | C138: Angus | D138: 2011-12 | E138: 810 | F138: 250 | G138: 250 | H138: 110 | I138: 1,330 | J138: 800 | K138: 4,000 | L138: 16,762 | M138: 2,296 | N138: 466 | O138: 2,762 | P138: 7,115 | Q138: 6,618 | R138: 2,002 | S138: 411 | T138: 2,413 | U138: 6,055 | V138: 24,267
B139: Argyll & Bute2011-12 | C139: Argyll & Bute | D139: 2011-12 | E139: 560 | F139: 190 | G139: 190 | H139: 80 | I139: 840 | J139: 830 | K139: 8,600 | L139: 12,920 | M139: 1,703 | N139: 302 | O139: 2,005 | P139: 11,393 | Q139: 9,161 | R139: 1,603 | S139: 285 | T139: 1,888 | U139: 8,442 | V139: 20,319
B140: Clackmannanshire2011-12 | C140: Clackmannanshire | D140: 2011-12 | E140: 210 | F140: 50 | G140: 50 | H140: 50 | I140: 550 | J140: 530 | K140: 4,000 | L140: 4,215 | M140: 490 | N140: 191 | O140: 681 | P140: 2,696 | Q140: 3,444 | R140: 454 | S140: 177 | T140: 631 | U140: 3,189 | V140: 8,826
B141: Dumfries & Galloway2011-12 | C141: Dumfries & Galloway | D141: 2011-12 | E141: 930 | F141: 370 | G141: 370 | H141: 300 | I141: 1,990 | J141: 1,980 | K141: 26,400 | L141: 8,250 | M141: 3,564 | N141: 1,309 | O141: 4,873 | P141: 16,699 | Q141: 13,556 | R141: 3,300 | S141: 1,212 | T141: 4,512 | U141: 12,552 | V141: 34,661
B142: Dundee City2011-12 | C142: Dundee City | D142: 2011-12 | E142: 940 | F142: 290 | G142: 280 | H142: 160 | I142: 1,610 | J142: 1,000 | K142: 7,800 | L142: 18,575 | M142: 2,357 | N142: 600 | O142: 2,957 | P142: 13,540 | Q142: 7,711 | R142: 2,217 | S142: 565 | T142: 2,782 | U142: 7,167 | V142: 25,633
B143: East Ayrshire2011-12 | C143: East Ayrshire | D143: 2011-12 | E143: 570 | F143: 160 | G143: 160 | H143: 100 | I143: 1,630 | J143: 1,610 | K143: 11,000 | L143: 14,365 | M143: 1,410 | N143: 412 | O143: 1,822 | P143: 10,405 | Q143: 7,979 | R143: 1,305 | S143: 382 | T143: 1,687 | U143: 6,257 | V143: 22,512
B144: East Dunbartonshire2011-12 | C144: East Dunbartonshire | D144: 2011-12 | E144: 580 | F144: 310 | G144: 310 | H144: 230 | I144: 960 | J144: 950 | K144: 6,500 | L144: 5,643 | M144: 2,660 | N144: 947 | O144: 3,607 | P144: 8,890 | Q144: 4,732 | R144: 2,534 | S144: 902 | T144: 3,436 | U144: 4,389 | V144: 21,514
B145: East Lothian2011-12 | C145: East Lothian | D145: 2011-12 | E145: 610 | F145: 190 | G145: 190 | H145: 160 | I145: 1,180 | J145: 1,010 | K145: 8,700 | L145: 12,997 | M145: 2,248 | N145: 812 | O145: 3,060 | P145: 4,401 | Q145: 7,596 | R145: 2,036 | S145: 736 | T145: 2,772 | U145: 6,986 | V145: 18,571
B146: East Renfrewshire2011-12 | C146: East Renfrewshire | D146: 2011-12 | E146: 510 | F146: 250 | G146: 250 | H146: 160 | I146: 900 | J146: 850 | K146: 7,600 | L146: 10,280 | M146: 2,210 | N146: 635 | O146: 2,845 | P146: 4,557 | Q146: 5,208 | R146: 2,062 | S146: 593 | T146: 2,655 | U146: 5,149 | V146: 16,860
B147: Edinburgh, City of2011-12 | C147: Edinburgh, City of | D147: 2011-12 | E147: 2800 | F147: 1310 | G147: 1300 | H147: 890 | I147: 3,510 | J147: 3,380 | K147: 30,100 | L147: 51,394 | M147: 9,944 | N147: 3,295 | O147: 13,239 | P147: 33,043 | Q147: 30,968 | R147: 9,148 | S147: 3,032 | T147: 12,180 | U147: 28,491 | V147: 70,980
B148: Eilean Siar2011-12 | C148: Eilean Siar | D148: 2011-12 | E148: 190 | F148: 50 | G148: 50 | H148: 20 | I148: 470 | J148: 450 | K148: 4,000 | L148: 6,574 | M148: 399 | N148: 74 | O148: 473 | P148: 5,051 | Q148: 4,750 | R148: 347 | S148: 64 | T148: 411 | U148: 3,593 | V148: 6,226
B149: Falkirk2011-12 | C149: Falkirk | D149: 2011-12 | E149: 800 | F149: 140 | G149: 140 | H149: 120 | I149: 1,780 | J149: 1,610 | K149: 10,600 | L149: 14,599 | M149: 1,199 | N149: 482 | O149: 1,681 | P149: 12,711 | Q149: 8,837 | R149: 1,132 | S149: 455 | T149: 1,587 | U149: 8,342 | V149: 26,803
B150: Fife2011-12 | C150: Fife | D150: 2011-12 | E150: 2230 | F150: 930 | G150: 930 | H150: 480 | I150: 3,100 | J150: 2,810 | K150: 18,300 | L150: 41,430 | M150: 8,475 | N150: 1,128 | O150: 9,603 | P150: 22,617 | Q150: 22,160 | R150: 8,343 | S150: 1,117 | T150: 9,460 | U150: 20,846 | V150: 67,683
B151: Glasgow City2011-12 | C151: Glasgow City | D151: 2011-12 | E151: 3960 | F151: 710 | G151: 710 | H151: 380 | I151: 6,180 | J151: 5,910 | K151: 56,000 | L151: 83,387 | M151: 10,361 | N151: 1,709 | O151: 12,070 | P151: 54,315 | Q151: 60,844 | R151: 5,898 | S151: 1,441 | T151: 7,339 | U151: 55,286 | V151: 84,809
B152: Highland2011-12 | C152: Highland | D152: 2011-12 | E152: 1500 | F152: 410 | G152: 410 | H152: 120 | I152: 1,680 | J152: 1,590 | K152: 10,700 | L152: 30,986 | M152: 4,080 | N152: 494 | O152: 4,574 | P152: 15,889 | Q152: 12,352 | R152: 3,406 | S152: 442 | T152: 3,848 | U152: 12,241 | V152: 45,331
B153: Inverclyde2011-12 | C153: Inverclyde | D153: 2011-12 | E153: 600 | F153: 160 | G153: 160 | H153: 130 | I153: 1,100 | J153: 1,060 | K153: 8,600 | L153: 11,265 | M153: 1,426 | N153: 530 | O153: 1,956 | P153: 6,394 | Q153: 7,240 | R153: 1,296 | S153: 482 | T153: 1,778 | U153: 6,520 | V153: 15,359
B154: Midlothian2011-12 | C154: Midlothian | D154: 2011-12 | E154: 390 | F154: 70 | G154: 70 | H154: 60 | I154: 810 | J154: 740 | K154: 5,900 | L154: 7,751 | M154: 573 | N154: 214 | O154: 787 | P154: 5,768 | Q154: 4,701 | R154: 556 | S154: 207 | T154: 763 | U154: 4,555 | V154: 14,849
B155: Moray2011-12 | C155: Moray | D155: 2011-12 | E155: 510 | F155: 170 | G155: 170 | H155: 60 | I155: 1,050 | J155: 920 | K155: 7,600 | L155: 7,338 | M155: 1,707 | N155: 298 | O155: 2,005 | P155: 7,890 | Q155: 6,833 | R155: 1,533 | S155: 265 | T155: 1,798 | U155: 6,104 | V155: 18,135
B156: North Ayrshire2011-12 | C156: North Ayrshire | D156: 2011-12 | E156: 900 | F156: 340 | G156: 340 | H156: 220 | I156: 1,440 | J156: 1,360 | K156: 11,800 | L156: 16,365 | M156: 2,665 | N156: 856 | O156: 3,521 | P156: 10,987 | Q156: 8,902 | R156: 2,481 | S156: 796 | T156: 3,277 | U156: 8,288 | V156: 27,292
B157: North Lanarkshire2011-12 | C157: North Lanarkshire | D157: 2011-12 | E157: 1360 | F157: 220 | G157: 220 | H157: 180 | I157: 2,800 | J157: 2,630 | K157: 22,200 | L157: 36,022 | M157: 1,830 | N157: 709 | O157: 2,539 | P157: 30,669 | Q157: 18,612 | R157: 1,694 | S157: 657 | T157: 2,351 | U157: 14,703 | V157: 53,499
B158: Orkney Islands2011-12 | C158: Orkney Islands | D158: 2011-12 | E158: 100 | F158: 30 | G158: 30 | H158: 0 | I158: 220 | J158: 210 | K158: 1,100 | L158: 4,433 | M158: 240 | N158: 4 | O158: 244 | P158: 1,825 | Q158: 1,660 | R158: 221 | S158: 4 | T158: 225 | U158: 1,528 | V158: 4,456
B159: Perth & Kinross2011-12 | C159: Perth & Kinross | D159: 2011-12 | E159: 820 | F159: 340 | G159: 340 | H159: 140 | I159: 1,230 | J159: 1,130 | K159: 8,500 | L159: 16,845 | M159: 3,162 | N159: 565 | O159: 3,727 | P159: 12,288 | Q159: 11,454 | R159: 2,864 | S159: 512 | T159: 3,376 | U159: 11,072 | V159: 31,007
B160: Renfrewshire2011-12 | C160: Renfrewshire | D160: 2011-12 | E160: 1080 | F160: 260 | G160: 260 | H160: 200 | I160: 1,300 | J160: 1,260 | K160: 7,900 | L160: 18,592 | M160: 2,361 | N160: 842 | O160: 3,203 | P160: 8,993 | Q160: 5,577 | R160: 2,138 | S160: 763 | T160: 2,901 | U160: 5,090 | V160: 30,967
B161: Scottish Borders2011-12 | C161: Scottish Borders | D161: 2011-12 | E161: 680 | F161: 270 | G161: 270 | H161: 120 | I161: 1,260 | J161: 1,240 | K161: 8,800 | L161: 11,170 | M161: 2,457 | N161: 507 | O161: 2,964 | P161: 8,537 | Q161: 5,940 | R161: 2,232 | S161: 427 | T161: 2,659 | U161: 5,351 | V161: 25,090
B162: =C162&D162 -> Shetland Islands2011-12 | C162: Shetland Islands | D162: 2011-12 | E162: 100 | F162: 0 | G162: 0 | H162: 0 | I162: 420 | J162: 230 | K162: 2,300 | L162: 7,917 | M162: 179 | N162: 0 | O162: 179 | P162: 2,763 | Q162: 2,263 | R162: 163 | S162: 0 | T162: 163 | U162: 2,065 | V162: 3,965
B163: South Ayrshire2011-12 | C163: South Ayrshire | D163: 2011-12 | E163: 850 | F163: 390 | G163: 380 | H163: 330 | I163: 1,630 | J163: 1,600 | K163: 13,700 | L163: 15,947 | M163: 3,546 | N163: 1,434 | O163: 4,980 | P163: 10,748 | Q163: 11,876 | R163: 3,246 | S163: 1,313 | T163: 4,559 | U163: 9,945 | V163: 25,345
B164: South Lanarkshire2011-12 | C164: South Lanarkshire | D164: 2011-12 | E164: 1730 | F164: 480 | G164: 480 | H164: 320 | I164: 3,050 | J164: 2,820 | K164: 27,200 | L164: 37,245 | M164: 4,536 | N164: 1,390 | O164: 5,926 | P164: 22,008 | Q164: 14,666 | R164: 4,113 | S164: 1,260 | T164: 5,373 | U164: 13,299 | V164: 55,706
B165: Stirling2011-12 | C165: Stirling | D165: 2011-12 | E165: 460 | F165: 160 | G165: 160 | H165: 120 | I165: 800 | J165: 690 | K165: 6,600 | L165: 9,602 | M165: 1,854 | N165: 567 | O165: 2,421 | P165: 5,480 | Q165: 5,296 | R165: 1,691 | S165: 517 | T165: 2,208 | U165: 4,829 | V165: 16,362
B166: West Dunbartonshire2011-12 | C166: West Dunbartonshire | D166: 2011-12 | E166: 510 | F166: 80 | G166: 80 | H166: 30 | I166: 1,360 | J166: 1,110 | K166: 8,000 | L166: 14,697 | M166: 736 | N166: 146 | O166: 882 | P166: 1,779 | Q166: 7,541 | R166: 681 | S166: 135 | T166: 816 | U166: 6,982 | V166: 15,553
B167: West Lothian2011-12 | C167: West Lothian | D167: 2011-12 | E167: 670 | F167: 140 | G167: 130 | H167: 110 | I167: 1,350 | J167: 1,250 | K167: 8,100 | L167: 13,833 | M167: 1,196 | N167: 481 | O167: 1,677 | P167: 10,172 | Q167: 6,106 | R167: 1,157 | S167: 465 | T167: 1,622 | U167: 5,898 | V167: 25,684
B168: Scotland2011-12 | C168: Scotland | D168: 2011-12 | E168: 30750 | F168: 9720 | G168: 9660 | H168: 6,050 | I168: 51,120 | J168: 47,010 | K168: 389,000 | L168: 624,605 | M168: 88,232 | N168: 23,246 | O168: 111,478 | P168: 397,601 | Q168: 346,651 | R168: 77,844 | S168: 21,365 | T168: 99,209 | U168: 315,800 | V168: 935,192
B169: Aberdeen City2012-13 | C169: Aberdeen City | D169: 2012-13 | E169: 1200 | F169: 530 | G169: 530 | H169: 400 | I169: 1,610 | J169: 1,610 | K169: 10,700 | L169: 28,242 | M169: 3,418 | N169: 1,087 | O169: 4,505 | P169: 16,027 | Q169: 10,847 | R169: 3,305 | S169: 1,052 | T169: 4,357 | U169: 10,488 | V169: 33,150
B170: Aberdeenshire2012-13 | C170: Aberdeenshire | D170: 2012-13 | E170: 1370 | F170: 470 | G170: 460 | H170: 320 | I170: 1,960 | J170: 1,740 | K170: 11,600 | L170: 29,438 | M170: 3,360 | N170: 1,030 | O170: 4,390 | P170: 14,131 | Q170: 8,148 | R170: 3,148 | S170: 965 | T170: 4,113 | U170: 7,659 | V170: 42,920
B171: Angus2012-13 | C171: Angus | D171: 2012-13 | E171: 740 | F171: 230 | G171: 230 | H171: 90 | I171: 1,270 | J171: 730 | K171: 3,500 | L171: 15,713 | M171: 2,625 | N171: 474 | O171: 3,099 | P171: 7,155 | Q171: 5,944 | R171: 2,529 | S171: 460 | T171: 2,989 | U171: 5,793 | V171: 24,235
B172: Argyll & Bute2012-13 | C172: Argyll & Bute | D172: 2012-13 | E172: 510 | F172: 170 | G172: 170 | H172: 70 | I172: 930 | J172: 920 | K172: 9,400 | L172: 12,974 | M172: 1,626 | N172: 332 | O172: 1,958 | P172: 11,966 | Q172: 10,560 | R172: 1,533 | S172: 313 | T172: 1,846 | U172: 9,807 | V172: 20,169
B173: Clackmannanshire2012-13 | C173: Clackmannanshire | D173: 2012-13 | E173: 220 | F173: 60 | G173: 60 | H173: 50 | I173: 570 | J173: 550 | K173: 4,500 | L173: 4,670 | M173: 511 | N173: 191 | O173: 702 | P173: 4,174 | Q173: 3,801 | R173: 473 | S173: 177 | T173: 650 | U173: 3,519 | V173: 8,733
B174: Dumfries & Galloway2012-13 | C174: Dumfries & Galloway | D174: 2012-13 | E174: 940 | F174: 360 | G174: 360 | H174: 310 | I174: 1,800 | J174: 1,780 | K174: 18,500 | L174: 10,412 | M174: 3,860 | N174: 1,422 | O174: 5,282 | P174: 16,849 | Q174: 15,207 | R174: 3,574 | S174: 1,317 | T174: 4,891 | U174: 14,081 | V174: 34,345
B175: Dundee City2012-13 | C175: Dundee City | D175: 2012-13 | E175: 970 | F175: 310 | G175: 290 | H175: 180 | I175: 1,530 | J175: 990 | K175: 9,000 | L175: 21,116 | M175: 2,542 | N175: 631 | O175: 3,173 | P175: 14,136 | Q175: 8,717 | R175: 2,380 | S175: 591 | T175: 2,971 | U175: 8,003 | V175: 25,147
B176: East Ayrshire2012-13 | C176: East Ayrshire | D176: 2012-13 | E176: 710 | F176: 170 | G176: 170 | H176: 100 | I176: 1,590 | J176: 1,590 | K176: 11,300 | L176: 14,169 | M176: 1,539 | N176: 432 | O176: 1,971 | P176: 9,663 | Q176: 8,781 | R176: 1,426 | S176: 400 | T176: 1,826 | U176: 6,886 | V176: 22,241
B177: East Dunbartonshire2012-13 | C177: East Dunbartonshire | D177: 2012-13 | E177: 610 | F177: 340 | G177: 340 | H177: 280 | I177: 970 | J177: 960 | K177: 9,100 | L177: 6,080 | M177: 3,009 | N177: 1,149 | O177: 4,158 | P177: 9,312 | Q177: 6,625 | R177: 2,866 | S177: 1,094 | T177: 3,960 | U177: 6,145 | V177: 21,453
B178: East Lothian2012-13 | C178: East Lothian | D178: 2012-13 | E178: 580 | F178: 220 | G178: 220 | H178: 170 | I178: 1,120 | J178: 1,060 | K178: 9,400 | L178: 16,482 | M178: 1,967 | N178: 661 | O178: 2,628 | P178: 4,472 | Q178: 4,205 | R178: 1,906 | S178: 640 | T178: 2,546 | U178: 4,070 | V178: 18,579
B179: East Renfrewshire2012-13 | C179: East Renfrewshire | D179: 2012-13 | E179: 560 | F179: 270 | G179: 270 | H179: 190 | I179: 940 | J179: 890 | K179: 11,200 | L179: 11,618 | M179: 4,173 | N179: 1,002 | O179: 5,175 | P179: 6,422 | Q179: 5,678 | R179: 3,902 | S179: 879 | T179: 4,781 | U179: 4,981 | V179: 16,906
B180: Edinburgh, City of2012-13 | C180: Edinburgh, City of | D180: 2012-13 | E180: 2710 | F180: 1280 | G180: 1270 | H180: 860 | I180: 3,480 | J180: 3,400 | K180: 33,900 | L180: 51,209 | M180: 9,817 | N180: 3,215 | O180: 13,032 | P180: 40,860 | Q180: 32,391 | R180: 9,031 | S180: 2,958 | T180: 11,989 | U180: 29,800 | V180: 70,873
B181: Eilean Siar2012-13 | C181: Eilean Siar | D181: 2012-13 | E181: 180 | F181: 40 | G181: 40 | H181: 20 | I181: 470 | J181: 460 | K181: 4,000 | L181: 6,609 | M181: 334 | N181: 53 | O181: 387 | P181: 4,919 | Q181: 5,135 | R181: 290 | S181: 46 | T181: 336 | U181: 3,940 | V181: 6,176
B182: Falkirk2012-13 | C182: Falkirk | D182: 2012-13 | E182: 790 | F182: 160 | G182: 160 | H182: 140 | I182: 1,830 | J182: 1,660 | K182: 10,400 | L182: 14,358 | M182: 1,228 | N182: 496 | O182: 1,724 | P182: 12,849 | Q182: 9,058 | R182: 1,159 | S182: 468 | T182: 1,627 | U182: 8,550 | V182: 26,445
B183: Fife2012-13 | C183: Fife | D183: 2012-13 | E183: 2120 | F183: 750 | G183: 750 | H183: 390 | I183: 3,040 | J183: 2,870 | K183: 20,100 | L183: 44,473 | M183: 8,040 | N183: 1,921 | O183: 9,961 | P183: 25,249 | Q183: 25,129 | R183: 7,450 | S183: 1,793 | T183: 9,243 | U183: 23,449 | V183: 67,153
B184: Glasgow City2012-13 | C184: Glasgow City | D184: 2012-13 | E184: 3900 | F184: 660 | G184: 660 | H184: 370 | I184: 5,750 | J184: 5,620 | K184: 55,100 | L184: 81,373 | M184: 10,806 | N184: 1,781 | O184: 12,587 | P184: 56,404 | Q184: 55,313 | R184: 5,945 | S184: 1,501 | T184: 7,446 | U184: 50,681 | V184: 82,960
B185: Highland2012-13 | C185: Highland | D185: 2012-13 | E185: 1470 | F185: 380 | G185: 380 | H185: 120 | I185: 1,640 | J185: 1,590 | K185: 10,200 | L185: 29,330 | M185: 3,221 | N185: 463 | O185: 3,684 | P185: 15,762 | Q185: 13,220 | R185: 2,982 | S185: 429 | T185: 3,411 | U185: 12,241 | V185: 45,054
B186: Inverclyde2012-13 | C186: Inverclyde | D186: 2012-13 | E186: 570 | F186: 150 | G186: 150 | H186: 120 | I186: 1,160 | J186: 1,120 | K186: 9,400 | L186: 11,220 | M186: 1,880 | N186: 724 | O186: 2,604 | P186: 8,254 | Q186: 7,798 | R186: 1,710 | S186: 659 | T186: 2,369 | U186: 7,096 | V186: 15,200
B187: Midlothian2012-13 | C187: Midlothian | D187: 2012-13 | E187: 380 | F187: 80 | G187: 80 | H187: 60 | I187: 810 | J187: 770 | K187: 9,300 | L187: 9,685 | M187: 666 | N187: 245 | O187: 911 | P187: 7,239 | Q187: 5,101 | R187: 646 | S187: 238 | T187: 884 | U187: 4,959 | V187: 14,710
B188: Moray2012-13 | C188: Moray | D188: 2012-13 | E188: 520 | F188: 190 | G188: 190 | H188: 50 | I188: 1,050 | J188: 930 | K188: 7,400 | L188: 8,296 | M188: 2,022 | N188: 303 | O188: 2,325 | P188: 9,961 | Q188: 8,955 | R188: 1,747 | S188: 262 | T188: 2,009 | U188: 7,247 | V188: 17,958
B189: North Ayrshire2012-13 | C189: North Ayrshire | D189: 2012-13 | E189: 890 | F189: 350 | G189: 350 | H189: 220 | I189: 1,570 | J189: 1,510 | K189: 13,200 | L189: 17,084 | M189: 3,113 | N189: 927 | O189: 4,040 | P189: 11,594 | Q189: 11,282 | R189: 2,910 | S189: 867 | T189: 3,777 | U189: 10,547 | V189: 27,083
B190: North Lanarkshire2012-13 | C190: North Lanarkshire | D190: 2012-13 | E190: 1320 | F190: 230 | G190: 230 | H190: 200 | I190: 2,840 | J190: 2,720 | K190: 23,100 | L190: 31,081 | M190: 2,051 | N190: 810 | O190: 2,861 | P190: 25,717 | Q190: 21,299 | R190: 1,899 | S190: 750 | T190: 2,649 | U190: 16,826 | V190: 52,304
B191: Orkney Islands2012-13 | C191: Orkney Islands | D191: 2012-13 | E191: 100 | F191: 30 | G191: 30 | H191: 0 | I191: 210 | J191: 210 | K191: 1,200 | L191: 4,933 | M191: 229 | N191: 4 | O191: 233 | P191: 2,092 | Q191: 1,493 | R191: 211 | S191: 4 | T191: 215 | U191: 1,383 | V191: 4,450
B192: Perth & Kinross2012-13 | C192: Perth & Kinross | D192: 2012-13 | E192: 940 | F192: 350 | G192: 350 | H192: 150 | I192: 1,100 | J192: 1,100 | K192: 8,500 | L192: 17,138 | M192: 3,213 | N192: 616 | O192: 3,829 | P192: 12,227 | Q192: 8,892 | R192: 2,932 | S192: 562 | T192: 3,494 | U192: 8,207 | V192: 30,982
B193: Renfrewshire2012-13 | C193: Renfrewshire | D193: 2012-13 | E193: 1040 | F193: 230 | G193: 230 | H193: 170 | I193: 1,410 | J193: 1,370 | K193: 9,700 | L193: 19,443 | M193: 2,202 | N193: 759 | O193: 2,961 | P193: 8,727 | Q193: 7,298 | R193: 2,009 | S193: 693 | T193: 2,702 | U193: 6,689 | V193: 30,565
B194: Scottish Borders2012-13 | C194: Scottish Borders | D194: 2012-13 | E194: 620 | F194: 290 | G194: 290 | H194: 120 | I194: 1,270 | J194: 1,250 | K194: 8,500 | L194: 12,765 | M194: 2,721 | N194: 562 | O194: 3,283 | P194: 7,911 | Q194: 5,892 | R194: 2,483 | S194: 454 | T194: 2,937 | U194: 5,290 | V194: 24,937
B195: Shetland Islands2012-13 | C195: Shetland Islands | D195: 2012-13 | E195: 90 | F195: 10 | G195: 10 | H195: 0 | I195: 400 | J195: 220 | K195: 1,900 | L195: 7,068 | M195: 326 | N195: 0 | O195: 326 | P195: 3,991 | Q195: 1,938 | R195: 307 | S195: 0 | T195: 307 | U195: 1,816 | V195: 3,985
B196: South Ayrshire2012-13 | C196: South Ayrshire | D196: 2012-13 | E196: 850 | F196: 390 | G196: 390 | H196: 340 | I196: 1,640 | J196: 1,660 | K196: 16,500 | L196: 17,386 | M196: 4,172 | N196: 1,505 | O196: 5,677 | P196: 10,894 | Q196: 11,758 | R196: 4,051 | S196: 1,461 | T196: 5,512 | U196: 11,416 | V196: 25,259
B197: South Lanarkshire2012-13 | C197: South Lanarkshire | D197: 2012-13 | E197: 1680 | F197: 480 | G197: 480 | H197: 360 | I197: 2,920 | J197: 2,790 | K197: 25,800 | L197: 36,869 | M197: 4,341 | N197: 1,458 | O197: 5,799 | P197: 20,026 | Q197: 13,813 | R197: 4,219 | S197: 1,417 | T197: 5,636 | U197: 13,424 | V197: 55,017
B198: Stirling2012-13 | C198: Stirling | D198: 2012-13 | E198: 450 | F198: 180 | G198: 180 | H198: 120 | I198: 870 | J198: 790 | K198: 7,300 | L198: 9,984 | M198: 1,994 | N198: 594 | O198: 2,588 | P198: 5,523 | Q198: 5,132 | R198: 1,881 | S198: 560 | T198: 2,441 | U198: 4,840 | V198: 16,274
B199: West Dunbartonshire2012-13 | C199: West Dunbartonshire | D199: 2012-13 | E199: 530 | F199: 90 | G199: 90 | H199: 40 | I199: 1,270 | J199: 1,040 | K199: 7,900 | L199: 12,172 | M199: 753 | N199: 115 | O199: 868 | P199: 6,870 | Q199: 6,236 | R199: 697 | S199: 107 | T199: 804 | U199: 5,775 | V199: 15,262
B200: West Lothian2012-13 | C200: West Lothian | D200: 2012-13 | E200: 690 | F200: 160 | G200: 160 | H200: 130 | I200: 1,400 | J200: 1,300 | K200: 8,900 | L200: 13,094 | M200: 1,427 | N200: 585 | O200: 2,012 | P200: 11,758 | Q200: 5,452 | R200: 1,377 | S200: 564 | T200: 1,941 | U200: 5,262 | V200: 25,216
... 133 more rows

Sheet Lookups (hidden)
A2: Year | C2: Local Authority | F2: Clients | H2: Long-stay residents aged 65+ supported in Care Homes | I2: 4 | J2: 11 | K2: 11
A3: 2005-06 | C3: Scotland | F3: Expenditure (£thousands - including overheads) | H3: Self-funders receiving FPNC or FPC only or FNC only in Care Homes | I3: 5 | J3: 14 | K3: 19
A4: 2006-07 | C4: Aberdeen City | F4: Expenditure (£thousands - excluding overheads) | H4: Self-funders 65+ receiving FPC in Care Homes | I4: 6 | J4: 12 | K4: 17
A5: 2007-08 | C5: Aberdeenshire | H5: Self-funders receiving FNC in Care Homes | I5: 7 | J5: 13 | K5: 18
A6: 2008-09 | C6: Angus
A7: 2009-10 | C7: Argyll & Bute
A8: 2010-11 | C8: Clackmannanshire | H8: Home Care Clients aged 65+ | I8: 8 | J8: 15 | K8: 15
A9: 2011-12 | C9: Dumfries & Galloway | H9: Clients aged 65+ receiving FPC at home | I9: 9 | J9: 16 | K9: 20
A10: 2012-13 | C10: Dundee City | H10: Average weekly hours of FPC at home | I10: 10
A11: 2013-14 | C11: East Ayrshire
A12: 2014-15 | C12: East Dunbartonshire
A13: 2015-16 | C13: East Lothian
C14: East Renfrewshire
C15: Edinburgh, City of
C16: Eilean Siar
C17: Falkirk
C18: Fife
C19: Glasgow City
C20: Highland
C21: Inverclyde
C22: Midlothian
C23: Moray
C24: North Ayrshire
C25: North Lanarkshire
C26: Orkney Islands
C27: Perth & Kinross
C28: Renfrewshire
C29: Scottish Borders
C30: Shetland Islands
C31: South Ayrshire
C32: South Lanarkshire
C33: Stirling
C34: West Dunbartonshire
C35: West Lothian

Sheet Main
B1: Free Personal & Nursing Care 2007-08 to 2016-17
B3: This spreadsheet presents the latest figures for free personal care (FPC) and free nursing care (FNC). Free personal and nursing care (FPNC) was introduced in Scotland on 1 July 2002. Prior to 1 July 2002, people could be charged for personal care services provided in their own home and many residents in Care Homes had to fully fund their care from their own income and savings. Care at home: b people aged 65 and over can no longer be charged for personal care services provided in their own home. They can however be charged for domestic services such as help with shopping or housework but any charge would be subject to a financial assessment. Care Homes: b people aged 65 or over who live in care homes and are assessed as self-funders can receive a weekly payment towards their personal care. This weekly FPC payment was set at £145 from 1 July 2002 and has risen to £171 from 1 April 2015. b people of all ages who live in care homes and are assessed as self-funders can receive a further payment if they require nursing care. This weekly FNC payment was set at £65 from 1 July 2002 and has risen to £78 from 1 April 2015. b the remainder of the care homes fees are funded themselves.
B4: Please refer to the background notes for further information on the data collection | H4: Background notes
B6: Contents | J6: Links
B8: Table 1 - | C8: FPNC provided to clients in a Care Home or provide at home, 2007-08 to 2016-17 | J8: Ü
C9: Times series data of either the number of FPNC clients or total FPNC expenditure. Data available for Scotland or by Local Authority and is presented in a table and charts.
B10: Table 2 - | C10: Breakdown of FPNC provided to clients in a Care Home, 2007-08 to 2016-17 | J10: Ü
C11: Times series data of either the number of FPNC clients or total FPNC expenditure within Care Homes. Data available for Scotland or by Local Authority and is presented in a table and charts.
B12: Table 3 - | C12: Local Authority table of FPNC provided to clients in a Care Home, 2007-08 to 2016-17 | J12: Ü
C13: Number of Care Home residents receiving FPNC by Local Authority. Allows for different data types to be presented by clients or expenditure and is presented in a table.
B14: Table 4 - | C14: Breakdown of FPC provided to clients at home, 2007-08 to 2016-17 | J14: Ü
C15: Times series data of either the number of FPNC clients or total FPNC expenditure receiving care at home. Data available for Scotland or by Local Authority and is presented in a table and charts.
B16: Table 5 - | C16: Local Authority table of FPC provided to clients at home, 2007-08 to 2016-17 | J16: Ü
C17: Number of home care clients receiving FPC by Local Authority. Allows for different data types to be presented by clients or expenditure and is presented in a table.
B20: Problem with drop down lists
B22: If the drop down lists are not working please ensure that Macro security settings are set to medium. To do this, go to ‘Tools’ menu and select ‘macro’. Then select ‘Security’ and ensure that the security setting is set to either ‘Medium’ or ‘Low’ (Medium is the recommended option). If your settings were set to ‘High’ you should reset the level when you have finished working with the template. Also when opening the file you will be asked whether you wish to “enable” or disable” macros. You must select “Enable macros”, otherwise the template will not function correctly.

Sheet Background notes
B1: Background information
B3: Data Sources
B5: A variety of different data sources were used to compile this Statistics Release, as detailed below:
B7: Community Care Quarterly key monitoring return
B8: Since July 2002, the Scottish Executive - followed by the Scottish Government - has collected quarterly information on the number of people receiving personal care services at home and the number of self-funders receiving free personal care and free nursing care payments. The numbers represent only those people receiving FPC and FNC under the Community Care and Health (Scotland) Act 2002.
B10: For Care Homes, this provides a count of those people who are self-funders and are assessed as requiring free personal care and/or free nursing care.
B12: For Home Care, the figures show all people receiving personal care services at home. Many of these people would have received their personal care for free prior to the introduction of the Community Care and Health (Scotland) Act 2002, but prior to July 2002 this was dependent on local policy and the client’s financial status. It is estimated that Local authorities spent at least £64.5 million in 2001-02 on providing personal care services. Full details available from:
B13: http://www.scotland.gov.uk/Topics/Statistics/Browse/Health/Data/FPNC
B15: The results of the quarterly survey are available at:
B16: http://www.scotland.gov.uk/Topics/Statistics/Browse/Health/Data/QuarterlySurvey
B18: A copy of the survey form and notes for guidance is available at:
B19: http://www.scotland.gov.uk/Topics/Statistics/Browse/Health/DataSupplier
B21: Up until 2011-12, this survey was conducted on a quarterly basis and the average of the four quarters was taken to produce an annual figure. However, since 2012-13 this survey has been conducted during the final quarter of the year only. This means that from 2012-13, the figures show a snapshot of the year rather than the average across the year.
B23: Home Care Census / Social Care Survey
B24: Information on Home Care services has been collected since the 1980's by means of an annual census. The census covers all Home Care services provided or purchased by Scottish Local Authorities.
B26: An aggregated table return for the Home Care statistical collection, called the H1, was introduced in 1998. Local authorities were asked to provide details of all Home Care services provided by their own staff, and in addition, services bought in from other local authorities, and private / voluntary organisations. Information on client age, for level and type of service was introduced to the collection in 2005.
B28: The information collected in the Home Care census was reviewed by the Home Care review group. A revised Home Care statistical collection was introduced in March 2010 which collected information on an individual basis for each Home Care client receiving home help services, meals services and community alarm / telecare services. From March 2013, this was merged with the Self-Directed Support / Direct Payments publication into the Social Care Survey. Further information is available from:
B29: http://www.scotland.gov.uk/Topics/Statistics/Browse/Health/Data/HomeCare
B31: Local Financial Return (LFR3)
B32: The Local Financial Return collects expenditure statistics for each local authority in Scotland. The LFR3 collects all expenditure and income relating to social work services. From 2004-05, questions relating to expenditure on free personal care were added to the LFR3 return. Further information is available from:
B33: http://www.scotland.gov.uk/Topics/Statistics/Browse/Local-Government-Finance
B35: Each year, data validation work is conducted on each of these sources before the official publication of the Free Personal and Nursing Care statistics. As part of the 2016-17 validation process, each Local Authority was sent a spreadsheet summarising their statistics and flagging up any anomalies. A blank copy of this spreadsheet can be found on our website at:
B36: http://www.scotland.gov.uk/Topics/Statistics/Browse/Health/FPNC
B39: Understanding the Statistics in this Report.
B41: All information in this Statistics Release is presented for the financial years - from 1st April to 31st March. Information is reported for a rolling ten-year period, which in the case of this release is from 2007-08 to 2016-17.
B43: Care Homes
B44: In general, care should be taken when comparing the data on ‘numbers’ of people receiving Free Personal Care and ‘expenditure’ on Free Personal Care. The number of people receiving FPC and FNC payments is collected for the last 3 months of the financial year and so represents the number of people receiving payments at the end of March each year, rather than for the whole financial year.
B46: Due to the large number of admissions and discharges throughout the year, this does not necessarily represent the number of people receiving FPC for the full 52 weeks of the year. In the year to March 2016, there were 14,400 long-stay admissions to Care Homes for older people in Scotland (ISD Care Home Census). This represents almost 277 long-stay admissions every week.
B49: Home Care
B50: As with the Care Homes data, the data for clients receiving personal care services at home provides a snapshot at the end of the financial year. This will not compare directly with the expenditure data which takes into account variations across the whole financial year. From 2009-10 onwards the Home Care Census (and from 2012-13 the Social Care Survey) has been used to provide the number of Home Care clients at the end of March each year.
B53: Limitations of the Data
B55: The CIPFA Best Value Accounting Code of Practice (BVACOP), Requires the inclusion of overheads within expenditure. For both Care Homes and Care at Home expenditure, since 2006-07 the LFR3 has required Local Authorities to include overheads in line with the BVACOP.
B57: Due to the identification that overheads were not being included consistently within expenditure figures by Local Authorities. In the 2011 publication a revised time series for expenditure on FPNC payments from 2003-04 to 2008-09 was published, after extensive work to ensure that all figures included overheads.
B59: Since the 2009-10 validation exercise, Local Authorities have been asked to confirm if their expenditure figures firstly contained overhead figures and then to either detail the amount included or to provide an estimate of that amount.
B61: For some local authorities it appears that gross expenditure on personal care services at home is higher than overall net expenditure on Home Care services for certain years. This can happen for a number of reasons:
B63: • Where resource transfer from Health Boards has been included as income against Home Care services for older people.
B64: • Where supporting people grant has been included as income against Home Care services for older people.
B65: • Where the personal care expenditure includes overheads but the Home Care expenditure returned in the LFR3 did not include an allocation of overheads.
B67: Many Local Authorities have seen a rise in personal care at home costs from 2006-07. The reasons for this are not just increased demand but also:
B69: • A shift in the balance of care, away from care homes towards more care at home.
B70: • The introduction of equal pay provision resulting in higher wage costs.
B71: • The provision of refunds to clients for meal preparation where this was previously charged for.
B74: Support Services
B76: There were several changes to the format of the relevant Local Government Finance return (LFR03) that Local Authorities submitted to the Scottish Government from 2012-13 onwards. Most notable was the introduction of a separate “Support Services” row, which includes expenditure on Finance, Legal, Human Resources, IT, Internal Audit, Procurement and Asset Management. This figure would previously have been spread across other rows representing specific service types (e.g. Net Expenditure in Care Homes).
B78: In order to make the figures from 2012-13 onwards presented here as comparable as possible with previous years, Net Expenditure in Care Homes and Net Expenditure on Home Care have been adjusted to account for the change in Support Services recording. This adjustment involves apportioning a fraction of the total Net Support Services expenditure for Older People to the Net Care Home / Home Care expenditure. This fraction to be applied is calculated using Gross Expenditure, in order to avoid negative values. The expenditure figures for Free Personal and/or Nursing Care have been validated by each Local Authority to include overheads in line with previous years, therefore these figures have not been adjusted to include Support Services.
B81: Changes to the data
B83: During the data validation process, some Local Authorities identified errors within data returns this has resulted in previously published figures being revised for some tables. This also means that figures will differ slightly from those within source publications. It should be noted that the revisions made at Local Authority level generally have a comparatively tiny effect on the Scotland figures.
B86: Data estimation
B88: In 2016-17, expenditure on Free Personal and Nursing Care in Care Homes was estimated for Scottish Borders. This was due to an observed discrepancy between expenditure and the number of clients receiving Free Personal and Nursing Care in Care Homes. To estimate the expenditure, the standard weekly payments were first multiplied by the number of clients receiving payments in Care Homes.
B90: Home Care expenditure was also estimated for Scottish Borders in 2016-17. This was due to all expenditure on Home Care being recorded in the 'Other' category in the LFR03 return. To estimate expenditure, the hourly rate (£17.62) for Free Personal Care provided at home across Scotland in 2015-16 was estimated and multiplied by the total number of Free Personal Care at home hours in each local authority in 2016-17.
B93: Further information
B95: Further details and analysis of the data presented in this Statistics Release are available on request from the address given below. The Statistics Release is available on the Internet by accessing the Scottish Government web site:
B96: http://www.scotland.gov.uk/Topics/Statistics/Browse/Health/Publications
B98: Information at local authority level is shown in the spreadsheet accompanying this Statistics Release.
B100: Contact: Steven Gillespie
B101: Basement Rear
B102: St Andrews House
B103: Edinburgh
B104: EH1 3DG
B106: Tel: 0131 244 3777
B107: E-mail: SWStat@gov.scot
B109: This statistics release was published on 31 July 2018.

Sheet Table1
B1: =IF($A$6="Clients",("Number of clients receiving FPNC in "&A5&", 2007-08 to 2016-17"),IF($A$6="Expenditure (£thousands - including overheads)",("FPNC Expenditure (including overheads) in "&A5&", 2007-08 to 2016-17"),("FPNC Expenditure (excluding overheads) in "&A5&", 2007-08 to 2016-17"))) -> FPNC Expenditure (excluding overheads) in Scotland, 2007-08 to 2016-17 | M1: Main page
C3: Select Local Authority: | F3: Select client or expenditure data: | M3: Background notes
A5: Scotland
A6: Expenditure (£thousands - excluding overheads) | I6: =IF(A6="Expenditure","£000's","") ->  | AD6: 07-08 | AE6: 08-09 | AF6: 09-10 | AG6: 10-11 | AH6: 11-12 | AI6: 12-13 | AJ6: 13-14 | AK6: 14-15 | AL6: 15-16 | AM6: 16-17
D7: 2007-08 | E7: 2008-09 | F7: 2009-10 | G7: 2010-11 | H7: 2011-12 | I7: 2012-13 | J7: 2013-14 | K7: 2014-15 | L7: 2015-16 | M7: 2016-17 | AD7: 2007-08 | AE7: 2008-09 | AF7: 2009-10 | AG7: 2010-11 | AH7: 2011-12 | AI7: 2012-13 | AJ7: 2013-14 | AK7: 2014-15 | AL7: 2015-16 | AM7: 2016-17
A8: =IF($A$6="Clients",5,IF($A$6="Expenditure (£thousands - including overheads)",14,19)) -> 19 | C8: Self-funders clients receiving FPNC in a Care Homes | D8: =VLOOKUP($A$5&D$7,Data!$B$4:$V$333,$A8,FALSE) -> 93,748 | E8: =VLOOKUP($A$5&E$7,Data!$B$4:$V$333,$A8,FALSE) -> 94,166 | F8: =VLOOKUP($A$5&F$7,Data!$B$4:$V$333,$A8,FALSE) -> 94,803 | G8: =VLOOKUP($A$5&G$7,Data!$B$4:$V$333,$A8,FALSE) -> 95,628 | H8: =VLOOKUP($A$5&H$7,Data!$B$4:$V$333,$A8,FALSE) -> 99,209 | I8: =VLOOKUP($A$5&I$7,Data!$B$4:$V$333,$A8,FALSE) -> 106,659 | J8: =VLOOKUP($A$5&J$7,Data!$B$4:$V$333,$A8,FALSE) -> 109,275 | K8: =VLOOKUP($A$5&K$7,Data!$B$4:$V$333,$A8,FALSE) -> 112,870 | L8: =VLOOKUP($A$5&L$7,Data!$B$4:$V$333,$A8,FALSE) -> 112,173 | M8: =VLOOKUP($A$5&M$7,Data!$B$4:$V$333,$A8,FALSE) -> 109,200 | AC8: Self-funders clients receiving FPNC in a Care Homes | AD8: =D8 -> 93,748 | AE8: 94,166 | AF8: 94,803 | AG8: 95,628 | AH8: 99,209 | AI8: 106,659 | AJ8: 109,275 | AK8: 112,870 | AL8: 112,173 | AM8: 109,200
A9: =IF($A$6="Clients",9,IF($A$6="Expenditure (£thousands - including overheads)",16,20)) -> 20 | C9: Clients aged 65+ receiving FPC at home | D9: =VLOOKUP($A$5&D$7,Data!$B$4:$V$333,$A9,FALSE) -> 238,160 | E9: =VLOOKUP($A$5&E$7,Data!$B$4:$V$333,$A9,FALSE) -> 246,516 | F9: =VLOOKUP($A$5&F$7,Data!$B$4:$V$333,$A9,FALSE) -> 280,836 | G9: =VLOOKUP($A$5&G$7,Data!$B$4:$V$333,$A9,FALSE) -> 306,402 | H9: =VLOOKUP($A$5&H$7,Data!$B$4:$V$333,$A9,FALSE) -> 315,800 | I9: =VLOOKUP($A$5&I$7,Data!$B$4:$V$333,$A9,FALSE) -> 320,870 | J9: =VLOOKUP($A$5&J$7,Data!$B$4:$V$333,$A9,FALSE) -> 327,383 | K9: =VLOOKUP($A$5&K$7,Data!$B$4:$V$333,$A9,FALSE) -> 330,647 | L9: =VLOOKUP($A$5&L$7,Data!$B$4:$V$333,$A9,FALSE) -> 340,011 | M9: =VLOOKUP($A$5&M$7,Data!$B$4:$V$333,$A9,FALSE) -> 346,149 | AC9: Clients aged 65+ receiving FPC at home | AD9: 238,160 | AE9: 246,516 | AF9: 280,836 | AG9: 306,402 | AH9: 315,800 | AI9: 320,870 | AJ9: 327,383 | AK9: 330,647 | AL9: 340,011 | AM9: 346,149
C10: Total | D10: =SUM(D8:D9) -> 331,908 | E10: =SUM(E8:E9) -> 340,682 | F10: =SUM(F8:F9) -> 375,639 | G10: =SUM(G8:G9) -> 402,030 | H10: =SUM(H8:H9) -> 415,009 | I10: 427,529 | J10: 436,658 | K10: 443,517 | L10: 452,184 | M10: 455,349 | AC10: Total | AD10: 331,908 | AE10: 340,682 | AF10: 375,639 | AG10: 402,030 | AH10: 415,009 | AI10: 427,529 | AJ10: 436,658 | AK10: 443,517 | AL10: 452,184 | AM10: 455,349
A12: 21 | C12: Population aged 65+ | D12: =VLOOKUP($A$5&D$7,Data!$B$4:$Z$333,$A12,FALSE) -> 846,005 | E12: =VLOOKUP($A$5&E$7,Data!$B$4:$Z$333,$A12,FALSE) -> 857,746 | F12: =VLOOKUP($A$5&F$7,Data!$B$4:$Z$333,$A12,FALSE) -> 870,557 | G12: =VLOOKUP($A$5&G$7,Data!$B$4:$Z$333,$A12,FALSE) -> 882,222 | H12: =VLOOKUP($A$5&H$7,Data!$B$4:$Z$333,$A12,FALSE) -> 935,192 | I12: =VLOOKUP($A$5&I$7,Data!$B$4:$Z$333,$A12,FALSE) -> 925,741 | J12: =VLOOKUP($A$5&J$7,Data!$B$4:$Z$333,$A12,FALSE) -> 946,898 | K12: =VLOOKUP($A$5&K$7,Data!$B$4:$Z$333,$A12,FALSE) -> 968,450 | L12: =VLOOKUP($A$5&L$7,Data!$B$4:$Z$333,$A12,FALSE) -> 982,998 | M12: =VLOOKUP($A$5&M$7,Data!$B$4:$Z$333,$A12,FALSE) -> 998,852 | AC12: Population aged 65+ | AD12: =D12 -> 846,005 | AE12: 857,746 | AF12: 870,557 | AG12: 882,222 | AH12: 935,192 | AI12: 925,741 | AJ12: 946,898 | AK12: 968,450 | AL12: 982,998 | AM12: 998,852
C13: Rate per 1,000 population aged 65+ | D13: =D10/D$12*1000 -> 392.32 | E13: =E10/E$12*1000 -> 397.18 | F13: =F10/F$12*1000 -> 431.49 | G13: =G10/G$12*1000 -> 455.70 | H13: 443.77 | I13: 461.82 | J13: 461.15 | K13: 457.97 | L13: 460.01 | M13: 455.87 | AC13: Rate per 1,000 population aged 65+ | AD13: 392 | AE13: 397 | AF13: 431 | AG13: 456 | AH13: 444 | AI13: 462 | AJ13: 461 | AK13: 458 | AL13: 460 | AM13: 456
C15: Source: Community Care Quarterly Key Monitoring Return (Client data), Social Care Survey 2013 onwards, FPNC survey and LFR3 (Expenditure data), NRS mid-year estimates (population data)
C16: =IF($A$6="Clients","FPNC figures are yearly averages rounded to the nearest 10.",IF($A$6="Expenditure (Inc Overheads)","FPNC figures are in £thousands and include overheads.","FPNC figures are in £thousands and exclude overheads.")) -> FPNC figures are in £thousands and exclude overheads.
C17: =IF($A$5="Dumfries & Galloway", C43, "") -> 
C20: =IF($A$6="Clients","Chart 1 - Number of clients receiving FPNC",IF($A$6="Expenditure (£thousands - including overheads)","Chart 1 - FPNC Expenditure (including overheads)","Chart 1 - FPNC Expenditure (excluding overheads)")) -> Chart 1 - FPNC Expenditure (excluding overheads) | G20: =IF($A$6="Clients","Chart 2 - FPNC client rate per 1,000 population aged 65+","Chart 2 - Expenditure rate per 1,000 population aged 65+") -> Chart 2 - Expenditure rate per 1,000 population aged 65+
C43: The system used to report the number of clients in care homes in Dumfries & Galloway has recently been updated to properly reflect the number of self-funders in receipt of free personal and nursing care. This means that client numbers for Dumfries & Galloway in 2016/17 are not strictly comparable with previous years.
C44: in receipt of free personal and nursing care. This means that client numbers in 2016/17 are not strictly comparable with previous years.
C45: =$A$43&$A$44 -> 

Sheet Table2
B1: =IF($A$6="Clients",("Number of self-funders within Care Homes receiving FPNC in "& A5&", 2007-08 to 2016-17"),("Expenditure in Care Homes on FPNC in "& A5&", 2007-08 to 2016-17")) -> Number of self-funders within Care Homes receiving FPNC in Scotland, 2007-08 to 2016-17 | M1: Main page
C3: Select Local Authority: | F3: Select client or expenditure data: | M3: Background notes
A5: Scotland
A6: Clients | I6: =IF(A6="Expenditure","£000's","") ->  | AE6: 07-08 | AF6: 08-09 | AG6: 09-10 | AH6: 10-11 | AI6: 11-12 | AJ6: 12-13 | AK6: 13-14 | AL6: 14-15 | AM6: 15-16 | AN6: 16-17
D7: 2007-08 | E7: 2008-09 | F7: 2009-10 | G7: 2010-11 | H7: 2011-12 | I7: 2012-13 | J7: 2013-14 | K7: 2014-15 | L7: 2015-16 | M7: 2016-17 | AE7: 2007-08 | AF7: 2008-09 | AG7: 2009-10 | AH7: 2010-11 | AI7: 2011-12 | AJ7: 2012-13 | AK7: 2013-14 | AL7: 2014-15 | AM7: 2015-16 | AN7: 2016-17
A8: =IF($A$6="Clients",4,11) -> 4 | C8: Long-stay residents aged 65+ supported in care homes | D8: =VLOOKUP($A$5&D$7,Data!$B$4:$V$333,$A8,FALSE) -> 31,730 | E8: =VLOOKUP($A$5&E$7,Data!$B$4:$V$333,$A8,FALSE) -> 31,530 | F8: =VLOOKUP($A$5&F$7,Data!$B$4:$V$333,$A8,FALSE) -> 31,470 | G8: =VLOOKUP($A$5&G$7,Data!$B$4:$V$333,$A8,FALSE) -> 31,020 | H8: =VLOOKUP($A$5&H$7,Data!$B$4:$V$333,$A8,FALSE) -> 30,750 | I8: =VLOOKUP($A$5&I$7,Data!$B$4:$V$333,$A8,FALSE) -> 30,260 | J8: =VLOOKUP($A$5&J$7,Data!$B$4:$V$333,$A8,FALSE) -> 30,800 | K8: =VLOOKUP($A$5&K$7,Data!$B$4:$V$333,$A8,FALSE) -> 30,520 | L8: =VLOOKUP($A$5&L$7,Data!$B$4:$V$333,$A8,FALSE) -> 30,800 | M8: =VLOOKUP($A$5&M$7,Data!$B$4:$V$333,$A8,FALSE) -> 30,670 | AD8: Long-stay residents aged 65+ supported in care homes | AE8: =D8 -> 31,730 | AF8: 31,530 | AG8: 31,470 | AH8: 31,020 | AI8: 30,750 | AJ8: 30,260 | AK8: 30,800 | AL8: 30,520 | AM8: =L8 -> 30,800 | AN8: 30,670
A9: =IF($A$6="Clients",5,IF($A$6="Expenditure (£thousands - including overheads)",14,19)) -> 5 | C9: Self-funders receiving FPNC in Care Homes | D9: =VLOOKUP($A$5&D$7,Data!$B$4:$V$333,$A9,FALSE) -> 9,590 | E9: =VLOOKUP($A$5&E$7,Data!$B$4:$V$333,$A9,FALSE) -> 9,640 | F9: =VLOOKUP($A$5&F$7,Data!$B$4:$V$333,$A9,FALSE) -> 9,380 | G9: =VLOOKUP($A$5&G$7,Data!$B$4:$V$333,$A9,FALSE) -> 9,550 | H9: =VLOOKUP($A$5&H$7,Data!$B$4:$V$333,$A9,FALSE) -> 9,720 | I9: =VLOOKUP($A$5&I$7,Data!$B$4:$V$333,$A9,FALSE) -> 9,580 | J9: =VLOOKUP($A$5&J$7,Data!$B$4:$V$333,$A9,FALSE) -> 9,840 | K9: =VLOOKUP($A$5&K$7,Data!$B$4:$V$333,$A9,FALSE) -> 9,910 | L9: =VLOOKUP($A$5&L$7,Data!$B$4:$V$333,$A9,FALSE) -> 9,870 | M9: =VLOOKUP($A$5&M$7,Data!$B$4:$V$333,$A9,FALSE) -> 9,910 | AD9: Self-funders receiving FPNC or FPC only or FNC only in Care Homes | AE9: 9,590 | AF9: 9,640 | AG9: 9,380 | AH9: 9,550 | AI9: 9,720 | AJ9: 9,580 | AK9: 9,840 | AL9: 9,910 | AM9: 9,870 | AN9: 9,910
C10: Percentage receiving FPNC | D10: =D9/D8 -> 30% | E10: =E9/E8 -> 31% | F10: =F9/F8 -> 30% | G10: =G9/G8 -> 31% | H10: 32% | I10: 32% | J10: 32% | K10: 32% | L10: 32% | M10: 32% | AD10: Percentage receiving FPNC | AE10: 30% | AF10: 31% | AG10: 30% | AH10: 31% | AI10: 32% | AJ10: 32% | AK10: 32% | AL10: 32% | AM10: 32% | AN10: 32%
A12: =IF($A$6="Clients",6,IF($A$6="Expenditure (£thousands - including overheads)",12,17)) -> 6 | C12: Self-funders 65+ receiving FPC in Care Homes | D12: =VLOOKUP($A$5&D$7,Data!$B$4:$V$333,$A12,FALSE) -> 9,510 | E12: =VLOOKUP($A$5&E$7,Data!$B$4:$V$333,$A12,FALSE) -> 9,580 | F12: =VLOOKUP($A$5&F$7,Data!$B$4:$V$333,$A12,FALSE) -> 9,330 | G12: =VLOOKUP($A$5&G$7,Data!$B$4:$V$333,$A12,FALSE) -> 9,490 | H12: =VLOOKUP($A$5&H$7,Data!$B$4:$V$333,$A12,FALSE) -> 9,660 | I12: =VLOOKUP($A$5&I$7,Data!$B$4:$V$333,$A12,FALSE) -> 9,520 | J12: =VLOOKUP($A$5&J$7,Data!$B$4:$V$333,$A12,FALSE) -> 9,780 | K12: =VLOOKUP($A$5&K$7,Data!$B$4:$V$333,$A12,FALSE) -> 9,870 | L12: =VLOOKUP($A$5&L$7,Data!$B$4:$V$333,$A12,FALSE) -> 9,820 | M12: =VLOOKUP($A$5&M$7,Data!$B$4:$V$333,$A12,FALSE) -> 9,870 | AD12: Self-funders 65+ receiving FPC in Care Homes | AE12: =D12 -> 9,510 | AF12: 9,580 | AG12: 9,330 | AH12: 9,490 | AI12: 9,660 | AJ12: 9,520 | AK12: 9,780 | AL12: 9,870 | AM12: =L12 -> 9,820 | AN12: =M12 -> 9,870
A13: =IF($A$6="Clients",7,IF($A$6="Expenditure (£thousands - including overheads)",13,18)) -> 7 | C13: Self-funders receiving FNC in Care Homes | D13: =VLOOKUP($A$5&D$7,Data!$B$4:$V$333,$A13,FALSE) -> 6,130 | E13: =VLOOKUP($A$5&E$7,Data!$B$4:$V$333,$A13,FALSE) -> 6,180 | F13: =VLOOKUP($A$5&F$7,Data!$B$4:$V$333,$A13,FALSE) -> 5,960 | G13: =VLOOKUP($A$5&G$7,Data!$B$4:$V$333,$A13,FALSE) -> 6,000 | H13: =VLOOKUP($A$5&H$7,Data!$B$4:$V$333,$A13,FALSE) -> 6,050 | I13: =VLOOKUP($A$5&I$7,Data!$B$4:$V$333,$A13,FALSE) -> 6,130 | J13: =VLOOKUP($A$5&J$7,Data!$B$4:$V$333,$A13,FALSE) -> 6,030 | K13: =VLOOKUP($A$5&K$7,Data!$B$4:$V$333,$A13,FALSE) -> 6,080 | L13: =VLOOKUP($A$5&L$7,Data!$B$4:$V$333,$A13,FALSE) -> 6,040 | M13: =VLOOKUP($A$5&M$7,Data!$B$4:$V$333,$A13,FALSE) -> 5,940 | AD13: Self-funders receiving FNC in Care Homes | AE13: 6,130 | AF13: 6,180 | AG13: 5,960 | AH13: 6,000 | AI13: 6,050 | AJ13: 6,130 | AK13: 6,030 | AL13: 6,080 | AM13: =L13 -> 6,040 | AN13: =M13 -> 5,940
C15: Source: Community Care Quarterly Key Monitoring Return (Client data), Social Care Survey 2013 onwards, FPNC survey and LFR3 (Expenditure data), NRS mid-year estimates (population data)
C16: =IF($A$6="Clients","FNPC figures are yearly averages rounded to the nearest 10.",IF($A$6="Expenditure (Inc Overheads)","Expenditure figures are in £thousands. Overheads are included in all FPNC figures","FPC figures are in £thousands. Overheads are excluded from all FPNC figures")) -> FNPC figures are yearly averages rounded to the nearest 10.
C17: =IF($A$5="Dumfries & Galloway", C43, "") -> 
C19: =IF($A$6="Clients","Chart 1 - Number of clients receiving FPNC",IF($A$6="Expenditure (£thousands - including overheads)","Chart 1 - FPNC Expenditure (including overheads)","Chart 1 - FPNC Expenditure (excluding overheads)")) -> Chart 1 - Number of clients receiving FPNC | G19: =IF($A$6="Clients","Chart 2 - Percentage of long stay residents receiving FPNC","Chart 2 - Percentage of Care home expenditure on FPNC") -> Chart 2 - Percentage of long stay residents receiving FPNC
C43: The system used to report the number of clients in care homes in Dumfries & Galloway has recently been updated to properly reflect the number of self-funders in receipt of free personal and nursing care. This means that client numbers for Dumfries & Galloway in 2016/17 are not strictly comparable with previous years.

Sheet Table3
B1: =IF(A6="Clients",("Number of "&A5&", 2007-08 to 2016-17"),IF(A4="Long",("Net expenditure on "&A5&", 2007-08 to 2016-17"),("Expenditure on "&A5&", 2007-08 to 2016-17"))) -> Number of Long-stay residents aged 65+ supported in Care Homes, 2007-08 to 2016-17 | M1: Main page
C3: Select required data type: | H3: Select client or expenditure data: | M3: Background notes
A4: =MID(A5,1,4) -> Long
A5: Long-stay residents aged 65+ supported in Care Homes
A6: Clients
A7: =IF(A6="Clients",2,IF($A$6="Expenditure (£thousands - including overheads)",3,4)) -> 2 | C7: Local Authority | D7: 2007-08 | E7: 2008-09 | F7: 2009-10 | G7: 2010-11 | H7: 2011-12 | I7: 2012-13 | J7: 2013-14 | K7: 2014-15 | L7: 2015-16 | M7: 2016-17
A8: =VLOOKUP(A5,Lookups!H2:K5,A7,FALSE) -> 4 | C8: Aberdeen City | D8: =VLOOKUP($C8&D$7,Data!$B$4:$V$333,$A$8,FALSE) -> 1,590 | E8: =VLOOKUP($C8&E$7,Data!$B$4:$V$333,$A$8,FALSE) -> 1,540 | F8: =VLOOKUP($C8&F$7,Data!$B$4:$V$333,$A$8,FALSE) -> 1,530 | G8: =VLOOKUP($C8&G$7,Data!$B$4:$V$333,$A$8,FALSE) -> 1,540 | H8: =VLOOKUP($C8&H$7,Data!$B$4:$V$333,$A$8,FALSE) -> 1,440 | I8: =VLOOKUP($C8&I$7,Data!$B$4:$V$333,$A$8,FALSE) -> 1,200 | J8: =VLOOKUP($C8&J$7,Data!$B$4:$V$333,$A$8,FALSE) -> 1,340 | K8: =VLOOKUP($C8&K$7,Data!$B$4:$V$333,$A$8,FALSE) -> 1,350 | L8: =VLOOKUP($C8&L$7,Data!$B$4:$V$333,$A$8,FALSE) -> 1,310 | M8: =VLOOKUP($C8&M$7,Data!$B$4:$V$333,$A$8,FALSE) -> 1,260
C9: Aberdeenshire | D9: =VLOOKUP($C9&D$7,Data!$B$4:$V$333,$A$8,FALSE) -> 1,360 | E9: =VLOOKUP($C9&E$7,Data!$B$4:$V$333,$A$8,FALSE) -> 1,380 | F9: =VLOOKUP($C9&F$7,Data!$B$4:$V$333,$A$8,FALSE) -> 1,360 | G9: =VLOOKUP($C9&G$7,Data!$B$4:$V$333,$A$8,FALSE) -> 1,350 | H9: =VLOOKUP($C9&H$7,Data!$B$4:$V$333,$A$8,FALSE) -> 1,350 | I9: =VLOOKUP($C9&I$7,Data!$B$4:$V$333,$A$8,FALSE) -> 1,370 | J9: =VLOOKUP($C9&J$7,Data!$B$4:$V$333,$A$8,FALSE) -> 1,410 | K9: =VLOOKUP($C9&K$7,Data!$B$4:$V$333,$A$8,FALSE) -> 1,410 | L9: =VLOOKUP($C9&L$7,Data!$B$4:$V$333,$A$8,FALSE) -> 1,480 | M9: =VLOOKUP($C9&M$7,Data!$B$4:$V$333,$A$8,FALSE) -> 1,450
C10: Angus | D10: =VLOOKUP($C10&D$7,Data!$B$4:$V$333,$A$8,FALSE) -> 680 | E10: =VLOOKUP($C10&E$7,Data!$B$4:$V$333,$A$8,FALSE) -> 620 | F10: =VLOOKUP($C10&F$7,Data!$B$4:$V$333,$A$8,FALSE) -> 780 | G10: =VLOOKUP($C10&G$7,Data!$B$4:$V$333,$A$8,FALSE) -> 840 | H10: =VLOOKUP($C10&H$7,Data!$B$4:$V$333,$A$8,FALSE) -> 810 | I10: =VLOOKUP($C10&I$7,Data!$B$4:$V$333,$A$8,FALSE) -> 740 | J10: =VLOOKUP($C10&J$7,Data!$B$4:$V$333,$A$8,FALSE) -> 730 | K10: =VLOOKUP($C10&K$7,Data!$B$4:$V$333,$A$8,FALSE) -> 710 | L10: =VLOOKUP($C10&L$7,Data!$B$4:$V$333,$A$8,FALSE) -> 710 | M10: =VLOOKUP($C10&M$7,Data!$B$4:$V$333,$A$8,FALSE) -> 750
C11: Argyll & Bute | D11: =VLOOKUP($C11&D$7,Data!$B$4:$V$333,$A$8,FALSE) -> 790 | E11: =VLOOKUP($C11&E$7,Data!$B$4:$V$333,$A$8,FALSE) -> 770 | F11: =VLOOKUP($C11&F$7,Data!$B$4:$V$333,$A$8,FALSE) -> 690 | G11: =VLOOKUP($C11&G$7,Data!$B$4:$V$333,$A$8,FALSE) -> 600 | H11: =VLOOKUP($C11&H$7,Data!$B$4:$V$333,$A$8,FALSE) -> 560 | I11: =VLOOKUP($C11&I$7,Data!$B$4:$V$333,$A$8,FALSE) -> 510 | J11: =VLOOKUP($C11&J$7,Data!$B$4:$V$333,$A$8,FALSE) -> 510 | K11: =VLOOKUP($C11&K$7,Data!$B$4:$V$333,$A$8,FALSE) -> 510 | L11: =VLOOKUP($C11&L$7,Data!$B$4:$V$333,$A$8,FALSE) -> 520 | M11: =VLOOKUP($C11&M$7,Data!$B$4:$V$333,$A$8,FALSE) -> 550
C12: Clackmannanshire | D12: =VLOOKUP($C12&D$7,Data!$B$4:$V$333,$A$8,FALSE) -> 250 | E12: =VLOOKUP($C12&E$7,Data!$B$4:$V$333,$A$8,FALSE) -> 240 | F12: =VLOOKUP($C12&F$7,Data!$B$4:$V$333,$A$8,FALSE) -> 230 | G12: =VLOOKUP($C12&G$7,Data!$B$4:$V$333,$A$8,FALSE) -> 230 | H12: =VLOOKUP($C12&H$7,Data!$B$4:$V$333,$A$8,FALSE) -> 210 | I12: =VLOOKUP($C12&I$7,Data!$B$4:$V$333,$A$8,FALSE) -> 220 | J12: =VLOOKUP($C12&J$7,Data!$B$4:$V$333,$A$8,FALSE) -> 210 | K12: =VLOOKUP($C12&K$7,Data!$B$4:$V$333,$A$8,FALSE) -> 200 | L12: =VLOOKUP($C12&L$7,Data!$B$4:$V$333,$A$8,FALSE) -> 220 | M12: =VLOOKUP($C12&M$7,Data!$B$4:$V$333,$A$8,FALSE) -> 230
C13: Dumfries & Galloway | D13: =VLOOKUP($C13&D$7,Data!$B$4:$V$333,$A$8,FALSE) -> 870 | E13: =VLOOKUP($C13&E$7,Data!$B$4:$V$333,$A$8,FALSE) -> 900 | F13: =VLOOKUP($C13&F$7,Data!$B$4:$V$333,$A$8,FALSE) -> 910 | G13: =VLOOKUP($C13&G$7,Data!$B$4:$V$333,$A$8,FALSE) -> 880 | H13: =VLOOKUP($C13&H$7,Data!$B$4:$V$333,$A$8,FALSE) -> 930 | I13: =VLOOKUP($C13&I$7,Data!$B$4:$V$333,$A$8,FALSE) -> 940 | J13: =VLOOKUP($C13&J$7,Data!$B$4:$V$333,$A$8,FALSE) -> 960 | K13: =VLOOKUP($C13&K$7,Data!$B$4:$V$333,$A$8,FALSE) -> 1,000 | L13: =VLOOKUP($C13&L$7,Data!$B$4:$V$333,$A$8,FALSE) -> 1,050 | M13: =VLOOKUP($C13&M$7,Data!$B$4:$V$333,$A$8,FALSE) -> 1,110
C14: Dundee City | D14: =VLOOKUP($C14&D$7,Data!$B$4:$V$333,$A$8,FALSE) -> 880 | E14: =VLOOKUP($C14&E$7,Data!$B$4:$V$333,$A$8,FALSE) -> 960 | F14: =VLOOKUP($C14&F$7,Data!$B$4:$V$333,$A$8,FALSE) -> 990 | G14: =VLOOKUP($C14&G$7,Data!$B$4:$V$333,$A$8,FALSE) -> 960 | H14: =VLOOKUP($C14&H$7,Data!$B$4:$V$333,$A$8,FALSE) -> 940 | I14: =VLOOKUP($C14&I$7,Data!$B$4:$V$333,$A$8,FALSE) -> 970 | J14: =VLOOKUP($C14&J$7,Data!$B$4:$V$333,$A$8,FALSE) -> 1,060 | K14: =VLOOKUP($C14&K$7,Data!$B$4:$V$333,$A$8,FALSE) -> 1,050 | L14: =VLOOKUP($C14&L$7,Data!$B$4:$V$333,$A$8,FALSE) -> 1,030 | M14: =VLOOKUP($C14&M$7,Data!$B$4:$V$333,$A$8,FALSE) -> 1,030
C15: East Ayrshire | D15: =VLOOKUP($C15&D$7,Data!$B$4:$V$333,$A$8,FALSE) -> 690 | E15: =VLOOKUP($C15&E$7,Data!$B$4:$V$333,$A$8,FALSE) -> 700 | F15: =VLOOKUP($C15&F$7,Data!$B$4:$V$333,$A$8,FALSE) -> 710 | G15: =VLOOKUP($C15&G$7,Data!$B$4:$V$333,$A$8,FALSE) -> 740 | H15: =VLOOKUP($C15&H$7,Data!$B$4:$V$333,$A$8,FALSE) -> 570 | I15: =VLOOKUP($C15&I$7,Data!$B$4:$V$333,$A$8,FALSE) -> 710 | J15: =VLOOKUP($C15&J$7,Data!$B$4:$V$333,$A$8,FALSE) -> 800 | K15: =VLOOKUP($C15&K$7,Data!$B$4:$V$333,$A$8,FALSE) -> 720 | L15: =VLOOKUP($C15&L$7,Data!$B$4:$V$333,$A$8,FALSE) -> 740 | M15: =VLOOKUP($C15&M$7,Data!$B$4:$V$333,$A$8,FALSE) -> 730
C16: East Dunbartonshire | D16: =VLOOKUP($C16&D$7,Data!$B$4:$V$333,$A$8,FALSE) -> 560 | E16: =VLOOKUP($C16&E$7,Data!$B$4:$V$333,$A$8,FALSE) -> 590 | F16: =VLOOKUP($C16&F$7,Data!$B$4:$V$333,$A$8,FALSE) -> 610 | G16: =VLOOKUP($C16&G$7,Data!$B$4:$V$333,$A$8,FALSE) -> 580 | H16: =VLOOKUP($C16&H$7,Data!$B$4:$V$333,$A$8,FALSE) -> 580 | I16: =VLOOKUP($C16&I$7,Data!$B$4:$V$333,$A$8,FALSE) -> 610 | J16: =VLOOKUP($C16&J$7,Data!$B$4:$V$333,$A$8,FALSE) -> 650 | K16: =VLOOKUP($C16&K$7,Data!$B$4:$V$333,$A$8,FALSE) -> 640 | L16: =VLOOKUP($C16&L$7,Data!$B$4:$V$333,$A$8,FALSE) -> 650 | M16: =VLOOKUP($C16&M$7,Data!$B$4:$V$333,$A$8,FALSE) -> 680
C17: East Lothian | D17: =VLOOKUP($C17&D$7,Data!$B$4:$V$333,$A$8,FALSE) -> 590 | E17: =VLOOKUP($C17&E$7,Data!$B$4:$V$333,$A$8,FALSE) -> 570 | F17: =VLOOKUP($C17&F$7,Data!$B$4:$V$333,$A$8,FALSE) -> 570 | G17: =VLOOKUP($C17&G$7,Data!$B$4:$V$333,$A$8,FALSE) -> 600 | H17: =VLOOKUP($C17&H$7,Data!$B$4:$V$333,$A$8,FALSE) -> 610 | I17: =VLOOKUP($C17&I$7,Data!$B$4:$V$333,$A$8,FALSE) -> 580 | J17: =VLOOKUP($C17&J$7,Data!$B$4:$V$333,$A$8,FALSE) -> 600 | K17: =VLOOKUP($C17&K$7,Data!$B$4:$V$333,$A$8,FALSE) -> 570 | L17: =VLOOKUP($C17&L$7,Data!$B$4:$V$333,$A$8,FALSE) -> 590 | M17: =VLOOKUP($C17&M$7,Data!$B$4:$V$333,$A$8,FALSE) -> 580
C18: East Renfrewshire | D18: =VLOOKUP($C18&D$7,Data!$B$4:$V$333,$A$8,FALSE) -> 530 | E18: =VLOOKUP($C18&E$7,Data!$B$4:$V$333,$A$8,FALSE) -> 530 | F18: =VLOOKUP($C18&F$7,Data!$B$4:$V$333,$A$8,FALSE) -> 520 | G18: =VLOOKUP($C18&G$7,Data!$B$4:$V$333,$A$8,FALSE) -> 510 | H18: =VLOOKUP($C18&H$7,Data!$B$4:$V$333,$A$8,FALSE) -> 510 | I18: =VLOOKUP($C18&I$7,Data!$B$4:$V$333,$A$8,FALSE) -> 560 | J18: =VLOOKUP($C18&J$7,Data!$B$4:$V$333,$A$8,FALSE) -> 570 | K18: =VLOOKUP($C18&K$7,Data!$B$4:$V$333,$A$8,FALSE) -> 570 | L18: =VLOOKUP($C18&L$7,Data!$B$4:$V$333,$A$8,FALSE) -> 580 | M18: =VLOOKUP($C18&M$7,Data!$B$4:$V$333,$A$8,FALSE) -> 590
C19: Edinburgh, City of | D19: =VLOOKUP($C19&D$7,Data!$B$4:$V$333,$A$8,FALSE) -> 2,950 | E19: =VLOOKUP($C19&E$7,Data!$B$4:$V$333,$A$8,FALSE) -> 2,840 | F19: =VLOOKUP($C19&F$7,Data!$B$4:$V$333,$A$8,FALSE) -> 2,870 | G19: =VLOOKUP($C19&G$7,Data!$B$4:$V$333,$A$8,FALSE) -> 2,870 | H19: =VLOOKUP($C19&H$7,Data!$B$4:$V$333,$A$8,FALSE) -> 2,800 | I19: =VLOOKUP($C19&I$7,Data!$B$4:$V$333,$A$8,FALSE) -> 2,710 | J19: =VLOOKUP($C19&J$7,Data!$B$4:$V$333,$A$8,FALSE) -> 2,660 | K19: =VLOOKUP($C19&K$7,Data!$B$4:$V$333,$A$8,FALSE) -> 2,620 | L19: =VLOOKUP($C19&L$7,Data!$B$4:$V$333,$A$8,FALSE) -> 2,600 | M19: =VLOOKUP($C19&M$7,Data!$B$4:$V$333,$A$8,FALSE) -> 2,530
C20: Eilean Siar | D20: =VLOOKUP($C20&D$7,Data!$B$4:$V$333,$A$8,FALSE) -> 190 | E20: =VLOOKUP($C20&E$7,Data!$B$4:$V$333,$A$8,FALSE) -> 190 | F20: =VLOOKUP($C20&F$7,Data!$B$4:$V$333,$A$8,FALSE) -> 190 | G20: =VLOOKUP($C20&G$7,Data!$B$4:$V$333,$A$8,FALSE) -> 190 | H20: =VLOOKUP($C20&H$7,Data!$B$4:$V$333,$A$8,FALSE) -> 190 | I20: =VLOOKUP($C20&I$7,Data!$B$4:$V$333,$A$8,FALSE) -> 180 | J20: =VLOOKUP($C20&J$7,Data!$B$4:$V$333,$A$8,FALSE) -> 180 | K20: =VLOOKUP($C20&K$7,Data!$B$4:$V$333,$A$8,FALSE) -> 180 | L20: =VLOOKUP($C20&L$7,Data!$B$4:$V$333,$A$8,FALSE) -> 190 | M20: =VLOOKUP($C20&M$7,Data!$B$4:$V$333,$A$8,FALSE) -> 190
C21: Falkirk | D21: =VLOOKUP($C21&D$7,Data!$B$4:$V$333,$A$8,FALSE) -> 740 | E21: =VLOOKUP($C21&E$7,Data!$B$4:$V$333,$A$8,FALSE) -> 760 | F21: =VLOOKUP($C21&F$7,Data!$B$4:$V$333,$A$8,FALSE) -> 760 | G21: =VLOOKUP($C21&G$7,Data!$B$4:$V$333,$A$8,FALSE) -> 780 | H21: =VLOOKUP($C21&H$7,Data!$B$4:$V$333,$A$8,FALSE) -> 800 | I21: =VLOOKUP($C21&I$7,Data!$B$4:$V$333,$A$8,FALSE) -> 790 | J21: =VLOOKUP($C21&J$7,Data!$B$4:$V$333,$A$8,FALSE) -> 850 | K21: =VLOOKUP($C21&K$7,Data!$B$4:$V$333,$A$8,FALSE) -> 860 | L21: =VLOOKUP($C21&L$7,Data!$B$4:$V$333,$A$8,FALSE) -> 890 | M21: =VLOOKUP($C21&M$7,Data!$B$4:$V$333,$A$8,FALSE) -> 860
C22: Fife | D22: =VLOOKUP($C22&D$7,Data!$B$4:$V$333,$A$8,FALSE) -> 2,190 | E22: =VLOOKUP($C22&E$7,Data!$B$4:$V$333,$A$8,FALSE) -> 2,130 | F22: =VLOOKUP($C22&F$7,Data!$B$4:$V$333,$A$8,FALSE) -> 2,150 | G22: =VLOOKUP($C22&G$7,Data!$B$4:$V$333,$A$8,FALSE) -> 2,170 | H22: =VLOOKUP($C22&H$7,Data!$B$4:$V$333,$A$8,FALSE) -> 2,230 | I22: =VLOOKUP($C22&I$7,Data!$B$4:$V$333,$A$8,FALSE) -> 2,120 | J22: =VLOOKUP($C22&J$7,Data!$B$4:$V$333,$A$8,FALSE) -> 2,140 | K22: =VLOOKUP($C22&K$7,Data!$B$4:$V$333,$A$8,FALSE) -> 2,210 | L22: =VLOOKUP($C22&L$7,Data!$B$4:$V$333,$A$8,FALSE) -> 2,310 | M22: =VLOOKUP($C22&M$7,Data!$B$4:$V$333,$A$8,FALSE) -> 2,290
C23: Glasgow City | D23: =VLOOKUP($C23&D$7,Data!$B$4:$V$333,$A$8,FALSE) -> 4,430 | E23: =VLOOKUP($C23&E$7,Data!$B$4:$V$333,$A$8,FALSE) -> 4,300 | F23: =VLOOKUP($C23&F$7,Data!$B$4:$V$333,$A$8,FALSE) -> 4,180 | G23: =VLOOKUP($C23&G$7,Data!$B$4:$V$333,$A$8,FALSE) -> 4,000 | H23: =VLOOKUP($C23&H$7,Data!$B$4:$V$333,$A$8,FALSE) -> 3,960 | I23: =VLOOKUP($C23&I$7,Data!$B$4:$V$333,$A$8,FALSE) -> 3,900 | J23: =VLOOKUP($C23&J$7,Data!$B$4:$V$333,$A$8,FALSE) -> 3,800 | K23: =VLOOKUP($C23&K$7,Data!$B$4:$V$333,$A$8,FALSE) -> 3,570 | L23: =VLOOKUP($C23&L$7,Data!$B$4:$V$333,$A$8,FALSE) -> 3,600 | M23: =VLOOKUP($C23&M$7,Data!$B$4:$V$333,$A$8,FALSE) -> 3,330
C24: Highland | D24: =VLOOKUP($C24&D$7,Data!$B$4:$V$333,$A$8,FALSE) -> 1,440 | E24: =VLOOKUP($C24&E$7,Data!$B$4:$V$333,$A$8,FALSE) -> 1,450 | F24: =VLOOKUP($C24&F$7,Data!$B$4:$V$333,$A$8,FALSE) -> 1,510 | G24: =VLOOKUP($C24&G$7,Data!$B$4:$V$333,$A$8,FALSE) -> 1,510 | H24: =VLOOKUP($C24&H$7,Data!$B$4:$V$333,$A$8,FALSE) -> 1,500 | I24: =VLOOKUP($C24&I$7,Data!$B$4:$V$333,$A$8,FALSE) -> 1,470 | J24: =VLOOKUP($C24&J$7,Data!$B$4:$V$333,$A$8,FALSE) -> 1,490 | K24: =VLOOKUP($C24&K$7,Data!$B$4:$V$333,$A$8,FALSE) -> 1,560 | L24: =VLOOKUP($C24&L$7,Data!$B$4:$V$333,$A$8,FALSE) -> 1,570 | M24: =VLOOKUP($C24&M$7,Data!$B$4:$V$333,$A$8,FALSE) -> 1,580
C25: Inverclyde | D25: =VLOOKUP($C25&D$7,Data!$B$4:$V$333,$A$8,FALSE) -> 580 | E25: =VLOOKUP($C25&E$7,Data!$B$4:$V$333,$A$8,FALSE) -> 600 | F25: =VLOOKUP($C25&F$7,Data!$B$4:$V$333,$A$8,FALSE) -> 560 | G25: =VLOOKUP($C25&G$7,Data!$B$4:$V$333,$A$8,FALSE) -> 610 | H25: =VLOOKUP($C25&H$7,Data!$B$4:$V$333,$A$8,FALSE) -> 600 | I25: =VLOOKUP($C25&I$7,Data!$B$4:$V$333,$A$8,FALSE) -> 570 | J25: =VLOOKUP($C25&J$7,Data!$B$4:$V$333,$A$8,FALSE) -> 600 | K25: =VLOOKUP($C25&K$7,Data!$B$4:$V$333,$A$8,FALSE) -> 680 | L25: =VLOOKUP($C25&L$7,Data!$B$4:$V$333,$A$8,FALSE) -> 620 | M25: =VLOOKUP($C25&M$7,Data!$B$4:$V$333,$A$8,FALSE) -> 600
C26: Midlothian | D26: =VLOOKUP($C26&D$7,Data!$B$4:$V$333,$A$8,FALSE) -> 490 | E26: =VLOOKUP($C26&E$7,Data!$B$4:$V$333,$A$8,FALSE) -> 460 | F26: =VLOOKUP($C26&F$7,Data!$B$4:$V$333,$A$8,FALSE) -> 440 | G26: =VLOOKUP($C26&G$7,Data!$B$4:$V$333,$A$8,FALSE) -> 400 | H26: =VLOOKUP($C26&H$7,Data!$B$4:$V$333,$A$8,FALSE) -> 390 | I26: =VLOOKUP($C26&I$7,Data!$B$4:$V$333,$A$8,FALSE) -> 380 | J26: =VLOOKUP($C26&J$7,Data!$B$4:$V$333,$A$8,FALSE) -> 380 | K26: =VLOOKUP($C26&K$7,Data!$B$4:$V$333,$A$8,FALSE) -> 410 | L26: =VLOOKUP($C26&L$7,Data!$B$4:$V$333,$A$8,FALSE) -> 380 | M26: =VLOOKUP($C26&M$7,Data!$B$4:$V$333,$A$8,FALSE) -> 410
C27: Moray | D27: =VLOOKUP($C27&D$7,Data!$B$4:$V$333,$A$8,FALSE) -> 480 | E27: =VLOOKUP($C27&E$7,Data!$B$4:$V$333,$A$8,FALSE) -> 500 | F27: =VLOOKUP($C27&F$7,Data!$B$4:$V$333,$A$8,FALSE) -> 510 | G27: =VLOOKUP($C27&G$7,Data!$B$4:$V$333,$A$8,FALSE) -> 510 | H27: =VLOOKUP($C27&H$7,Data!$B$4:$V$333,$A$8,FALSE) -> 510 | I27: =VLOOKUP($C27&I$7,Data!$B$4:$V$333,$A$8,FALSE) -> 520 | J27: =VLOOKUP($C27&J$7,Data!$B$4:$V$333,$A$8,FALSE) -> 540 | K27: =VLOOKUP($C27&K$7,Data!$B$4:$V$333,$A$8,FALSE) -> 490 | L27: =VLOOKUP($C27&L$7,Data!$B$4:$V$333,$A$8,FALSE) -> 470 | M27: =VLOOKUP($C27&M$7,Data!$B$4:$V$333,$A$8,FALSE) -> 450
C28: North Ayrshire | D28: =VLOOKUP($C28&D$7,Data!$B$4:$V$333,$A$8,FALSE) -> 800 | E28: =VLOOKUP($C28&E$7,Data!$B$4:$V$333,$A$8,FALSE) -> 820 | F28: =VLOOKUP($C28&F$7,Data!$B$4:$V$333,$A$8,FALSE) -> 830 | G28: =VLOOKUP($C28&G$7,Data!$B$4:$V$333,$A$8,FALSE) -> 880 | H28: =VLOOKUP($C28&H$7,Data!$B$4:$V$333,$A$8,FALSE) -> 900 | I28: =VLOOKUP($C28&I$7,Data!$B$4:$V$333,$A$8,FALSE) -> 890 | J28: =VLOOKUP($C28&J$7,Data!$B$4:$V$333,$A$8,FALSE) -> 910 | K28: =VLOOKUP($C28&K$7,Data!$B$4:$V$333,$A$8,FALSE) -> 920 | L28: =VLOOKUP($C28&L$7,Data!$B$4:$V$333,$A$8,FALSE) -> 880 | M28: =VLOOKUP($C28&M$7,Data!$B$4:$V$333,$A$8,FALSE) -> 920
C29: North Lanarkshire | D29: =VLOOKUP($C29&D$7,Data!$B$4:$V$333,$A$8,FALSE) -> 1,450 | E29: =VLOOKUP($C29&E$7,Data!$B$4:$V$333,$A$8,FALSE) -> 1,450 | F29: =VLOOKUP($C29&F$7,Data!$B$4:$V$333,$A$8,FALSE) -> 1,430 | G29: =VLOOKUP($C29&G$7,Data!$B$4:$V$333,$A$8,FALSE) -> 1,400 | H29: =VLOOKUP($C29&H$7,Data!$B$4:$V$333,$A$8,FALSE) -> 1,360 | I29: =VLOOKUP($C29&I$7,Data!$B$4:$V$333,$A$8,FALSE) -> 1,320 | J29: =VLOOKUP($C29&J$7,Data!$B$4:$V$333,$A$8,FALSE) -> 1,360 | K29: =VLOOKUP($C29&K$7,Data!$B$4:$V$333,$A$8,FALSE) -> 1,290 | L29: =VLOOKUP($C29&L$7,Data!$B$4:$V$333,$A$8,FALSE) -> 1,290 | M29: =VLOOKUP($C29&M$7,Data!$B$4:$V$333,$A$8,FALSE) -> 1,280
C30: Orkney Islands | D30: =VLOOKUP($C30&D$7,Data!$B$4:$V$333,$A$8,FALSE) -> 100 | E30: =VLOOKUP($C30&E$7,Data!$B$4:$V$333,$A$8,FALSE) -> 110 | F30: =VLOOKUP($C30&F$7,Data!$B$4:$V$333,$A$8,FALSE) -> 110 | G30: =VLOOKUP($C30&G$7,Data!$B$4:$V$333,$A$8,FALSE) -> 100 | H30: =VLOOKUP($C30&H$7,Data!$B$4:$V$333,$A$8,FALSE) -> 100 | I30: =VLOOKUP($C30&I$7,Data!$B$4:$V$333,$A$8,FALSE) -> 100 | J30: =VLOOKUP($C30&J$7,Data!$B$4:$V$333,$A$8,FALSE) -> 100 | K30: =VLOOKUP($C30&K$7,Data!$B$4:$V$333,$A$8,FALSE) -> 100 | L30: =VLOOKUP($C30&L$7,Data!$B$4:$V$333,$A$8,FALSE) -> 100 | M30: =VLOOKUP($C30&M$7,Data!$B$4:$V$333,$A$8,FALSE) -> 90
C31: Perth & Kinross | D31: =VLOOKUP($C31&D$7,Data!$B$4:$V$333,$A$8,FALSE) -> 1,060 | E31: =VLOOKUP($C31&E$7,Data!$B$4:$V$333,$A$8,FALSE) -> 1,040 | F31: =VLOOKUP($C31&F$7,Data!$B$4:$V$333,$A$8,FALSE) -> 990 | G31: =VLOOKUP($C31&G$7,Data!$B$4:$V$333,$A$8,FALSE) -> 850 | H31: =VLOOKUP($C31&H$7,Data!$B$4:$V$333,$A$8,FALSE) -> 820 | I31: =VLOOKUP($C31&I$7,Data!$B$4:$V$333,$A$8,FALSE) -> 940 | J31: =VLOOKUP($C31&J$7,Data!$B$4:$V$333,$A$8,FALSE) -> 960 | K31: =VLOOKUP($C31&K$7,Data!$B$4:$V$333,$A$8,FALSE) -> 940 | L31: =VLOOKUP($C31&L$7,Data!$B$4:$V$333,$A$8,FALSE) -> 960 | M31: =VLOOKUP($C31&M$7,Data!$B$4:$V$333,$A$8,FALSE) -> 1,000
C32: Renfrewshire | D32: =VLOOKUP($C32&D$7,Data!$B$4:$V$333,$A$8,FALSE) -> 1,060 | E32: =VLOOKUP($C32&E$7,Data!$B$4:$V$333,$A$8,FALSE) -> 1,030 | F32: =VLOOKUP($C32&F$7,Data!$B$4:$V$333,$A$8,FALSE) -> 1,030 | G32: =VLOOKUP($C32&G$7,Data!$B$4:$V$333,$A$8,FALSE) -> 1,020 | H32: =VLOOKUP($C32&H$7,Data!$B$4:$V$333,$A$8,FALSE) -> 1,080 | I32: =VLOOKUP($C32&I$7,Data!$B$4:$V$333,$A$8,FALSE) -> 1,040 | J32: =VLOOKUP($C32&J$7,Data!$B$4:$V$333,$A$8,FALSE) -> 1,040 | K32: =VLOOKUP($C32&K$7,Data!$B$4:$V$333,$A$8,FALSE) -> 990 | L32: =VLOOKUP($C32&L$7,Data!$B$4:$V$333,$A$8,FALSE) -> 1,010 | M32: =VLOOKUP($C32&M$7,Data!$B$4:$V$333,$A$8,FALSE) -> 990
C33: Scottish Borders | D33: =VLOOKUP($C33&D$7,Data!$B$4:$V$333,$A$8,FALSE) -> 720 | E33: =VLOOKUP($C33&E$7,Data!$B$4:$V$333,$A$8,FALSE) -> 720 | F33: =VLOOKUP($C33&F$7,Data!$B$4:$V$333,$A$8,FALSE) -> 700 | G33: =VLOOKUP($C33&G$7,Data!$B$4:$V$333,$A$8,FALSE) -> 700 | H33: =VLOOKUP($C33&H$7,Data!$B$4:$V$333,$A$8,FALSE) -> 680 | I33: =VLOOKUP($C33&I$7,Data!$B$4:$V$333,$A$8,FALSE) -> 620 | J33: =VLOOKUP($C33&J$7,Data!$B$4:$V$333,$A$8,FALSE) -> 660 | K33: =VLOOKUP($C33&K$7,Data!$B$4:$V$333,$A$8,FALSE) -> 650 | L33: =VLOOKUP($C33&L$7,Data!$B$4:$V$333,$A$8,FALSE) -> 670 | M33: =VLOOKUP($C33&M$7,Data!$B$4:$V$333,$A$8,FALSE) -> 680
C34: Shetland Islands | D34: =VLOOKUP($C34&D$7,Data!$B$4:$V$333,$A$8,FALSE) -> 110 | E34: =VLOOKUP($C34&E$7,Data!$B$4:$V$333,$A$8,FALSE) -> 110 | F34: =VLOOKUP($C34&F$7,Data!$B$4:$V$333,$A$8,FALSE) -> 110 | G34: =VLOOKUP($C34&G$7,Data!$B$4:$V$333,$A$8,FALSE) -> 110 | H34: =VLOOKUP($C34&H$7,Data!$B$4:$V$333,$A$8,FALSE) -> 100 | I34: =VLOOKUP($C34&I$7,Data!$B$4:$V$333,$A$8,FALSE) -> 90 | J34: =VLOOKUP($C34&J$7,Data!$B$4:$V$333,$A$8,FALSE) -> 90 | K34: =VLOOKUP($C34&K$7,Data!$B$4:$V$333,$A$8,FALSE) -> 100 | L34: =VLOOKUP($C34&L$7,Data!$B$4:$V$333,$A$8,FALSE) -> 80 | M34: =VLOOKUP($C34&M$7,Data!$B$4:$V$333,$A$8,FALSE) -> 70
C35: South Ayrshire | D35: =VLOOKUP($C35&D$7,Data!$B$4:$V$333,$A$8,FALSE) -> 810 | E35: =VLOOKUP($C35&E$7,Data!$B$4:$V$333,$A$8,FALSE) -> 810 | F35: =VLOOKUP($C35&F$7,Data!$B$4:$V$333,$A$8,FALSE) -> 820 | G35: =VLOOKUP($C35&G$7,Data!$B$4:$V$333,$A$8,FALSE) -> 840 | H35: =VLOOKUP($C35&H$7,Data!$B$4:$V$333,$A$8,FALSE) -> 850 | I35: =VLOOKUP($C35&I$7,Data!$B$4:$V$333,$A$8,FALSE) -> 850 | J35: =VLOOKUP($C35&J$7,Data!$B$4:$V$333,$A$8,FALSE) -> 840 | K35: =VLOOKUP($C35&K$7,Data!$B$4:$V$333,$A$8,FALSE) -> 900 | L35: =VLOOKUP($C35&L$7,Data!$B$4:$V$333,$A$8,FALSE) -> 850 | M35: =VLOOKUP($C35&M$7,Data!$B$4:$V$333,$A$8,FALSE) -> 910
C36: South Lanarkshire | D36: =VLOOKUP($C36&D$7,Data!$B$4:$V$333,$A$8,FALSE) -> 1,680 | E36: =VLOOKUP($C36&E$7,Data!$B$4:$V$333,$A$8,FALSE) -> 1,720 | F36: =VLOOKUP($C36&F$7,Data!$B$4:$V$333,$A$8,FALSE) -> 1,760 | G36: =VLOOKUP($C36&G$7,Data!$B$4:$V$333,$A$8,FALSE) -> 1,710 | H36: =VLOOKUP($C36&H$7,Data!$B$4:$V$333,$A$8,FALSE) -> 1,730 | I36: =VLOOKUP($C36&I$7,Data!$B$4:$V$333,$A$8,FALSE) -> 1,680 | J36: =VLOOKUP($C36&J$7,Data!$B$4:$V$333,$A$8,FALSE) -> 1,680 | K36: =VLOOKUP($C36&K$7,Data!$B$4:$V$333,$A$8,FALSE) -> 1,690 | L36: =VLOOKUP($C36&L$7,Data!$B$4:$V$333,$A$8,FALSE) -> 1,800 | M36: =VLOOKUP($C36&M$7,Data!$B$4:$V$333,$A$8,FALSE) -> 1,780
C37: Stirling | D37: =VLOOKUP($C37&D$7,Data!$B$4:$V$333,$A$8,FALSE) -> 520 | E37: =VLOOKUP($C37&E$7,Data!$B$4:$V$333,$A$8,FALSE) -> 520 | F37: =VLOOKUP($C37&F$7,Data!$B$4:$V$333,$A$8,FALSE) -> 520 | G37: =VLOOKUP($C37&G$7,Data!$B$4:$V$333,$A$8,FALSE) -> 470 | H37: =VLOOKUP($C37&H$7,Data!$B$4:$V$333,$A$8,FALSE) -> 460 | I37: =VLOOKUP($C37&I$7,Data!$B$4:$V$333,$A$8,FALSE) -> 450 | J37: =VLOOKUP($C37&J$7,Data!$B$4:$V$333,$A$8,FALSE) -> 460 | K37: =VLOOKUP($C37&K$7,Data!$B$4:$V$333,$A$8,FALSE) -> 440 | L37: =VLOOKUP($C37&L$7,Data!$B$4:$V$333,$A$8,FALSE) -> 440 | M37: =VLOOKUP($C37&M$7,Data!$B$4:$V$333,$A$8,FALSE) -> 480
C38: West Dunbartonshire | D38: =VLOOKUP($C38&D$7,Data!$B$4:$V$333,$A$8,FALSE) -> 510 | E38: =VLOOKUP($C38&E$7,Data!$B$4:$V$333,$A$8,FALSE) -> 510 | F38: =VLOOKUP($C38&F$7,Data!$B$4:$V$333,$A$8,FALSE) -> 480 | G38: =VLOOKUP($C38&G$7,Data!$B$4:$V$333,$A$8,FALSE) -> 480 | H38: =VLOOKUP($C38&H$7,Data!$B$4:$V$333,$A$8,FALSE) -> 510 | I38: =VLOOKUP($C38&I$7,Data!$B$4:$V$333,$A$8,FALSE) -> 530 | J38: =VLOOKUP($C38&J$7,Data!$B$4:$V$333,$A$8,FALSE) -> 560 | K38: =VLOOKUP($C38&K$7,Data!$B$4:$V$333,$A$8,FALSE) -> 540 | L38: =VLOOKUP($C38&L$7,Data!$B$4:$V$333,$A$8,FALSE) -> 540 | M38: =VLOOKUP($C38&M$7,Data!$B$4:$V$333,$A$8,FALSE) -> 550
C39: West Lothian | D39: =VLOOKUP($C39&D$7,Data!$B$4:$V$333,$A$8,FALSE) -> 630 | E39: =VLOOKUP($C39&E$7,Data!$B$4:$V$333,$A$8,FALSE) -> 650 | F39: =VLOOKUP($C39&F$7,Data!$B$4:$V$333,$A$8,FALSE) -> 620 | G39: =VLOOKUP($C39&G$7,Data!$B$4:$V$333,$A$8,FALSE) -> 620 | H39: =VLOOKUP($C39&H$7,Data!$B$4:$V$333,$A$8,FALSE) -> 670 | I39: =VLOOKUP($C39&I$7,Data!$B$4:$V$333,$A$8,FALSE) -> 690 | J39: =VLOOKUP($C39&J$7,Data!$B$4:$V$333,$A$8,FALSE) -> 690 | K39: =VLOOKUP($C39&K$7,Data!$B$4:$V$333,$A$8,FALSE) -> 680 | L39: =VLOOKUP($C39&L$7,Data!$B$4:$V$333,$A$8,FALSE) -> 700 | M39: =VLOOKUP($C39&M$7,Data!$B$4:$V$333,$A$8,FALSE) -> 730
C40: Scotland | D40: =VLOOKUP($C40&D$7,Data!$B$4:$V$333,$A$8,FALSE) -> 31,730 | E40: =VLOOKUP($C40&E$7,Data!$B$4:$V$333,$A$8,FALSE) -> 31,530 | F40: =VLOOKUP($C40&F$7,Data!$B$4:$V$333,$A$8,FALSE) -> 31,470 | G40: =VLOOKUP($C40&G$7,Data!$B$4:$V$333,$A$8,FALSE) -> 31,020 | H40: =VLOOKUP($C40&H$7,Data!$B$4:$V$333,$A$8,FALSE) -> 30,750 | I40: =VLOOKUP($C40&I$7,Data!$B$4:$V$333,$A$8,FALSE) -> 30,260 | J40: =VLOOKUP($C40&J$7,Data!$B$4:$V$333,$A$8,FALSE) -> 30,800 | K40: =VLOOKUP($C40&K$7,Data!$B$4:$V$333,$A$8,FALSE) -> 30,520 | L40: =VLOOKUP($C40&L$7,Data!$B$4:$V$333,$A$8,FALSE) -> 30,800 | M40: =VLOOKUP($C40&M$7,Data!$B$4:$V$333,$A$8,FALSE) -> 30,670
C42: Source: Community Care Quarterly Key Monitoring Return (Client data), FPNC survey and LFR3 (Expenditure data)
C43: =IF($A$6="Clients","FNPC figures are yearly averages rounded to the nearest 10.",IF($A$6="Expenditure (Inc Overheads)","FPC figures are in £thousands. Overheads included in all FPNC figures","FPC figures are in £thousands. Overheads excluded from all FPNC figures")) -> FNPC figures are yearly averages rounded to the nearest 10.
C44: The system used to report the number of clients in care homes in Dumfries & Galloway has recently been updated to properly reflect the number of self-funders in receipt of free personal and nursing care. This means that client numbers for Dumfries & Galloway in 2016/17 are not strictly comparable with previous years.

Sheet Table4
B1: =IF($A$6="Clients",("Number of clients receiving FPC at home in "& A5&", 2007-08 to 2016-17"),("Expenditure on FPC provide at home in "& A5&", 2007-08 to 2016-17")) -> Number of clients receiving FPC at home in Scotland, 2007-08 to 2016-17 | M1: Main page
C3: Select Local Authority: | F3: Select client or expenditure data: | M3: Background notes
A5: Scotland
A6: Clients | I6: =IF(A6="Expenditure","£000's","") ->  | AD6: 07-08 | AE6: 08-09 | AF6: 09-10 | AG6: 10-11 | AH6: 11-12 | AI6: 12-13 | AJ6: 13-14 | AK6: 14-15 | AL6: 15-16 | AM6: 16-17
D7: 2007-08 | E7: 2008-09 | F7: 2009-10 | G7: 2010-11 | H7: 2011-12 | I7: 2012-13 | J7: 2013-14 | K7: 2014-15 | L7: 2015-16 | M7: 2016-17 | AD7: 2007-08 | AE7: 2008-09 | AF7: 2009-10 | AG7: 2010-11 | AH7: 2011-12 | AI7: 2012-13 | AJ7: 2013-14 | AK7: 2014-15 | AL7: 2015-16 | AM7: 2016-17
A8: =IF($A$6="Clients",8,15) -> 8 | C8: =IF($A$6="Clients","Number of Home Care Clients aged 65+","Net expenditure on Home Care for older people") -> Number of Home Care Clients aged 65+ | D8: =VLOOKUP($A$5&D$7,Data!$B$4:$V$333,$A8,FALSE) -> 55,340 | E8: =VLOOKUP($A$5&E$7,Data!$B$4:$V$333,$A8,FALSE) -> 54,720 | F8: =VLOOKUP($A$5&F$7,Data!$B$4:$V$333,$A8,FALSE) -> 53,660 | G8: =VLOOKUP($A$5&G$7,Data!$B$4:$V$333,$A8,FALSE) -> 51,730 | H8: =VLOOKUP($A$5&H$7,Data!$B$4:$V$333,$A8,FALSE) -> 51,120 | I8: =VLOOKUP($A$5&I$7,Data!$B$4:$V$333,$A8,FALSE) -> 50,370 | J8: =VLOOKUP($A$5&J$7,Data!$B$4:$V$333,$A8,FALSE) -> 50,450 | K8: =VLOOKUP($A$5&K$7,Data!$B$4:$V$333,$A8,FALSE) -> 50,160 | L8: =VLOOKUP($A$5&L$7,Data!$B$4:$V$333,$A8,FALSE) -> 49,430 | M8: =VLOOKUP($A$5&M$7,Data!$B$4:$V$333,$A8,FALSE) -> 48,810 | AC8: =C8 -> Number of Home Care Clients aged 65+ | AD8: =D8 -> 55340 | AE8: 54720 | AF8: 53660 | AG8: 51730 | AH8: 51120 | AI8: 50370 | AJ8: 50450 | AK8: 50160 | AL8: 49430 | AM8: 48810
A9: =IF($A$6="Clients",9,IF($A$6="Expenditure (£thousands - including overheads)",16,20)) -> 9 | C9: =IF($A$6="Clients","Number of clients aged 65+ receiving FPC at home",IF($A$6="Expenditure (Inc Overheads)","Expenditure (Including Overheads) on FPC at home","Expenditure (Excluding Overheads) on FPC at home")) -> Number of clients aged 65+ receiving FPC at home | D9: =VLOOKUP($A$5&D$7,Data!$B$4:$V$333,$A9,FALSE) -> 42,260 | E9: =VLOOKUP($A$5&E$7,Data!$B$4:$V$333,$A9,FALSE) -> 44,200 | F9: =VLOOKUP($A$5&F$7,Data!$B$4:$V$333,$A9,FALSE) -> 46,660 | G9: =VLOOKUP($A$5&G$7,Data!$B$4:$V$333,$A9,FALSE) -> 46,950 | H9: =VLOOKUP($A$5&H$7,Data!$B$4:$V$333,$A9,FALSE) -> 47,010 | I9: =VLOOKUP($A$5&I$7,Data!$B$4:$V$333,$A9,FALSE) -> 47,170 | J9: =VLOOKUP($A$5&J$7,Data!$B$4:$V$333,$A9,FALSE) -> 47,810 | K9: =VLOOKUP($A$5&K$7,Data!$B$4:$V$333,$A9,FALSE) -> 46,750 | L9: =VLOOKUP($A$5&L$7,Data!$B$4:$V$333,$A9,FALSE) -> 46,910 | M9: =VLOOKUP($A$5&M$7,Data!$B$4:$V$333,$A9,FALSE) -> 45,780 | AC9: =C9 -> Number of clients aged 65+ receiving FPC at home | AD9: =D9 -> 42260 | AE9: 44200 | AF9: 46660 | AG9: 46950 | AH9: 47010 | AI9: 47170 | AJ9: 47810 | AK9: 46750 | AL9: 46910 | AM9: 45780
C10: Percentage receiving FPC | D10: =D9/D8 -> 76% | E10: =E9/E8 -> 81% | F10: =F9/F8 -> 87% | G10: =G9/G8 -> 91% | H10: 92% | I10: 94% | J10: 95% | K10: 93% | L10: 95% | M10: 94% | AC10: =C10 -> Percentage receiving FPC | AD10: 76.36% | AE10: 80.77% | AF10: 86.95% | AG10: 90.76% | AH10: 91.96% | AI10: 93.65% | AJ10: 94.77% | AK10: 93.20% | AL10: 94.90% | AM10: 93.79%
A12: 10 | C12: Average weekly hours of FPC at home | D12: =VLOOKUP($A$5&D$7,Data!$B$4:$V$333,$A12,FALSE) -> 299,400 | E12: =VLOOKUP($A$5&E$7,Data!$B$4:$V$333,$A12,FALSE) -> 333,100 | F12: =VLOOKUP($A$5&F$7,Data!$B$4:$V$333,$A12,FALSE) -> 361,700 | G12: =VLOOKUP($A$5&G$7,Data!$B$4:$V$333,$A12,FALSE) -> 371,900 | H12: =VLOOKUP($A$5&H$7,Data!$B$4:$V$333,$A12,FALSE) -> 389,000 | I12: =VLOOKUP($A$5&I$7,Data!$B$4:$V$333,$A12,FALSE) -> 400,500 | J12: =VLOOKUP($A$5&J$7,Data!$B$4:$V$333,$A12,FALSE) -> 409,500 | K12: =VLOOKUP($A$5&K$7,Data!$B$4:$V$333,$A12,FALSE) -> 401,600 | L12: =VLOOKUP($A$5&L$7,Data!$B$4:$V$333,$A12,FALSE) -> 405,400 | M12: =VLOOKUP($A$5&M$7,Data!$B$4:$V$333,$A12,FALSE) -> 405,000 | AC12: =C12 -> Average weekly hours of FPC at home | AD12: 299400 | AE12: 333100 | AF12: 361700 | AG12: 371900 | AH12: 389000 | AI12: 400500 | AJ12: 409500 | AK12: 401600 | AL12: 405400 | AM12: 405000
C14: Source: Community Care Quarterly Key Monitoring Return (Client data), Social Care Survey 2013 onwards, FPNC survey and LFR3 (Expenditure data), NRS mid-year estimates (population data)
C15: =IF($A$6="Clients","FNPC figures are yearly averages rounded to the nearest 10.",IF($A$6="Expenditure (Inc Overheads)","Expenditure figures are in £thousands. Overheads are included in all FPNC figures","FPC figures are in £thousands. Overheads are excluded from all FPNC figures")) -> FNPC figures are yearly averages rounded to the nearest 10.
C16: Average weekly hours (based on last week of each quarter) rounded to the nearest 100.
C20: =IF($A$6="Clients","Chart 1 - Number of clients receiving FPC",IF($A$6="Expenditure (£thousands - including overheads)","Chart 1 - FPC Expenditure (including overheads)","Chart 1 - FPC Expenditure (excluding overheads)")) -> Chart 1 - Number of clients receiving FPC | G20: =IF($A$6="Clients","Chart 2 - Percentage of home care clients receiving FPC","Chart 2 - Percentage of home care expenditure on FPC") -> Chart 2 - Percentage of home care clients receiving FPC

Sheet Table5
B1: =IF(A6="Clients",("Number of "&A5&", 2007-08 to 2016-17"),("Expenditure on "&A5&", 2007-08 to 2016-17")) -> Number of Clients aged 65+ receiving FPC at home, 2007-08 to 2016-17 | M1: Main page
C3: Select required data type: | H3: Select client or expenditure data: | M3: Background notes
A5: Clients aged 65+ receiving FPC at home
A6: Clients
A7: =IF(A6="Clients",2,IF($A$6="Expenditure (£thousands - including overheads)",3,4)) -> 2 | C7: Local Authority | D7: 2007-08 | E7: 2008-09 | F7: 2009-10 | G7: 2010-11 | H7: 2011-12 | I7: 2012-13 | J7: 2013-14 | K7: 2014-15 | L7: 2015-16 | M7: 2016-17
A8: =VLOOKUP(A5,Lookups!H8:K10,A7,FALSE) -> 9 | C8: Aberdeen City | D8: =IF($A$11=1,"NA",VLOOKUP($C8&D$7,Data!$B$4:$V$333,$A$8,FALSE)) -> 1,810 | E8: =IF($A$11=1,"NA",VLOOKUP($C8&E$7,Data!$B$4:$V$333,$A$8,FALSE)) -> 1,620 | F8: =IF($A$11=1,"NA",VLOOKUP($C8&F$7,Data!$B$4:$V$333,$A$8,FALSE)) -> 1,710 | G8: =IF($A$11=1,"NA",VLOOKUP($C8&G$7,Data!$B$4:$V$333,$A$8,FALSE)) -> 1,740 | H8: =IF($A$11=1,"NA",VLOOKUP($C8&H$7,Data!$B$4:$V$333,$A$8,FALSE)) -> 1,780 | I8: =IF($A$11=1,"NA",VLOOKUP($C8&I$7,Data!$B$4:$V$333,$A$8,FALSE)) -> 1,610 | J8: =IF($A$11=1,"NA",VLOOKUP($C8&J$7,Data!$B$4:$V$333,$A$8,FALSE)) -> 1,560 | K8: =IF($A$11=1,"NA",VLOOKUP($C8&K$7,Data!$B$4:$V$333,$A$8,FALSE)) -> 1,490 | L8: =IF($A$11=1,"NA",VLOOKUP($C8&L$7,Data!$B$4:$V$333,$A$8,FALSE)) -> 1,560 | M8: =IF($A$11=1,"NA",VLOOKUP($C8&M$7,Data!$B$4:$V$333,$A$8,FALSE)) -> 1,500
C9: Aberdeenshire | D9: =IF($A$11=1,"NA",VLOOKUP($C9&D$7,Data!$B$4:$V$333,$A$8,FALSE)) -> 1,920 | E9: =IF($A$11=1,"NA",VLOOKUP($C9&E$7,Data!$B$4:$V$333,$A$8,FALSE)) -> 2,000 | F9: =IF($A$11=1,"NA",VLOOKUP($C9&F$7,Data!$B$4:$V$333,$A$8,FALSE)) -> 1,810 | G9: =IF($A$11=1,"NA",VLOOKUP($C9&G$7,Data!$B$4:$V$333,$A$8,FALSE)) -> 1,790 | H9: =IF($A$11=1,"NA",VLOOKUP($C9&H$7,Data!$B$4:$V$333,$A$8,FALSE)) -> 1,660 | I9: =IF($A$11=1,"NA",VLOOKUP($C9&I$7,Data!$B$4:$V$333,$A$8,FALSE)) -> 1,740 | J9: =IF($A$11=1,"NA",VLOOKUP($C9&J$7,Data!$B$4:$V$333,$A$8,FALSE)) -> 1,810 | K9: =IF($A$11=1,"NA",VLOOKUP($C9&K$7,Data!$B$4:$V$333,$A$8,FALSE)) -> 1,770 | L9: =IF($A$11=1,"NA",VLOOKUP($C9&L$7,Data!$B$4:$V$333,$A$8,FALSE)) -> 1,830 | M9: =IF($A$11=1,"NA",VLOOKUP($C9&M$7,Data!$B$4:$V$333,$A$8,FALSE)) -> 1,960
C10: Angus | D10: =IF($A$11=1,"NA",VLOOKUP($C10&D$7,Data!$B$4:$V$333,$A$8,FALSE)) -> 810 | E10: =IF($A$11=1,"NA",VLOOKUP($C10&E$7,Data!$B$4:$V$333,$A$8,FALSE)) -> 820 | F10: =IF($A$11=1,"NA",VLOOKUP($C10&F$7,Data!$B$4:$V$333,$A$8,FALSE)) -> 870 | G10: =IF($A$11=1,"NA",VLOOKUP($C10&G$7,Data!$B$4:$V$333,$A$8,FALSE)) -> 860 | H10: =IF($A$11=1,"NA",VLOOKUP($C10&H$7,Data!$B$4:$V$333,$A$8,FALSE)) -> 800 | I10: =IF($A$11=1,"NA",VLOOKUP($C10&I$7,Data!$B$4:$V$333,$A$8,FALSE)) -> 730 | J10: =IF($A$11=1,"NA",VLOOKUP($C10&J$7,Data!$B$4:$V$333,$A$8,FALSE)) -> 1,140 | K10: =IF($A$11=1,"NA",VLOOKUP($C10&K$7,Data!$B$4:$V$333,$A$8,FALSE)) -> 680 | L10: =IF($A$11=1,"NA",VLOOKUP($C10&L$7,Data!$B$4:$V$333,$A$8,FALSE)) -> 670 | M10: =IF($A$11=1,"NA",VLOOKUP($C10&M$7,Data!$B$4:$V$333,$A$8,FALSE)) -> 730
A11: =IF((SUM(A12:A13))=2,1,"") ->  | C11: Argyll & Bute | D11: =IF($A$11=1,"NA",VLOOKUP($C11&D$7,Data!$B$4:$V$333,$A$8,FALSE)) -> 560 | E11: =IF($A$11=1,"NA",VLOOKUP($C11&E$7,Data!$B$4:$V$333,$A$8,FALSE)) -> 640 | F11: =IF($A$11=1,"NA",VLOOKUP($C11&F$7,Data!$B$4:$V$333,$A$8,FALSE)) -> 720 | G11: =IF($A$11=1,"NA",VLOOKUP($C11&G$7,Data!$B$4:$V$333,$A$8,FALSE)) -> 750 | H11: =IF($A$11=1,"NA",VLOOKUP($C11&H$7,Data!$B$4:$V$333,$A$8,FALSE)) -> 830 | I11: =IF($A$11=1,"NA",VLOOKUP($C11&I$7,Data!$B$4:$V$333,$A$8,FALSE)) -> 920 | J11: =IF($A$11=1,"NA",VLOOKUP($C11&J$7,Data!$B$4:$V$333,$A$8,FALSE)) -> 1,080 | K11: =IF($A$11=1,"NA",VLOOKUP($C11&K$7,Data!$B$4:$V$333,$A$8,FALSE)) -> 1,100 | L11: =IF($A$11=1,"NA",VLOOKUP($C11&L$7,Data!$B$4:$V$333,$A$8,FALSE)) -> 1,020 | M11: =IF($A$11=1,"NA",VLOOKUP($C11&M$7,Data!$B$4:$V$333,$A$8,FALSE)) -> 1,010
A12: =IF(A5="Average weekly hours of FPC at home",1,0) -> 0 | C12: Clackmannanshire | D12: =IF($A$11=1,"NA",VLOOKUP($C12&D$7,Data!$B$4:$V$333,$A$8,FALSE)) -> 500 | E12: =IF($A$11=1,"NA",VLOOKUP($C12&E$7,Data!$B$4:$V$333,$A$8,FALSE)) -> 510 | F12: =IF($A$11=1,"NA",VLOOKUP($C12&F$7,Data!$B$4:$V$333,$A$8,FALSE)) -> 490 | G12: =IF($A$11=1,"NA",VLOOKUP($C12&G$7,Data!$B$4:$V$333,$A$8,FALSE)) -> 530 | H12: =IF($A$11=1,"NA",VLOOKUP($C12&H$7,Data!$B$4:$V$333,$A$8,FALSE)) -> 530 | I12: =IF($A$11=1,"NA",VLOOKUP($C12&I$7,Data!$B$4:$V$333,$A$8,FALSE)) -> 550 | J12: =IF($A$11=1,"NA",VLOOKUP($C12&J$7,Data!$B$4:$V$333,$A$8,FALSE)) -> 530 | K12: =IF($A$11=1,"NA",VLOOKUP($C12&K$7,Data!$B$4:$V$333,$A$8,FALSE)) -> 470 | L12: =IF($A$11=1,"NA",VLOOKUP($C12&L$7,Data!$B$4:$V$333,$A$8,FALSE)) -> 520 | M12: =IF($A$11=1,"NA",VLOOKUP($C12&M$7,Data!$B$4:$V$333,$A$8,FALSE)) -> 500
A13: =IF(A6="Clients",0,1) -> 0 | C13: Dumfries & Galloway | D13: =IF($A$11=1,"NA",VLOOKUP($C13&D$7,Data!$B$4:$V$333,$A$8,FALSE)) -> 1,500 | E13: =IF($A$11=1,"NA",VLOOKUP($C13&E$7,Data!$B$4:$V$333,$A$8,FALSE)) -> 1,730 | F13: =IF($A$11=1,"NA",VLOOKUP($C13&F$7,Data!$B$4:$V$333,$A$8,FALSE)) -> 1,870 | G13: =IF($A$11=1,"NA",VLOOKUP($C13&G$7,Data!$B$4:$V$333,$A$8,FALSE)) -> 1,860 | H13: =IF($A$11=1,"NA",VLOOKUP($C13&H$7,Data!$B$4:$V$333,$A$8,FALSE)) -> 1,980 | I13: =IF($A$11=1,"NA",VLOOKUP($C13&I$7,Data!$B$4:$V$333,$A$8,FALSE)) -> 1,780 | J13: =IF($A$11=1,"NA",VLOOKUP($C13&J$7,Data!$B$4:$V$333,$A$8,FALSE)) -> 1,560 | K13: =IF($A$11=1,"NA",VLOOKUP($C13&K$7,Data!$B$4:$V$333,$A$8,FALSE)) -> 1,570 | L13: =IF($A$11=1,"NA",VLOOKUP($C13&L$7,Data!$B$4:$V$333,$A$8,FALSE)) -> 1,690 | M13: =IF($A$11=1,"NA",VLOOKUP($C13&M$7,Data!$B$4:$V$333,$A$8,FALSE)) -> 1,600
C14: Dundee City | D14: =IF($A$11=1,"NA",VLOOKUP($C14&D$7,Data!$B$4:$V$333,$A$8,FALSE)) -> 830 | E14: =IF($A$11=1,"NA",VLOOKUP($C14&E$7,Data!$B$4:$V$333,$A$8,FALSE)) -> 890 | F14: =IF($A$11=1,"NA",VLOOKUP($C14&F$7,Data!$B$4:$V$333,$A$8,FALSE)) -> 1,010 | G14: =IF($A$11=1,"NA",VLOOKUP($C14&G$7,Data!$B$4:$V$333,$A$8,FALSE)) -> 980 | H14: =IF($A$11=1,"NA",VLOOKUP($C14&H$7,Data!$B$4:$V$333,$A$8,FALSE)) -> 1,000 | I14: =IF($A$11=1,"NA",VLOOKUP($C14&I$7,Data!$B$4:$V$333,$A$8,FALSE)) -> 990 | J14: =IF($A$11=1,"NA",VLOOKUP($C14&J$7,Data!$B$4:$V$333,$A$8,FALSE)) -> 1,060 | K14: =IF($A$11=1,"NA",VLOOKUP($C14&K$7,Data!$B$4:$V$333,$A$8,FALSE)) -> 1,140 | L14: =IF($A$11=1,"NA",VLOOKUP($C14&L$7,Data!$B$4:$V$333,$A$8,FALSE)) -> 1,230 | M14: =IF($A$11=1,"NA",VLOOKUP($C14&M$7,Data!$B$4:$V$333,$A$8,FALSE)) -> 1,250
C15: East Ayrshire | D15: =IF($A$11=1,"NA",VLOOKUP($C15&D$7,Data!$B$4:$V$333,$A$8,FALSE)) -> 1,400 | E15: =IF($A$11=1,"NA",VLOOKUP($C15&E$7,Data!$B$4:$V$333,$A$8,FALSE)) -> 1,500 | F15: =IF($A$11=1,"NA",VLOOKUP($C15&F$7,Data!$B$4:$V$333,$A$8,FALSE)) -> 1,460 | G15: =IF($A$11=1,"NA",VLOOKUP($C15&G$7,Data!$B$4:$V$333,$A$8,FALSE)) -> 1,460 | H15: =IF($A$11=1,"NA",VLOOKUP($C15&H$7,Data!$B$4:$V$333,$A$8,FALSE)) -> 1,610 | I15: =IF($A$11=1,"NA",VLOOKUP($C15&I$7,Data!$B$4:$V$333,$A$8,FALSE)) -> 1,590 | J15: =IF($A$11=1,"NA",VLOOKUP($C15&J$7,Data!$B$4:$V$333,$A$8,FALSE)) -> 1,620 | K15: =IF($A$11=1,"NA",VLOOKUP($C15&K$7,Data!$B$4:$V$333,$A$8,FALSE)) -> 1,530 | L15: =IF($A$11=1,"NA",VLOOKUP($C15&L$7,Data!$B$4:$V$333,$A$8,FALSE)) -> 1,590 | M15: =IF($A$11=1,"NA",VLOOKUP($C15&M$7,Data!$B$4:$V$333,$A$8,FALSE)) -> 1,500
C16: East Dunbartonshire | D16: =IF($A$11=1,"NA",VLOOKUP($C16&D$7,Data!$B$4:$V$333,$A$8,FALSE)) -> 860 | E16: =IF($A$11=1,"NA",VLOOKUP($C16&E$7,Data!$B$4:$V$333,$A$8,FALSE)) -> 900 | F16: =IF($A$11=1,"NA",VLOOKUP($C16&F$7,Data!$B$4:$V$333,$A$8,FALSE)) -> 1,010 | G16: =IF($A$11=1,"NA",VLOOKUP($C16&G$7,Data!$B$4:$V$333,$A$8,FALSE)) -> 1,010 | H16: =IF($A$11=1,"NA",VLOOKUP($C16&H$7,Data!$B$4:$V$333,$A$8,FALSE)) -> 950 | I16: =IF($A$11=1,"NA",VLOOKUP($C16&I$7,Data!$B$4:$V$333,$A$8,FALSE)) -> 960 | J16: =IF($A$11=1,"NA",VLOOKUP($C16&J$7,Data!$B$4:$V$333,$A$8,FALSE)) -> 1,050 | K16: =IF($A$11=1,"NA",VLOOKUP($C16&K$7,Data!$B$4:$V$333,$A$8,FALSE)) -> 1,040 | L16: =IF($A$11=1,"NA",VLOOKUP($C16&L$7,Data!$B$4:$V$333,$A$8,FALSE)) -> 1,050 | M16: =IF($A$11=1,"NA",VLOOKUP($C16&M$7,Data!$B$4:$V$333,$A$8,FALSE)) -> 1,070
C17: East Lothian | D17: =IF($A$11=1,"NA",VLOOKUP($C17&D$7,Data!$B$4:$V$333,$A$8,FALSE)) -> 900 | E17: =IF($A$11=1,"NA",VLOOKUP($C17&E$7,Data!$B$4:$V$333,$A$8,FALSE)) -> 910 | F17: =IF($A$11=1,"NA",VLOOKUP($C17&F$7,Data!$B$4:$V$333,$A$8,FALSE)) -> 920 | G17: =IF($A$11=1,"NA",VLOOKUP($C17&G$7,Data!$B$4:$V$333,$A$8,FALSE)) -> 980 | H17: =IF($A$11=1,"NA",VLOOKUP($C17&H$7,Data!$B$4:$V$333,$A$8,FALSE)) -> 1,010 | I17: =IF($A$11=1,"NA",VLOOKUP($C17&I$7,Data!$B$4:$V$333,$A$8,FALSE)) -> 1,060 | J17: =IF($A$11=1,"NA",VLOOKUP($C17&J$7,Data!$B$4:$V$333,$A$8,FALSE)) -> 1,090 | K17: =IF($A$11=1,"NA",VLOOKUP($C17&K$7,Data!$B$4:$V$333,$A$8,FALSE)) -> 1,120 | L17: =IF($A$11=1,"NA",VLOOKUP($C17&L$7,Data!$B$4:$V$333,$A$8,FALSE)) -> 1,030 | M17: =IF($A$11=1,"NA",VLOOKUP($C17&M$7,Data!$B$4:$V$333,$A$8,FALSE)) -> 1,030
C18: East Renfrewshire | D18: =IF($A$11=1,"NA",VLOOKUP($C18&D$7,Data!$B$4:$V$333,$A$8,FALSE)) -> 670 | E18: =IF($A$11=1,"NA",VLOOKUP($C18&E$7,Data!$B$4:$V$333,$A$8,FALSE)) -> 690 | F18: =IF($A$11=1,"NA",VLOOKUP($C18&F$7,Data!$B$4:$V$333,$A$8,FALSE)) -> 770 | G18: =IF($A$11=1,"NA",VLOOKUP($C18&G$7,Data!$B$4:$V$333,$A$8,FALSE)) -> 840 | H18: =IF($A$11=1,"NA",VLOOKUP($C18&H$7,Data!$B$4:$V$333,$A$8,FALSE)) -> 850 | I18: =IF($A$11=1,"NA",VLOOKUP($C18&I$7,Data!$B$4:$V$333,$A$8,FALSE)) -> 890 | J18: =IF($A$11=1,"NA",VLOOKUP($C18&J$7,Data!$B$4:$V$333,$A$8,FALSE)) -> 890 | K18: =IF($A$11=1,"NA",VLOOKUP($C18&K$7,Data!$B$4:$V$333,$A$8,FALSE)) -> 890 | L18: =IF($A$11=1,"NA",VLOOKUP($C18&L$7,Data!$B$4:$V$333,$A$8,FALSE)) -> 750 | M18: =IF($A$11=1,"NA",VLOOKUP($C18&M$7,Data!$B$4:$V$333,$A$8,FALSE)) -> 970
C19: Edinburgh, City of | D19: =IF($A$11=1,"NA",VLOOKUP($C19&D$7,Data!$B$4:$V$333,$A$8,FALSE)) -> 2,950 | E19: =IF($A$11=1,"NA",VLOOKUP($C19&E$7,Data!$B$4:$V$333,$A$8,FALSE)) -> 2,930 | F19: =IF($A$11=1,"NA",VLOOKUP($C19&F$7,Data!$B$4:$V$333,$A$8,FALSE)) -> 3,380 | G19: =IF($A$11=1,"NA",VLOOKUP($C19&G$7,Data!$B$4:$V$333,$A$8,FALSE)) -> 3,370 | H19: =IF($A$11=1,"NA",VLOOKUP($C19&H$7,Data!$B$4:$V$333,$A$8,FALSE)) -> 3,380 | I19: =IF($A$11=1,"NA",VLOOKUP($C19&I$7,Data!$B$4:$V$333,$A$8,FALSE)) -> 3,400 | J19: =IF($A$11=1,"NA",VLOOKUP($C19&J$7,Data!$B$4:$V$333,$A$8,FALSE)) -> 3,450 | K19: =IF($A$11=1,"NA",VLOOKUP($C19&K$7,Data!$B$4:$V$333,$A$8,FALSE)) -> 3,480 | L19: =IF($A$11=1,"NA",VLOOKUP($C19&L$7,Data!$B$4:$V$333,$A$8,FALSE)) -> 3,400 | M19: =IF($A$11=1,"NA",VLOOKUP($C19&M$7,Data!$B$4:$V$333,$A$8,FALSE)) -> 3,160
C20: Eilean Siar | D20: =IF($A$11=1,"NA",VLOOKUP($C20&D$7,Data!$B$4:$V$333,$A$8,FALSE)) -> 430 | E20: =IF($A$11=1,"NA",VLOOKUP($C20&E$7,Data!$B$4:$V$333,$A$8,FALSE)) -> 450 | F20: =IF($A$11=1,"NA",VLOOKUP($C20&F$7,Data!$B$4:$V$333,$A$8,FALSE)) -> 460 | G20: =IF($A$11=1,"NA",VLOOKUP($C20&G$7,Data!$B$4:$V$333,$A$8,FALSE)) -> 430 | H20: =IF($A$11=1,"NA",VLOOKUP($C20&H$7,Data!$B$4:$V$333,$A$8,FALSE)) -> 450 | I20: =IF($A$11=1,"NA",VLOOKUP($C20&I$7,Data!$B$4:$V$333,$A$8,FALSE)) -> 460 | J20: =IF($A$11=1,"NA",VLOOKUP($C20&J$7,Data!$B$4:$V$333,$A$8,FALSE)) -> 440 | K20: =IF($A$11=1,"NA",VLOOKUP($C20&K$7,Data!$B$4:$V$333,$A$8,FALSE)) -> 440 | L20: =IF($A$11=1,"NA",VLOOKUP($C20&L$7,Data!$B$4:$V$333,$A$8,FALSE)) -> 390 | M20: =IF($A$11=1,"NA",VLOOKUP($C20&M$7,Data!$B$4:$V$333,$A$8,FALSE)) -> 360
C21: Falkirk | D21: =IF($A$11=1,"NA",VLOOKUP($C21&D$7,Data!$B$4:$V$333,$A$8,FALSE)) -> 1,250 | E21: =IF($A$11=1,"NA",VLOOKUP($C21&E$7,Data!$B$4:$V$333,$A$8,FALSE)) -> 1,340 | F21: =IF($A$11=1,"NA",VLOOKUP($C21&F$7,Data!$B$4:$V$333,$A$8,FALSE)) -> 1,570 | G21: =IF($A$11=1,"NA",VLOOKUP($C21&G$7,Data!$B$4:$V$333,$A$8,FALSE)) -> 1,570 | H21: =IF($A$11=1,"NA",VLOOKUP($C21&H$7,Data!$B$4:$V$333,$A$8,FALSE)) -> 1,610 | I21: =IF($A$11=1,"NA",VLOOKUP($C21&I$7,Data!$B$4:$V$333,$A$8,FALSE)) -> 1,660 | J21: =IF($A$11=1,"NA",VLOOKUP($C21&J$7,Data!$B$4:$V$333,$A$8,FALSE)) -> 1,740 | K21: =IF($A$11=1,"NA",VLOOKUP($C21&K$7,Data!$B$4:$V$333,$A$8,FALSE)) -> 1,660 | L21: =IF($A$11=1,"NA",VLOOKUP($C21&L$7,Data!$B$4:$V$333,$A$8,FALSE)) -> 1,710 | M21: =IF($A$11=1,"NA",VLOOKUP($C21&M$7,Data!$B$4:$V$333,$A$8,FALSE)) -> 1,670
C22: Fife | D22: =IF($A$11=1,"NA",VLOOKUP($C22&D$7,Data!$B$4:$V$333,$A$8,FALSE)) -> 3,180 | E22: =IF($A$11=1,"NA",VLOOKUP($C22&E$7,Data!$B$4:$V$333,$A$8,FALSE)) -> 3,430 | F22: =IF($A$11=1,"NA",VLOOKUP($C22&F$7,Data!$B$4:$V$333,$A$8,FALSE)) -> 2,850 | G22: =IF($A$11=1,"NA",VLOOKUP($C22&G$7,Data!$B$4:$V$333,$A$8,FALSE)) -> 2,920 | H22: =IF($A$11=1,"NA",VLOOKUP($C22&H$7,Data!$B$4:$V$333,$A$8,FALSE)) -> 2,810 | I22: =IF($A$11=1,"NA",VLOOKUP($C22&I$7,Data!$B$4:$V$333,$A$8,FALSE)) -> 2,870 | J22: =IF($A$11=1,"NA",VLOOKUP($C22&J$7,Data!$B$4:$V$333,$A$8,FALSE)) -> 2,580 | K22: =IF($A$11=1,"NA",VLOOKUP($C22&K$7,Data!$B$4:$V$333,$A$8,FALSE)) -> 2,290 | L22: =IF($A$11=1,"NA",VLOOKUP($C22&L$7,Data!$B$4:$V$333,$A$8,FALSE)) -> 2,400 | M22: =IF($A$11=1,"NA",VLOOKUP($C22&M$7,Data!$B$4:$V$333,$A$8,FALSE)) -> 1,650
C23: Glasgow City | D23: =IF($A$11=1,"NA",VLOOKUP($C23&D$7,Data!$B$4:$V$333,$A$8,FALSE)) -> 5,270 | E23: =IF($A$11=1,"NA",VLOOKUP($C23&E$7,Data!$B$4:$V$333,$A$8,FALSE)) -> 5,150 | F23: =IF($A$11=1,"NA",VLOOKUP($C23&F$7,Data!$B$4:$V$333,$A$8,FALSE)) -> 6,060 | G23: =IF($A$11=1,"NA",VLOOKUP($C23&G$7,Data!$B$4:$V$333,$A$8,FALSE)) -> 6,070 | H23: =IF($A$11=1,"NA",VLOOKUP($C23&H$7,Data!$B$4:$V$333,$A$8,FALSE)) -> 5,910 | I23: =IF($A$11=1,"NA",VLOOKUP($C23&I$7,Data!$B$4:$V$333,$A$8,FALSE)) -> 5,620 | J23: =IF($A$11=1,"NA",VLOOKUP($C23&J$7,Data!$B$4:$V$333,$A$8,FALSE)) -> 5,290 | K23: =IF($A$11=1,"NA",VLOOKUP($C23&K$7,Data!$B$4:$V$333,$A$8,FALSE)) -> 5,380 | L23: =IF($A$11=1,"NA",VLOOKUP($C23&L$7,Data!$B$4:$V$333,$A$8,FALSE)) -> 5,180 | M23: =IF($A$11=1,"NA",VLOOKUP($C23&M$7,Data!$B$4:$V$333,$A$8,FALSE)) -> 5,140
C24: Highland | D24: =IF($A$11=1,"NA",VLOOKUP($C24&D$7,Data!$B$4:$V$333,$A$8,FALSE)) -> 1,480 | E24: =IF($A$11=1,"NA",VLOOKUP($C24&E$7,Data!$B$4:$V$333,$A$8,FALSE)) -> 1,710 | F24: =IF($A$11=1,"NA",VLOOKUP($C24&F$7,Data!$B$4:$V$333,$A$8,FALSE)) -> 1,640 | G24: =IF($A$11=1,"NA",VLOOKUP($C24&G$7,Data!$B$4:$V$333,$A$8,FALSE)) -> 1,610 | H24: =IF($A$11=1,"NA",VLOOKUP($C24&H$7,Data!$B$4:$V$333,$A$8,FALSE)) -> 1,590 | I24: =IF($A$11=1,"NA",VLOOKUP($C24&I$7,Data!$B$4:$V$333,$A$8,FALSE)) -> 1,590 | J24: =IF($A$11=1,"NA",VLOOKUP($C24&J$7,Data!$B$4:$V$333,$A$8,FALSE)) -> 1,710 | K24: =IF($A$11=1,"NA",VLOOKUP($C24&K$7,Data!$B$4:$V$333,$A$8,FALSE)) -> 1,640 | L24: =IF($A$11=1,"NA",VLOOKUP($C24&L$7,Data!$B$4:$V$333,$A$8,FALSE)) -> 1,640 | M24: =IF($A$11=1,"NA",VLOOKUP($C24&M$7,Data!$B$4:$V$333,$A$8,FALSE)) -> 1,590
C25: Inverclyde | D25: =IF($A$11=1,"NA",VLOOKUP($C25&D$7,Data!$B$4:$V$333,$A$8,FALSE)) -> 1,070 | E25: =IF($A$11=1,"NA",VLOOKUP($C25&E$7,Data!$B$4:$V$333,$A$8,FALSE)) -> 1,170 | F25: =IF($A$11=1,"NA",VLOOKUP($C25&F$7,Data!$B$4:$V$333,$A$8,FALSE)) -> 1,090 | G25: =IF($A$11=1,"NA",VLOOKUP($C25&G$7,Data!$B$4:$V$333,$A$8,FALSE)) -> 1,060 | H25: =IF($A$11=1,"NA",VLOOKUP($C25&H$7,Data!$B$4:$V$333,$A$8,FALSE)) -> 1,060 | I25: =IF($A$11=1,"NA",VLOOKUP($C25&I$7,Data!$B$4:$V$333,$A$8,FALSE)) -> 1,120 | J25: =IF($A$11=1,"NA",VLOOKUP($C25&J$7,Data!$B$4:$V$333,$A$8,FALSE)) -> 1,100 | K25: =IF($A$11=1,"NA",VLOOKUP($C25&K$7,Data!$B$4:$V$333,$A$8,FALSE)) -> 1,030 | L25: =IF($A$11=1,"NA",VLOOKUP($C25&L$7,Data!$B$4:$V$333,$A$8,FALSE)) -> 1,130 | M25: =IF($A$11=1,"NA",VLOOKUP($C25&M$7,Data!$B$4:$V$333,$A$8,FALSE)) -> 1,140
C26: Midlothian | D26: =IF($A$11=1,"NA",VLOOKUP($C26&D$7,Data!$B$4:$V$333,$A$8,FALSE)) -> 550 | E26: =IF($A$11=1,"NA",VLOOKUP($C26&E$7,Data!$B$4:$V$333,$A$8,FALSE)) -> 640 | F26: =IF($A$11=1,"NA",VLOOKUP($C26&F$7,Data!$B$4:$V$333,$A$8,FALSE)) -> 610 | G26: =IF($A$11=1,"NA",VLOOKUP($C26&G$7,Data!$B$4:$V$333,$A$8,FALSE)) -> 680 | H26: =IF($A$11=1,"NA",VLOOKUP($C26&H$7,Data!$B$4:$V$333,$A$8,FALSE)) -> 740 | I26: =IF($A$11=1,"NA",VLOOKUP($C26&I$7,Data!$B$4:$V$333,$A$8,FALSE)) -> 770 | J26: =IF($A$11=1,"NA",VLOOKUP($C26&J$7,Data!$B$4:$V$333,$A$8,FALSE)) -> 760 | K26: =IF($A$11=1,"NA",VLOOKUP($C26&K$7,Data!$B$4:$V$333,$A$8,FALSE)) -> 650 | L26: =IF($A$11=1,"NA",VLOOKUP($C26&L$7,Data!$B$4:$V$333,$A$8,FALSE)) -> 770 | M26: =IF($A$11=1,"NA",VLOOKUP($C26&M$7,Data!$B$4:$V$333,$A$8,FALSE)) -> 830
C27: Moray | D27: =IF($A$11=1,"NA",VLOOKUP($C27&D$7,Data!$B$4:$V$333,$A$8,FALSE)) -> 760 | E27: =IF($A$11=1,"NA",VLOOKUP($C27&E$7,Data!$B$4:$V$333,$A$8,FALSE)) -> 780 | F27: =IF($A$11=1,"NA",VLOOKUP($C27&F$7,Data!$B$4:$V$333,$A$8,FALSE)) -> 800 | G27: =IF($A$11=1,"NA",VLOOKUP($C27&G$7,Data!$B$4:$V$333,$A$8,FALSE)) -> 880 | H27: =IF($A$11=1,"NA",VLOOKUP($C27&H$7,Data!$B$4:$V$333,$A$8,FALSE)) -> 920 | I27: =IF($A$11=1,"NA",VLOOKUP($C27&I$7,Data!$B$4:$V$333,$A$8,FALSE)) -> 930 | J27: =IF($A$11=1,"NA",VLOOKUP($C27&J$7,Data!$B$4:$V$333,$A$8,FALSE)) -> 900 | K27: =IF($A$11=1,"NA",VLOOKUP($C27&K$7,Data!$B$4:$V$333,$A$8,FALSE)) -> 930 | L27: =IF($A$11=1,"NA",VLOOKUP($C27&L$7,Data!$B$4:$V$333,$A$8,FALSE)) -> 880 | M27: =IF($A$11=1,"NA",VLOOKUP($C27&M$7,Data!$B$4:$V$333,$A$8,FALSE)) -> 780
C28: North Ayrshire | D28: =IF($A$11=1,"NA",VLOOKUP($C28&D$7,Data!$B$4:$V$333,$A$8,FALSE)) -> 1,230 | E28: =IF($A$11=1,"NA",VLOOKUP($C28&E$7,Data!$B$4:$V$333,$A$8,FALSE)) -> 1,410 | F28: =IF($A$11=1,"NA",VLOOKUP($C28&F$7,Data!$B$4:$V$333,$A$8,FALSE)) -> 1,230 | G28: =IF($A$11=1,"NA",VLOOKUP($C28&G$7,Data!$B$4:$V$333,$A$8,FALSE)) -> 1,310 | H28: =IF($A$11=1,"NA",VLOOKUP($C28&H$7,Data!$B$4:$V$333,$A$8,FALSE)) -> 1,360 | I28: =IF($A$11=1,"NA",VLOOKUP($C28&I$7,Data!$B$4:$V$333,$A$8,FALSE)) -> 1,510 | J28: =IF($A$11=1,"NA",VLOOKUP($C28&J$7,Data!$B$4:$V$333,$A$8,FALSE)) -> 1,620 | K28: =IF($A$11=1,"NA",VLOOKUP($C28&K$7,Data!$B$4:$V$333,$A$8,FALSE)) -> 1,680 | L28: =IF($A$11=1,"NA",VLOOKUP($C28&L$7,Data!$B$4:$V$333,$A$8,FALSE)) -> 1,620 | M28: =IF($A$11=1,"NA",VLOOKUP($C28&M$7,Data!$B$4:$V$333,$A$8,FALSE)) -> 1,590
C29: North Lanarkshire | D29: =IF($A$11=1,"NA",VLOOKUP($C29&D$7,Data!$B$4:$V$333,$A$8,FALSE)) -> 2,320 | E29: =IF($A$11=1,"NA",VLOOKUP($C29&E$7,Data!$B$4:$V$333,$A$8,FALSE)) -> 2,400 | F29: =IF($A$11=1,"NA",VLOOKUP($C29&F$7,Data!$B$4:$V$333,$A$8,FALSE)) -> 2,660 | G29: =IF($A$11=1,"NA",VLOOKUP($C29&G$7,Data!$B$4:$V$333,$A$8,FALSE)) -> 2,600 | H29: =IF($A$11=1,"NA",VLOOKUP($C29&H$7,Data!$B$4:$V$333,$A$8,FALSE)) -> 2,630 | I29: =IF($A$11=1,"NA",VLOOKUP($C29&I$7,Data!$B$4:$V$333,$A$8,FALSE)) -> 2,720 | J29: =IF($A$11=1,"NA",VLOOKUP($C29&J$7,Data!$B$4:$V$333,$A$8,FALSE)) -> 2,850 | K29: =IF($A$11=1,"NA",VLOOKUP($C29&K$7,Data!$B$4:$V$333,$A$8,FALSE)) -> 3,040 | L29: =IF($A$11=1,"NA",VLOOKUP($C29&L$7,Data!$B$4:$V$333,$A$8,FALSE)) -> 3,120 | M29: =IF($A$11=1,"NA",VLOOKUP($C29&M$7,Data!$B$4:$V$333,$A$8,FALSE)) -> 3,120
C30: Orkney Islands | D30: =IF($A$11=1,"NA",VLOOKUP($C30&D$7,Data!$B$4:$V$333,$A$8,FALSE)) -> 170 | E30: =IF($A$11=1,"NA",VLOOKUP($C30&E$7,Data!$B$4:$V$333,$A$8,FALSE)) -> 210 | F30: =IF($A$11=1,"NA",VLOOKUP($C30&F$7,Data!$B$4:$V$333,$A$8,FALSE)) -> 250 | G30: =IF($A$11=1,"NA",VLOOKUP($C30&G$7,Data!$B$4:$V$333,$A$8,FALSE)) -> 220 | H30: =IF($A$11=1,"NA",VLOOKUP($C30&H$7,Data!$B$4:$V$333,$A$8,FALSE)) -> 210 | I30: =IF($A$11=1,"NA",VLOOKUP($C30&I$7,Data!$B$4:$V$333,$A$8,FALSE)) -> 210 | J30: =IF($A$11=1,"NA",VLOOKUP($C30&J$7,Data!$B$4:$V$333,$A$8,FALSE)) -> 240 | K30: =IF($A$11=1,"NA",VLOOKUP($C30&K$7,Data!$B$4:$V$333,$A$8,FALSE)) -> 240 | L30: =IF($A$11=1,"NA",VLOOKUP($C30&L$7,Data!$B$4:$V$333,$A$8,FALSE)) -> 170 | M30: =IF($A$11=1,"NA",VLOOKUP($C30&M$7,Data!$B$4:$V$333,$A$8,FALSE)) -> 180
C31: Perth & Kinross | D31: =IF($A$11=1,"NA",VLOOKUP($C31&D$7,Data!$B$4:$V$333,$A$8,FALSE)) -> 1,000 | E31: =IF($A$11=1,"NA",VLOOKUP($C31&E$7,Data!$B$4:$V$333,$A$8,FALSE)) -> 1,050 | F31: =IF($A$11=1,"NA",VLOOKUP($C31&F$7,Data!$B$4:$V$333,$A$8,FALSE)) -> 1,260 | G31: =IF($A$11=1,"NA",VLOOKUP($C31&G$7,Data!$B$4:$V$333,$A$8,FALSE)) -> 1,320 | H31: =IF($A$11=1,"NA",VLOOKUP($C31&H$7,Data!$B$4:$V$333,$A$8,FALSE)) -> 1,130 | I31: =IF($A$11=1,"NA",VLOOKUP($C31&I$7,Data!$B$4:$V$333,$A$8,FALSE)) -> 1,100 | J31: =IF($A$11=1,"NA",VLOOKUP($C31&J$7,Data!$B$4:$V$333,$A$8,FALSE)) -> 1,230 | K31: =IF($A$11=1,"NA",VLOOKUP($C31&K$7,Data!$B$4:$V$333,$A$8,FALSE)) -> 1,080 | L31: =IF($A$11=1,"NA",VLOOKUP($C31&L$7,Data!$B$4:$V$333,$A$8,FALSE)) -> 1,120 | M31: =IF($A$11=1,"NA",VLOOKUP($C31&M$7,Data!$B$4:$V$333,$A$8,FALSE)) -> 1,200
C32: Renfrewshire | D32: =IF($A$11=1,"NA",VLOOKUP($C32&D$7,Data!$B$4:$V$333,$A$8,FALSE)) -> 1,110 | E32: =IF($A$11=1,"NA",VLOOKUP($C32&E$7,Data!$B$4:$V$333,$A$8,FALSE)) -> 1,190 | F32: =IF($A$11=1,"NA",VLOOKUP($C32&F$7,Data!$B$4:$V$333,$A$8,FALSE)) -> 1,370 | G32: =IF($A$11=1,"NA",VLOOKUP($C32&G$7,Data!$B$4:$V$333,$A$8,FALSE)) -> 1,200 | H32: =IF($A$11=1,"NA",VLOOKUP($C32&H$7,Data!$B$4:$V$333,$A$8,FALSE)) -> 1,260 | I32: =IF($A$11=1,"NA",VLOOKUP($C32&I$7,Data!$B$4:$V$333,$A$8,FALSE)) -> 1,370 | J32: =IF($A$11=1,"NA",VLOOKUP($C32&J$7,Data!$B$4:$V$333,$A$8,FALSE)) -> 1,490 | K32: =IF($A$11=1,"NA",VLOOKUP($C32&K$7,Data!$B$4:$V$333,$A$8,FALSE)) -> 1,720 | L32: =IF($A$11=1,"NA",VLOOKUP($C32&L$7,Data!$B$4:$V$333,$A$8,FALSE)) -> 1,650 | M32: =IF($A$11=1,"NA",VLOOKUP($C32&M$7,Data!$B$4:$V$333,$A$8,FALSE)) -> 1,590
C33: Scottish Borders | D33: =IF($A$11=1,"NA",VLOOKUP($C33&D$7,Data!$B$4:$V$333,$A$8,FALSE)) -> 1,040 | E33: =IF($A$11=1,"NA",VLOOKUP($C33&E$7,Data!$B$4:$V$333,$A$8,FALSE)) -> 1,050 | F33: =IF($A$11=1,"NA",VLOOKUP($C33&F$7,Data!$B$4:$V$333,$A$8,FALSE)) -> 1,160 | G33: =IF($A$11=1,"NA",VLOOKUP($C33&G$7,Data!$B$4:$V$333,$A$8,FALSE)) -> 1,190 | H33: =IF($A$11=1,"NA",VLOOKUP($C33&H$7,Data!$B$4:$V$333,$A$8,FALSE)) -> 1,240 | I33: =IF($A$11=1,"NA",VLOOKUP($C33&I$7,Data!$B$4:$V$333,$A$8,FALSE)) -> 1,250 | J33: =IF($A$11=1,"NA",VLOOKUP($C33&J$7,Data!$B$4:$V$333,$A$8,FALSE)) -> 1,240 | K33: =IF($A$11=1,"NA",VLOOKUP($C33&K$7,Data!$B$4:$V$333,$A$8,FALSE)) -> 1,150 | L33: =IF($A$11=1,"NA",VLOOKUP($C33&L$7,Data!$B$4:$V$333,$A$8,FALSE)) -> 1,160 | M33: =IF($A$11=1,"NA",VLOOKUP($C33&M$7,Data!$B$4:$V$333,$A$8,FALSE)) -> 1,090
C34: Shetland Islands | D34: =IF($A$11=1,"NA",VLOOKUP($C34&D$7,Data!$B$4:$V$333,$A$8,FALSE)) -> 210 | E34: =IF($A$11=1,"NA",VLOOKUP($C34&E$7,Data!$B$4:$V$333,$A$8,FALSE)) -> 220 | F34: =IF($A$11=1,"NA",VLOOKUP($C34&F$7,Data!$B$4:$V$333,$A$8,FALSE)) -> 230 | G34: =IF($A$11=1,"NA",VLOOKUP($C34&G$7,Data!$B$4:$V$333,$A$8,FALSE)) -> 260 | H34: =IF($A$11=1,"NA",VLOOKUP($C34&H$7,Data!$B$4:$V$333,$A$8,FALSE)) -> 230 | I34: =IF($A$11=1,"NA",VLOOKUP($C34&I$7,Data!$B$4:$V$333,$A$8,FALSE)) -> 220 | J34: =IF($A$11=1,"NA",VLOOKUP($C34&J$7,Data!$B$4:$V$333,$A$8,FALSE)) -> 220 | K34: =IF($A$11=1,"NA",VLOOKUP($C34&K$7,Data!$B$4:$V$333,$A$8,FALSE)) -> 220 | L34: =IF($A$11=1,"NA",VLOOKUP($C34&L$7,Data!$B$4:$V$333,$A$8,FALSE)) -> 200 | M34: =IF($A$11=1,"NA",VLOOKUP($C34&M$7,Data!$B$4:$V$333,$A$8,FALSE)) -> 200
C35: South Ayrshire | D35: =IF($A$11=1,"NA",VLOOKUP($C35&D$7,Data!$B$4:$V$333,$A$8,FALSE)) -> 1,440 | E35: =IF($A$11=1,"NA",VLOOKUP($C35&E$7,Data!$B$4:$V$333,$A$8,FALSE)) -> 1,540 | F35: =IF($A$11=1,"NA",VLOOKUP($C35&F$7,Data!$B$4:$V$333,$A$8,FALSE)) -> 1,630 | G35: =IF($A$11=1,"NA",VLOOKUP($C35&G$7,Data!$B$4:$V$333,$A$8,FALSE)) -> 1,740 | H35: =IF($A$11=1,"NA",VLOOKUP($C35&H$7,Data!$B$4:$V$333,$A$8,FALSE)) -> 1,600 | I35: =IF($A$11=1,"NA",VLOOKUP($C35&I$7,Data!$B$4:$V$333,$A$8,FALSE)) -> 1,660 | J35: =IF($A$11=1,"NA",VLOOKUP($C35&J$7,Data!$B$4:$V$333,$A$8,FALSE)) -> 1,460 | K35: =IF($A$11=1,"NA",VLOOKUP($C35&K$7,Data!$B$4:$V$333,$A$8,FALSE)) -> 1,340 | L35: =IF($A$11=1,"NA",VLOOKUP($C35&L$7,Data!$B$4:$V$333,$A$8,FALSE)) -> 1,280 | M35: =IF($A$11=1,"NA",VLOOKUP($C35&M$7,Data!$B$4:$V$333,$A$8,FALSE)) -> 1,330
C36: South Lanarkshire | D36: =IF($A$11=1,"NA",VLOOKUP($C36&D$7,Data!$B$4:$V$333,$A$8,FALSE)) -> 2,600 | E36: =IF($A$11=1,"NA",VLOOKUP($C36&E$7,Data!$B$4:$V$333,$A$8,FALSE)) -> 2,700 | F36: =IF($A$11=1,"NA",VLOOKUP($C36&F$7,Data!$B$4:$V$333,$A$8,FALSE)) -> 2,840 | G36: =IF($A$11=1,"NA",VLOOKUP($C36&G$7,Data!$B$4:$V$333,$A$8,FALSE)) -> 2,790 | H36: =IF($A$11=1,"NA",VLOOKUP($C36&H$7,Data!$B$4:$V$333,$A$8,FALSE)) -> 2,820 | I36: =IF($A$11=1,"NA",VLOOKUP($C36&I$7,Data!$B$4:$V$333,$A$8,FALSE)) -> 2,790 | J36: =IF($A$11=1,"NA",VLOOKUP($C36&J$7,Data!$B$4:$V$333,$A$8,FALSE)) -> 2,820 | K36: =IF($A$11=1,"NA",VLOOKUP($C36&K$7,Data!$B$4:$V$333,$A$8,FALSE)) -> 2,710 | L36: =IF($A$11=1,"NA",VLOOKUP($C36&L$7,Data!$B$4:$V$333,$A$8,FALSE)) -> 2,690 | M36: =IF($A$11=1,"NA",VLOOKUP($C36&M$7,Data!$B$4:$V$333,$A$8,FALSE)) -> 2,840
C37: Stirling | D37: =IF($A$11=1,"NA",VLOOKUP($C37&D$7,Data!$B$4:$V$333,$A$8,FALSE)) -> 450 | E37: =IF($A$11=1,"NA",VLOOKUP($C37&E$7,Data!$B$4:$V$333,$A$8,FALSE)) -> 470 | F37: =IF($A$11=1,"NA",VLOOKUP($C37&F$7,Data!$B$4:$V$333,$A$8,FALSE)) -> 630 | G37: =IF($A$11=1,"NA",VLOOKUP($C37&G$7,Data!$B$4:$V$333,$A$8,FALSE)) -> 640 | H37: =IF($A$11=1,"NA",VLOOKUP($C37&H$7,Data!$B$4:$V$333,$A$8,FALSE)) -> 690 | I37: =IF($A$11=1,"NA",VLOOKUP($C37&I$7,Data!$B$4:$V$333,$A$8,FALSE)) -> 790 | J37: =IF($A$11=1,"NA",VLOOKUP($C37&J$7,Data!$B$4:$V$333,$A$8,FALSE)) -> 780 | K37: =IF($A$11=1,"NA",VLOOKUP($C37&K$7,Data!$B$4:$V$333,$A$8,FALSE)) -> 810 | L37: =IF($A$11=1,"NA",VLOOKUP($C37&L$7,Data!$B$4:$V$333,$A$8,FALSE)) -> 780 | M37: =IF($A$11=1,"NA",VLOOKUP($C37&M$7,Data!$B$4:$V$333,$A$8,FALSE)) -> 790
C38: West Dunbartonshire | D38: =IF($A$11=1,"NA",VLOOKUP($C38&D$7,Data!$B$4:$V$333,$A$8,FALSE)) -> 1,010 | E38: =IF($A$11=1,"NA",VLOOKUP($C38&E$7,Data!$B$4:$V$333,$A$8,FALSE)) -> 1,020 | F38: =IF($A$11=1,"NA",VLOOKUP($C38&F$7,Data!$B$4:$V$333,$A$8,FALSE)) -> 1,100 | G38: =IF($A$11=1,"NA",VLOOKUP($C38&G$7,Data!$B$4:$V$333,$A$8,FALSE)) -> 1,070 | H38: =IF($A$11=1,"NA",VLOOKUP($C38&H$7,Data!$B$4:$V$333,$A$8,FALSE)) -> 1,110 | I38: =IF($A$11=1,"NA",VLOOKUP($C38&I$7,Data!$B$4:$V$333,$A$8,FALSE)) -> 1,040 | J38: =IF($A$11=1,"NA",VLOOKUP($C38&J$7,Data!$B$4:$V$333,$A$8,FALSE)) -> 1,070 | K38: =IF($A$11=1,"NA",VLOOKUP($C38&K$7,Data!$B$4:$V$333,$A$8,FALSE)) -> 1,110 | L38: =IF($A$11=1,"NA",VLOOKUP($C38&L$7,Data!$B$4:$V$333,$A$8,FALSE)) -> 1,180 | M38: =IF($A$11=1,"NA",VLOOKUP($C38&M$7,Data!$B$4:$V$333,$A$8,FALSE)) -> 1,270
C39: West Lothian | D39: =IF($A$11=1,"NA",VLOOKUP($C39&D$7,Data!$B$4:$V$333,$A$8,FALSE)) -> 1,000 | E39: =IF($A$11=1,"NA",VLOOKUP($C39&E$7,Data!$B$4:$V$333,$A$8,FALSE)) -> 1,130 | F39: =IF($A$11=1,"NA",VLOOKUP($C39&F$7,Data!$B$4:$V$333,$A$8,FALSE)) -> 1,230 | G39: =IF($A$11=1,"NA",VLOOKUP($C39&G$7,Data!$B$4:$V$333,$A$8,FALSE)) -> 1,280 | H39: =IF($A$11=1,"NA",VLOOKUP($C39&H$7,Data!$B$4:$V$333,$A$8,FALSE)) -> 1,250 | I39: =IF($A$11=1,"NA",VLOOKUP($C39&I$7,Data!$B$4:$V$333,$A$8,FALSE)) -> 1,300 | J39: =IF($A$11=1,"NA",VLOOKUP($C39&J$7,Data!$B$4:$V$333,$A$8,FALSE)) -> 1,430 | K39: =IF($A$11=1,"NA",VLOOKUP($C39&K$7,Data!$B$4:$V$333,$A$8,FALSE)) -> 1,360 | L39: =IF($A$11=1,"NA",VLOOKUP($C39&L$7,Data!$B$4:$V$333,$A$8,FALSE)) -> 1,510 | M39: =IF($A$11=1,"NA",VLOOKUP($C39&M$7,Data!$B$4:$V$333,$A$8,FALSE)) -> 1,150
C40: Scotland | D40: =IF($A$11=1,"NA",VLOOKUP($C40&D$7,Data!$B$4:$V$333,$A$8,FALSE)) -> 42,260 | E40: =IF($A$11=1,"NA",VLOOKUP($C40&E$7,Data!$B$4:$V$333,$A$8,FALSE)) -> 44,200 | F40: =IF($A$11=1,"NA",VLOOKUP($C40&F$7,Data!$B$4:$V$333,$A$8,FALSE)) -> 46,660 | G40: =IF($A$11=1,"NA",VLOOKUP($C40&G$7,Data!$B$4:$V$333,$A$8,FALSE)) -> 46,950 | H40: =IF($A$11=1,"NA",VLOOKUP($C40&H$7,Data!$B$4:$V$333,$A$8,FALSE)) -> 47,010 | I40: =IF($A$11=1,"NA",VLOOKUP($C40&I$7,Data!$B$4:$V$333,$A$8,FALSE)) -> 47,170 | J40: =IF($A$11=1,"NA",VLOOKUP($C40&J$7,Data!$B$4:$V$333,$A$8,FALSE)) -> 47,810 | K40: =IF($A$11=1,"NA",VLOOKUP($C40&K$7,Data!$B$4:$V$333,$A$8,FALSE)) -> 46,750 | L40: =IF($A$11=1,"NA",VLOOKUP($C40&L$7,Data!$B$4:$V$333,$A$8,FALSE)) -> 46,910 | M40: =IF($A$11=1,"NA",VLOOKUP($C40&M$7,Data!$B$4:$V$333,$A$8,FALSE)) -> 45,780
C42: Source: Community Care Quarterly Key Monitoring Return (Client data), Social Care Survey 2013 onwards, FPNC survey and LFR3 (Expenditure data), NRS mid-year estimates (population data)
C43: =IF($A$6="Clients","FPC figures are yearly averages rounded to the nearest 10.","FPC figures are in £thousands. Overheads not included for all years, full details of the years affected are included within the background notes") -> FPC figures are yearly averages rounded to the nearest 10.
C44: =IF(A5="Average weekly hours of FPC at home","Average weekly hours (based on last week of each quarter) rounded to the nearest 100.","") -> 
